Body Name,Body,Date,Department,Beneficiary,Summary of Purpose (SeRCOP),Amount SUM,Merchant Code,Transaction Number,Supplier ID,
Sandwell Metropolitan Borough Council,http://www.sandwell.gov.uk/info/200202/performance_and_spending/1079/payments_over_500,01-Apr-2023,Adult Social Care Transformation,HOUSING  & CARE 21,Adult Social Care Transformation,17790.17,Block Contracts,2324P01_CR00001,2279,
Sandwell Metropolitan Borough Council,http://www.sandwell.gov.uk/info/200202/performance_and_spending/1079/payments_over_500,01-Apr-2023,Adult Social Care Transformation,HOUSING  & CARE 21,Adult Social Care Transformation,25138.29,Block Contracts,2324P01_CR00002,2279,
Sandwell Metropolitan Borough Council,http://www.sandwell.gov.uk/info/200202/performance_and_spending/1079/payments_over_500,01-Apr-2023,Adult Social Care Transformation,HOUSING  & CARE 21,Adult Social Care Transformation,31132.80,Block Contracts,2324P01_CR00003,2279,
Sandwell Metropolitan Borough Council,http://www.sandwell.gov.uk/info/200202/performance_and_spending/1079/payments_over_500,01-Apr-2023,Adult Social Care Transformation,HOUSING  & CARE 21,Adult Social Care Transformation,31132.80,Block Contracts,2324P01_CR00004,2279,
Sandwell Metropolitan Borough Council,http://www.sandwell.gov.uk/info/200202/performance_and_spending/1079/payments_over_500,01-Apr-2023,Adult Social Care Transformation,HOUSING  & CARE 21,Adult Social Care Transformation,31132.80,Block Contracts,2324P01_CR00005,2279,
Sandwell Metropolitan Borough Council,http://www.sandwell.gov.uk/info/200202/performance_and_spending/1079/payments_over_500,01-Apr-2023,Adult Social Care Transformation,HOUSING  & CARE 21,Adult Social Care Transformation,31132.80,Block Contracts,2324P01_CR00006,2279,
Sandwell Metropolitan Borough Council,http://www.sandwell.gov.uk/info/200202/performance_and_spending/1079/payments_over_500,01-Apr-2023,Adult Social Care Transformation,HOUSING  & CARE 21,Adult Social Care Transformation,31132.80,Block Contracts,2324P01_CR00007,2279,
Sandwell Metropolitan Borough Council,http://www.sandwell.gov.uk/info/200202/performance_and_spending/1079/payments_over_500,01-Apr-2023,Adult Social Care Transformation,HOUSING  & CARE 21,Adult Social Care Transformation,31132.80,Block Contracts,2324P01_CR00008,2279,
Sandwell Metropolitan Borough Council,http://www.sandwell.gov.uk/info/200202/performance_and_spending/1079/payments_over_500,01-Apr-2023,Adult Social Care Transformation,HOUSING  & CARE 21,Adult Social Care Transformation,31132.80,Block Contracts,2324P01_CR00009,2279,
Sandwell Metropolitan Borough Council,http://www.sandwell.gov.uk/info/200202/performance_and_spending/1079/payments_over_500,01-Apr-2023,Adult Social Care Transformation,HOUSING  & CARE 21,Adult Social Care Transformation,43992.00,Block Contracts,2324P01_CR00010,2279,
Sandwell Metropolitan Borough Council,http://www.sandwell.gov.uk/info/200202/performance_and_spending/1079/payments_over_500,01-Apr-2023,Adult Social Care Transformation,HOUSING  & CARE 21,Adult Social Care Transformation,43992.00,Block Contracts,2324P01_CR00011,2279,
Sandwell Metropolitan Borough Council,http://www.sandwell.gov.uk/info/200202/performance_and_spending/1079/payments_over_500,01-Apr-2023,Adult Social Care Transformation,HOUSING  & CARE 21,Adult Social Care Transformation,43992.00,Block Contracts,2324P01_CR00012,2279,
Sandwell Metropolitan Borough Council,http://www.sandwell.gov.uk/info/200202/performance_and_spending/1079/payments_over_500,01-Apr-2023,Adult Social Care Transformation,HOUSING  & CARE 21,Adult Social Care Transformation,43992.00,Block Contracts,2324P01_CR00013,2279,
Sandwell Metropolitan Borough Council,http://www.sandwell.gov.uk/info/200202/performance_and_spending/1079/payments_over_500,01-Apr-2023,Adult Social Care Transformation,HOUSING  & CARE 21,Adult Social Care Transformation,43992.00,Block Contracts,2324P01_CR00014,2279,
Sandwell Metropolitan Borough Council,http://www.sandwell.gov.uk/info/200202/performance_and_spending/1079/payments_over_500,01-Apr-2023,Adult Social Care Transformation,HOUSING  & CARE 21,Adult Social Care Transformation,43992.00,Block Contracts,2324P01_CR00015,2279,
Sandwell Metropolitan Borough Council,http://www.sandwell.gov.uk/info/200202/performance_and_spending/1079/payments_over_500,01-Apr-2023,Adult Social Care Transformation,HOUSING  & CARE 21,Adult Social Care Transformation,43992.00,Block Contracts,2324P01_CR00016,2279,
Sandwell Metropolitan Borough Council,http://www.sandwell.gov.uk/info/200202/performance_and_spending/1079/payments_over_500,20-Apr-2023,Adults Social Care Capital,DOLPHIN LIFTS MIDLANDS LTD,Adults Social Care Capital,3501.66,Deferred Charges/Grant Payments,2324P01_CR00017,123852,
Sandwell Metropolitan Borough Council,http://www.sandwell.gov.uk/info/200202/performance_and_spending/1079/payments_over_500,20-Apr-2023,Adults Social Care Capital,DOLPHIN LIFTS MIDLANDS LTD,Adults Social Care Capital,4142.61,Deferred Charges/Grant Payments,2324P01_CR00018,123852,
Sandwell Metropolitan Borough Council,http://www.sandwell.gov.uk/info/200202/performance_and_spending/1079/payments_over_500,01-Apr-2023,Adults Social Care Capital,AXIS EUROPE PLC   ,Adults Social Care Capital,6337.13,Deferred Charges/Grant Payments,2324P01_CR00019,64946,
Sandwell Metropolitan Borough Council,http://www.sandwell.gov.uk/info/200202/performance_and_spending/1079/payments_over_500,01-Apr-2023,Adults Social Care Capital,AXIS EUROPE PLC   ,Adults Social Care Capital,6518.76,Deferred Charges/Grant Payments,2324P01_CR00020,64946,
Sandwell Metropolitan Borough Council,http://www.sandwell.gov.uk/info/200202/performance_and_spending/1079/payments_over_500,01-Apr-2023,Adults Social Care Capital,AXIS EUROPE PLC   ,Adults Social Care Capital,6933.79,Deferred Charges/Grant Payments,2324P01_CR00021,64946,
Sandwell Metropolitan Borough Council,http://www.sandwell.gov.uk/info/200202/performance_and_spending/1079/payments_over_500,01-Apr-2023,Adults Social Care Capital,AXIS EUROPE PLC   ,Adults Social Care Capital,7112.00,Deferred Charges/Grant Payments,2324P01_CR00022,64946,
Sandwell Metropolitan Borough Council,http://www.sandwell.gov.uk/info/200202/performance_and_spending/1079/payments_over_500,01-Apr-2023,Adults Social Care Capital,AXIS EUROPE PLC   ,Adults Social Care Capital,8724.11,Deferred Charges/Grant Payments,2324P01_CR00023,64946,
Sandwell Metropolitan Borough Council,http://www.sandwell.gov.uk/info/200202/performance_and_spending/1079/payments_over_500,01-Apr-2023,Adults Social Care Capital,AXIS EUROPE PLC   ,Adults Social Care Capital,8873.04,Deferred Charges/Grant Payments,2324P01_CR00024,64946,
Sandwell Metropolitan Borough Council,http://www.sandwell.gov.uk/info/200202/performance_and_spending/1079/payments_over_500,01-Apr-2023,Adults Social Care Capital,AXIS EUROPE PLC   ,Adults Social Care Capital,9726.65,Deferred Charges/Grant Payments,2324P01_CR00025,64946,
Sandwell Metropolitan Borough Council,http://www.sandwell.gov.uk/info/200202/performance_and_spending/1079/payments_over_500,01-Apr-2023,Adults Social Care Capital,HOME DESIGN,Adults Social Care Capital,7000.00,Deferred Charges/Grant Payments,2324P01_CR00026,141847,
Sandwell Metropolitan Borough Council,http://www.sandwell.gov.uk/info/200202/performance_and_spending/1079/payments_over_500,04-Apr-2023,Adults Social Care Capital,SAFESPACES (CORNHOLME) LTD,Adults Social Care Capital,7547.84,Deferred Charges/Grant Payments,2324P01_CR00027,65847,
Sandwell Metropolitan Borough Council,http://www.sandwell.gov.uk/info/200202/performance_and_spending/1079/payments_over_500,24-Apr-2023,Adults Social Care Capital,HOME DESIGN,Adults Social Care Capital,8000.00,Deferred Charges/Grant Payments,2324P01_CR00028,141847,
Sandwell Metropolitan Borough Council,http://www.sandwell.gov.uk/info/200202/performance_and_spending/1079/payments_over_500,01-Apr-2023,Adults Social Care Capital,STANNAH LIFT SERVICES LTD,Adults Social Care Capital,9464.40,Deferred Charges/Grant Payments,2324P01_CR00029,13887,
Sandwell Metropolitan Borough Council,http://www.sandwell.gov.uk/info/200202/performance_and_spending/1079/payments_over_500,16-Apr-2023,Adults Social Care Capital,DESIGN SYNTAX LIMITED,Adults Social Care Capital,14575.00,Deferred Charges/Grant Payments,2324P01_CR00030,106226,
Sandwell Metropolitan Borough Council,http://www.sandwell.gov.uk/info/200202/performance_and_spending/1079/payments_over_500,13-Apr-2023,Adults Social Care Capital,TDF DESIGN LIMITED,Adults Social Care Capital,14750.00,Deferred Charges/Grant Payments,2324P01_CR00031,10320,
Sandwell Metropolitan Borough Council,http://www.sandwell.gov.uk/info/200202/performance_and_spending/1079/payments_over_500,03-Apr-2023,Adults Social Care Capital,TDF DESIGN LIMITED,Adults Social Care Capital,29500.00,Deferred Charges/Grant Payments,2324P01_CR00032,10320,
Sandwell Metropolitan Borough Council,http://www.sandwell.gov.uk/info/200202/performance_and_spending/1079/payments_over_500,19-Apr-2023,Adults Social Care Capital,DESIGN SYNTAX LIMITED,Adults Social Care Capital,32865.00,Deferred Charges/Grant Payments,2324P01_CR00033,106226,
Sandwell Metropolitan Borough Council,http://www.sandwell.gov.uk/info/200202/performance_and_spending/1079/payments_over_500,01-Apr-2023,Childrens Services,PROSPECTS SERVICES LIMITED,Childrens Services,500.00,Externally Purchased Professional Services ,2324P01_CR00034,01721288,
Sandwell Metropolitan Borough Council,http://www.sandwell.gov.uk/info/200202/performance_and_spending/1079/payments_over_500,25-Apr-2023,Childrens Services,THE PATCH DAY NURSERY,Childrens Services,500.00,Grants,2324P01_CR00035,126020,
Sandwell Metropolitan Borough Council,http://www.sandwell.gov.uk/info/200202/performance_and_spending/1079/payments_over_500,01-Apr-2023,Childrens Services,SKILLS WORK AND ENTERPRISE DEVELOPMENT AGENCY LTD,Childrens Services,510.00,Hire of Facilities,2324P01_CR00036,5092,
Sandwell Metropolitan Borough Council,http://www.sandwell.gov.uk/info/200202/performance_and_spending/1079/payments_over_500,15-Apr-2023,Childrens Services,TOTALENERGIES GAS & POWER LTD,Childrens Services,517.00,Electricity,2324P01_CR00037,107605,
Sandwell Metropolitan Borough Council,http://www.sandwell.gov.uk/info/200202/performance_and_spending/1079/payments_over_500,15-Apr-2023,Childrens Services,TOTALENERGIES GAS & POWER LTD,Childrens Services,522.45,Electricity,2324P01_CR00038,107605,
Sandwell Metropolitan Borough Council,http://www.sandwell.gov.uk/info/200202/performance_and_spending/1079/payments_over_500,01-Apr-2023,Childrens Services,W V HOWE LTD,Childrens Services,537.59,Catering Equipment,2324P01_CR00039,01052548,
Sandwell Metropolitan Borough Council,http://www.sandwell.gov.uk/info/200202/performance_and_spending/1079/payments_over_500,01-Apr-2023,Childrens Services,NEW BEGINNINGS COMMUNITY,Childrens Services,585.00,Hire of Facilities,2324P01_CR00040,155886,
Sandwell Metropolitan Borough Council,http://www.sandwell.gov.uk/info/200202/performance_and_spending/1079/payments_over_500,07-Apr-2023,Childrens Services,NEW BEGINNINGS COMMUNITY,Childrens Services,585.00,Hire of Facilities,2324P01_CR00041,155886,
Sandwell Metropolitan Borough Council,http://www.sandwell.gov.uk/info/200202/performance_and_spending/1079/payments_over_500,01-Apr-2023,Childrens Services,CLB MUSIC SERVICES LTD,Childrens Services,600.00,Externally Purchased Professional Services ,2324P01_CR00042,163924,
Sandwell Metropolitan Borough Council,http://www.sandwell.gov.uk/info/200202/performance_and_spending/1079/payments_over_500,01-Apr-2023,Childrens Services,CLB MUSIC SERVICES LTD,Childrens Services,600.00,Externally Purchased Professional Services ,2324P01_CR00043,163924,
Sandwell Metropolitan Borough Council,http://www.sandwell.gov.uk/info/200202/performance_and_spending/1079/payments_over_500,01-Apr-2023,Childrens Services,BIDFOOD,Childrens Services,611.07,Catering Provisions,2324P01_CR00044,164984,
Sandwell Metropolitan Borough Council,http://www.sandwell.gov.uk/info/200202/performance_and_spending/1079/payments_over_500,03-Apr-2023,Childrens Services,CUSTODIAN GROUP LTD,Childrens Services,630.00,Rents,2324P01_CR00045,151637,
Sandwell Metropolitan Borough Council,http://www.sandwell.gov.uk/info/200202/performance_and_spending/1079/payments_over_500,03-Apr-2023,Childrens Services,CUSTODIAN GROUP LTD,Childrens Services,630.00,Rents,2324P01_CR00046,151637,
Sandwell Metropolitan Borough Council,http://www.sandwell.gov.uk/info/200202/performance_and_spending/1079/payments_over_500,03-Apr-2023,Childrens Services,CUSTODIAN GROUP LTD,Childrens Services,630.00,Rents,2324P01_CR00047,151637,
Sandwell Metropolitan Borough Council,http://www.sandwell.gov.uk/info/200202/performance_and_spending/1079/payments_over_500,03-Apr-2023,Childrens Services,CUSTODIAN GROUP LTD,Childrens Services,630.00,Rents,2324P01_CR00048,151637,
Sandwell Metropolitan Borough Council,http://www.sandwell.gov.uk/info/200202/performance_and_spending/1079/payments_over_500,03-Apr-2023,Childrens Services,CUSTODIAN GROUP LTD,Childrens Services,630.00,Rents,2324P01_CR00049,151637,
Sandwell Metropolitan Borough Council,http://www.sandwell.gov.uk/info/200202/performance_and_spending/1079/payments_over_500,01-Apr-2023,Childrens Services,CUSTODIAN GROUP LTD,Childrens Services,630.00,Rents,2324P01_CR00050,151637,
Sandwell Metropolitan Borough Council,http://www.sandwell.gov.uk/info/200202/performance_and_spending/1079/payments_over_500,01-Apr-2023,Childrens Services,CUSTODIAN GROUP LTD,Childrens Services,630.00,Rents,2324P01_CR00051,151637,
Sandwell Metropolitan Borough Council,http://www.sandwell.gov.uk/info/200202/performance_and_spending/1079/payments_over_500,01-Apr-2023,Childrens Services,CUSTODIAN GROUP LTD,Childrens Services,630.00,Rents,2324P01_CR00052,151637,
Sandwell Metropolitan Borough Council,http://www.sandwell.gov.uk/info/200202/performance_and_spending/1079/payments_over_500,01-Apr-2023,Childrens Services,CUSTODIAN GROUP LTD,Childrens Services,630.00,Rents,2324P01_CR00053,151637,
Sandwell Metropolitan Borough Council,http://www.sandwell.gov.uk/info/200202/performance_and_spending/1079/payments_over_500,01-Apr-2023,Childrens Services,CUSTODIAN GROUP LTD,Childrens Services,630.00,Rents,2324P01_CR00054,151637,
Sandwell Metropolitan Borough Council,http://www.sandwell.gov.uk/info/200202/performance_and_spending/1079/payments_over_500,01-Apr-2023,Childrens Services,CUSTODIAN GROUP LTD,Childrens Services,630.00,Rents,2324P01_CR00055,151637,
Sandwell Metropolitan Borough Council,http://www.sandwell.gov.uk/info/200202/performance_and_spending/1079/payments_over_500,01-Apr-2023,Childrens Services,CUSTODIAN GROUP LTD,Childrens Services,630.00,Rents,2324P01_CR00056,151637,
Sandwell Metropolitan Borough Council,http://www.sandwell.gov.uk/info/200202/performance_and_spending/1079/payments_over_500,01-Apr-2023,Childrens Services,CUSTODIAN GROUP LTD,Childrens Services,630.00,Rents,2324P01_CR00057,151637,
Sandwell Metropolitan Borough Council,http://www.sandwell.gov.uk/info/200202/performance_and_spending/1079/payments_over_500,01-Apr-2023,Childrens Services,CUSTODIAN GROUP LTD,Childrens Services,630.00,Rents,2324P01_CR00058,151637,
Sandwell Metropolitan Borough Council,http://www.sandwell.gov.uk/info/200202/performance_and_spending/1079/payments_over_500,09-Apr-2023,Childrens Services,CUSTODIAN GROUP LTD,Childrens Services,630.00,Rents,2324P01_CR00059,151637,
Sandwell Metropolitan Borough Council,http://www.sandwell.gov.uk/info/200202/performance_and_spending/1079/payments_over_500,09-Apr-2023,Childrens Services,CUSTODIAN GROUP LTD,Childrens Services,630.00,Rents,2324P01_CR00060,151637,
Sandwell Metropolitan Borough Council,http://www.sandwell.gov.uk/info/200202/performance_and_spending/1079/payments_over_500,09-Apr-2023,Childrens Services,CUSTODIAN GROUP LTD,Childrens Services,630.00,Rents,2324P01_CR00061,151637,
Sandwell Metropolitan Borough Council,http://www.sandwell.gov.uk/info/200202/performance_and_spending/1079/payments_over_500,09-Apr-2023,Childrens Services,CUSTODIAN GROUP LTD,Childrens Services,630.00,Rents,2324P01_CR00062,151637,
Sandwell Metropolitan Borough Council,http://www.sandwell.gov.uk/info/200202/performance_and_spending/1079/payments_over_500,09-Apr-2023,Childrens Services,CUSTODIAN GROUP LTD,Childrens Services,630.00,Rents,2324P01_CR00063,151637,
Sandwell Metropolitan Borough Council,http://www.sandwell.gov.uk/info/200202/performance_and_spending/1079/payments_over_500,09-Apr-2023,Childrens Services,CUSTODIAN GROUP LTD,Childrens Services,630.00,Rents,2324P01_CR00064,151637,
Sandwell Metropolitan Borough Council,http://www.sandwell.gov.uk/info/200202/performance_and_spending/1079/payments_over_500,05-Apr-2023,Childrens Services,DJB PEST CONTROL,Childrens Services,635.00,Pest Control,2324P01_CR00065,119231,
Sandwell Metropolitan Borough Council,http://www.sandwell.gov.uk/info/200202/performance_and_spending/1079/payments_over_500,01-Apr-2023,Childrens Services,TOTALENERGIES GAS & POWER LTD,Childrens Services,664.56,Electricity,2324P01_CR00066,107605,
Sandwell Metropolitan Borough Council,http://www.sandwell.gov.uk/info/200202/performance_and_spending/1079/payments_over_500,26-Apr-2023,Childrens Services,SHOE ZONE LTD     ,Childrens Services,676.85,Protective Clothing & Uniforms,2324P01_CR00067,01699491,
Sandwell Metropolitan Borough Council,http://www.sandwell.gov.uk/info/200202/performance_and_spending/1079/payments_over_500,15-Apr-2023,Childrens Services,TOTALENERGIES GAS & POWER LTD,Childrens Services,707.26,Electricity,2324P01_CR00068,107605,
Sandwell Metropolitan Borough Council,http://www.sandwell.gov.uk/info/200202/performance_and_spending/1079/payments_over_500,01-Apr-2023,Childrens Services,IRON MAIDENS COMMERCIAL LAUNDRY LIMITED,Childrens Services,716.85,Laundry,2324P01_CR00069,124628,
Sandwell Metropolitan Borough Council,http://www.sandwell.gov.uk/info/200202/performance_and_spending/1079/payments_over_500,01-Apr-2023,Childrens Services,THE ALBION FOUNDATION,Childrens Services,720.00,Externally Purchased Professional Services ,2324P01_CR00070,21026659,
Sandwell Metropolitan Borough Council,http://www.sandwell.gov.uk/info/200202/performance_and_spending/1079/payments_over_500,01-Apr-2023,Childrens Services,THE ALBION FOUNDATION,Childrens Services,741.76,Externally Purchased Professional Services ,2324P01_CR00071,21026659,
Sandwell Metropolitan Borough Council,http://www.sandwell.gov.uk/info/200202/performance_and_spending/1079/payments_over_500,01-Apr-2023,Childrens Services,NORTH SMETHWICK DEVELOPMENT TRUST,Childrens Services,800.00,Catering Provisions,2324P01_CR00072,01346623,
Sandwell Metropolitan Borough Council,http://www.sandwell.gov.uk/info/200202/performance_and_spending/1079/payments_over_500,01-Apr-2023,Childrens Services,SITEWATCH FIRE AND SURVEILLANCE LIMITED,Childrens Services,874.15,Security,2324P01_CR00073,55288,
Sandwell Metropolitan Borough Council,http://www.sandwell.gov.uk/info/200202/performance_and_spending/1079/payments_over_500,01-Apr-2023,Childrens Services,TOPPS MANAGEMENT & SUPPORT SERVICES LTD,Childrens Services,996.94,Externally Purchased Professional Services ,2324P01_CR00074,68846,
Sandwell Metropolitan Borough Council,http://www.sandwell.gov.uk/info/200202/performance_and_spending/1079/payments_over_500,01-Apr-2023,Childrens Services,TOPPS MANAGEMENT & SUPPORT SERVICES LTD,Childrens Services,996.94,Externally Purchased Professional Services ,2324P01_CR00075,68846,
Sandwell Metropolitan Borough Council,http://www.sandwell.gov.uk/info/200202/performance_and_spending/1079/payments_over_500,01-Apr-2023,Childrens Services,TOPPS MANAGEMENT & SUPPORT SERVICES LTD,Childrens Services,996.94,Externally Purchased Professional Services ,2324P01_CR00076,68846,
Sandwell Metropolitan Borough Council,http://www.sandwell.gov.uk/info/200202/performance_and_spending/1079/payments_over_500,01-Apr-2023,Childrens Services,TOPPS MANAGEMENT & SUPPORT SERVICES LTD,Childrens Services,996.94,Externally Purchased Professional Services ,2324P01_CR00077,68846,
Sandwell Metropolitan Borough Council,http://www.sandwell.gov.uk/info/200202/performance_and_spending/1079/payments_over_500,01-Apr-2023,Childrens Services,TOPPS MANAGEMENT & SUPPORT SERVICES LTD,Childrens Services,996.94,Externally Purchased Professional Services ,2324P01_CR00078,68846,
Sandwell Metropolitan Borough Council,http://www.sandwell.gov.uk/info/200202/performance_and_spending/1079/payments_over_500,01-Apr-2023,Childrens Services,TOPPS MANAGEMENT & SUPPORT SERVICES LTD,Childrens Services,996.94,Externally Purchased Professional Services ,2324P01_CR00079,68846,
Sandwell Metropolitan Borough Council,http://www.sandwell.gov.uk/info/200202/performance_and_spending/1079/payments_over_500,01-Apr-2023,Childrens Services,TOPPS MANAGEMENT & SUPPORT SERVICES LTD,Childrens Services,996.94,Externally Purchased Professional Services ,2324P01_CR00080,68846,
Sandwell Metropolitan Borough Council,http://www.sandwell.gov.uk/info/200202/performance_and_spending/1079/payments_over_500,01-Apr-2023,Childrens Services,TOPPS MANAGEMENT & SUPPORT SERVICES LTD,Childrens Services,996.94,Externally Purchased Professional Services ,2324P01_CR00081,68846,
Sandwell Metropolitan Borough Council,http://www.sandwell.gov.uk/info/200202/performance_and_spending/1079/payments_over_500,01-Apr-2023,Childrens Services,MOAT FARM INFANTS SCHOOL        ,Childrens Services,1018.75,Externally Purchased Professional Services ,2324P01_CR00082,13623,
Sandwell Metropolitan Borough Council,http://www.sandwell.gov.uk/info/200202/performance_and_spending/1079/payments_over_500,07-Apr-2023,Childrens Services,HEART & SOUL COMMUNITY CIC LTD,Childrens Services,1074.28,Externally Purchased Professional Services ,2324P01_CR00083,133378,
Sandwell Metropolitan Borough Council,http://www.sandwell.gov.uk/info/200202/performance_and_spending/1079/payments_over_500,07-Apr-2023,Childrens Services,HEART & SOUL COMMUNITY CIC LTD,Childrens Services,1074.28,Externally Purchased Professional Services ,2324P01_CR00084,133378,
Sandwell Metropolitan Borough Council,http://www.sandwell.gov.uk/info/200202/performance_and_spending/1079/payments_over_500,07-Apr-2023,Childrens Services,HEART & SOUL COMMUNITY CIC LTD,Childrens Services,1074.28,Externally Purchased Professional Services ,2324P01_CR00085,133378,
Sandwell Metropolitan Borough Council,http://www.sandwell.gov.uk/info/200202/performance_and_spending/1079/payments_over_500,07-Apr-2023,Childrens Services,HEART & SOUL COMMUNITY CIC LTD,Childrens Services,1074.28,Externally Purchased Professional Services ,2324P01_CR00086,133378,
Sandwell Metropolitan Borough Council,http://www.sandwell.gov.uk/info/200202/performance_and_spending/1079/payments_over_500,07-Apr-2023,Childrens Services,HEART & SOUL COMMUNITY CIC LTD,Childrens Services,1074.28,Externally Purchased Professional Services ,2324P01_CR00087,133378,
Sandwell Metropolitan Borough Council,http://www.sandwell.gov.uk/info/200202/performance_and_spending/1079/payments_over_500,01-Apr-2023,Childrens Services,THE ALBION FOUNDATION,Childrens Services,1080.00,Externally Purchased Professional Services ,2324P01_CR00088,21026659,
Sandwell Metropolitan Borough Council,http://www.sandwell.gov.uk/info/200202/performance_and_spending/1079/payments_over_500,01-Apr-2023,Childrens Services,THE ALBION FOUNDATION,Childrens Services,1112.00,Externally Purchased Professional Services ,2324P01_CR00089,21026659,
Sandwell Metropolitan Borough Council,http://www.sandwell.gov.uk/info/200202/performance_and_spending/1079/payments_over_500,01-Apr-2023,Childrens Services,SIPS EDUCATION LTD,Childrens Services,1125.00,Contract Payments,2324P01_CR00090,110784,
Sandwell Metropolitan Borough Council,http://www.sandwell.gov.uk/info/200202/performance_and_spending/1079/payments_over_500,01-Apr-2023,Childrens Services,CHUBB FIRE & SECURITY LIMITED t/a CHUBB ELECTRONIC SECURITY,Childrens Services,1150.51,Security,2324P01_CR00091,81343,
Sandwell Metropolitan Borough Council,http://www.sandwell.gov.uk/info/200202/performance_and_spending/1079/payments_over_500,12-Apr-2023,Childrens Services,WATER PLUS SELECT LIMITED,Childrens Services,1163.32,Water Services,2324P01_CR00092,129644,
Sandwell Metropolitan Borough Council,http://www.sandwell.gov.uk/info/200202/performance_and_spending/1079/payments_over_500,01-Apr-2023,Childrens Services,HEART & SOUL COMMUNITY CIC LTD,Childrens Services,1248.16,Externally Purchased Professional Services ,2324P01_CR00093,133378,
Sandwell Metropolitan Borough Council,http://www.sandwell.gov.uk/info/200202/performance_and_spending/1079/payments_over_500,01-Apr-2023,Childrens Services,HEART & SOUL COMMUNITY CIC LTD,Childrens Services,1248.16,Externally Purchased Professional Services ,2324P01_CR00094,133378,
Sandwell Metropolitan Borough Council,http://www.sandwell.gov.uk/info/200202/performance_and_spending/1079/payments_over_500,01-Apr-2023,Childrens Services,HEART & SOUL COMMUNITY CIC LTD,Childrens Services,1248.16,Externally Purchased Professional Services ,2324P01_CR00095,133378,
Sandwell Metropolitan Borough Council,http://www.sandwell.gov.uk/info/200202/performance_and_spending/1079/payments_over_500,01-Apr-2023,Childrens Services,HEART & SOUL COMMUNITY CIC LTD,Childrens Services,1248.16,Externally Purchased Professional Services ,2324P01_CR00096,133378,
Sandwell Metropolitan Borough Council,http://www.sandwell.gov.uk/info/200202/performance_and_spending/1079/payments_over_500,01-Apr-2023,Childrens Services,HEART & SOUL COMMUNITY CIC LTD,Childrens Services,1248.16,Externally Purchased Professional Services ,2324P01_CR00097,133378,
Sandwell Metropolitan Borough Council,http://www.sandwell.gov.uk/info/200202/performance_and_spending/1079/payments_over_500,01-Apr-2023,Childrens Services,GTG TRAINING LTD,Childrens Services,1409.03,Externally Purchased Professional Services ,2324P01_CR00098,148595,
Sandwell Metropolitan Borough Council,http://www.sandwell.gov.uk/info/200202/performance_and_spending/1079/payments_over_500,01-Apr-2023,Childrens Services,GTG TRAINING LTD,Childrens Services,1409.03,Externally Purchased Professional Services ,2324P01_CR00099,148595,
Sandwell Metropolitan Borough Council,http://www.sandwell.gov.uk/info/200202/performance_and_spending/1079/payments_over_500,05-Apr-2023,Childrens Services,CALOR GAS LTD,Childrens Services,1489.90,Gas,2324P01_CR00100,01562564,
Sandwell Metropolitan Borough Council,http://www.sandwell.gov.uk/info/200202/performance_and_spending/1079/payments_over_500,25-Apr-2023,Childrens Services,THE PATCH DAY NURSERY,Childrens Services,1500.00,Grants,2324P01_CR00101,126020,
Sandwell Metropolitan Borough Council,http://www.sandwell.gov.uk/info/200202/performance_and_spending/1079/payments_over_500,01-Apr-2023,Childrens Services,APD PRINT & DESIGN,Childrens Services,1550.00,"Printing, Stationery & General Office Expenses",2324P01_CR00102,49454,
Sandwell Metropolitan Borough Council,http://www.sandwell.gov.uk/info/200202/performance_and_spending/1079/payments_over_500,01-Apr-2023,Childrens Services,WOLVERHAMPTON CITY COUNCIL,Childrens Services,1563.44,External Contract Hire,2324P01_CR00103,01374555,
Sandwell Metropolitan Borough Council,http://www.sandwell.gov.uk/info/200202/performance_and_spending/1079/payments_over_500,01-Apr-2023,Childrens Services,WEST BROMWICH ALBION FC LTD,Childrens Services,1692.00,Hire of Facilities,2324P01_CR00104,01606624,
Sandwell Metropolitan Borough Council,http://www.sandwell.gov.uk/info/200202/performance_and_spending/1079/payments_over_500,01-Apr-2023,Childrens Services,SIPS EDUCATION LTD,Childrens Services,1710.00,Contract Payments,2324P01_CR00105,110784,
Sandwell Metropolitan Borough Council,http://www.sandwell.gov.uk/info/200202/performance_and_spending/1079/payments_over_500,07-Apr-2023,Childrens Services,TOTALENERGIES GAS & POWER LTD,Childrens Services,1908.43,Electricity,2324P01_CR00106,107605,
Sandwell Metropolitan Borough Council,http://www.sandwell.gov.uk/info/200202/performance_and_spending/1079/payments_over_500,01-Apr-2023,Childrens Services,STAFFORDSHIRE COUNTY COUNCIL,Childrens Services,2177.92,External Contract Hire,2324P01_CR00107,01124861,
Sandwell Metropolitan Borough Council,http://www.sandwell.gov.uk/info/200202/performance_and_spending/1079/payments_over_500,01-Apr-2023,Childrens Services,DUDLEY MBC,Childrens Services,2500.00,"Printing, Stationery & General Office Expenses",2324P01_CR00108,01349846,
Sandwell Metropolitan Borough Council,http://www.sandwell.gov.uk/info/200202/performance_and_spending/1079/payments_over_500,15-Apr-2023,Childrens Services,TOTALENERGIES GAS & POWER LTD,Childrens Services,2668.99,Electricity,2324P01_CR00109,107605,
Sandwell Metropolitan Borough Council,http://www.sandwell.gov.uk/info/200202/performance_and_spending/1079/payments_over_500,15-Apr-2023,Childrens Services,TOTALENERGIES GAS & POWER LTD,Childrens Services,2772.14,Electricity,2324P01_CR00110,107605,
Sandwell Metropolitan Borough Council,http://www.sandwell.gov.uk/info/200202/performance_and_spending/1079/payments_over_500,01-Apr-2023,Childrens Services,GTG TRAINING LTD,Childrens Services,2815.01,Externally Purchased Professional Services ,2324P01_CR00111,148595,
Sandwell Metropolitan Borough Council,http://www.sandwell.gov.uk/info/200202/performance_and_spending/1079/payments_over_500,01-Apr-2023,Childrens Services,STAFFORDSHIRE COUNTY COUNCIL,Childrens Services,3315.42,External Contract Hire,2324P01_CR00112,01124861,
Sandwell Metropolitan Borough Council,http://www.sandwell.gov.uk/info/200202/performance_and_spending/1079/payments_over_500,20-Apr-2023,Childrens Services,SIPS EDUCATION LTD,Childrens Services,3655.00,Externally Purchased Professional Services ,2324P01_CR00113,110784,
Sandwell Metropolitan Borough Council,http://www.sandwell.gov.uk/info/200202/performance_and_spending/1079/payments_over_500,01-Apr-2023,Childrens Services,ALAN SAVILL T/A INSPIRED TRAINERS,Childrens Services,3850.00,Externally Purchased Professional Services ,2324P01_CR00114,165166,
Sandwell Metropolitan Borough Council,http://www.sandwell.gov.uk/info/200202/performance_and_spending/1079/payments_over_500,01-Apr-2023,Childrens Services,AMP BIOMASS FUEL LTD T/A AMP CLEAN ENERGY,Childrens Services,4000.59,Ingestre Hall Arts Centre.Energy Costs-Bio Energy Costs.Bio Mass Fuel.0.0.Sandwell MBC,2324P01_CR00115,128761,
Sandwell Metropolitan Borough Council,http://www.sandwell.gov.uk/info/200202/performance_and_spending/1079/payments_over_500,01-Apr-2023,Childrens Services,WOLVERHAMPTON CITY COUNCIL,Childrens Services,4034.10,External Contract Hire,2324P01_CR00116,01374555,
Sandwell Metropolitan Borough Council,http://www.sandwell.gov.uk/info/200202/performance_and_spending/1079/payments_over_500,06-Apr-2023,Childrens Services,BARNARDO SERVICES LIMITED,Childrens Services,4422.00,Hire of Facilities,2324P01_CR00117,9330,
Sandwell Metropolitan Borough Council,http://www.sandwell.gov.uk/info/200202/performance_and_spending/1079/payments_over_500,01-Apr-2023,Childrens Services,APD PRINT & DESIGN,Childrens Services,5450.00,"Printing, Stationery & General Office Expenses",2324P01_CR00118,49454,
Sandwell Metropolitan Borough Council,http://www.sandwell.gov.uk/info/200202/performance_and_spending/1079/payments_over_500,20-Apr-2023,Childrens Services,WONDE LTD,Childrens Services,5832.40,Externally Purchased Professional Services ,2324P01_CR00119,149233,
Sandwell Metropolitan Borough Council,http://www.sandwell.gov.uk/info/200202/performance_and_spending/1079/payments_over_500,01-Apr-2023,Childrens Services,WOLVERHAMPTON CITY COUNCIL,Childrens Services,6081.60,External Contract Hire,2324P01_CR00120,01374555,
Sandwell Metropolitan Borough Council,http://www.sandwell.gov.uk/info/200202/performance_and_spending/1079/payments_over_500,01-Apr-2023,Childrens Services,COGNISOFT LTD,Childrens Services,6339.37,ICT ,2324P01_CR00121,134201,
Sandwell Metropolitan Borough Council,http://www.sandwell.gov.uk/info/200202/performance_and_spending/1079/payments_over_500,01-Apr-2023,Childrens Services,DUDLEY MBC,Childrens Services,7189.69,Grants,2324P01_CR00122,01349846,
Sandwell Metropolitan Borough Council,http://www.sandwell.gov.uk/info/200202/performance_and_spending/1079/payments_over_500,01-Apr-2023,Childrens Services,APD PRINT & DESIGN,Childrens Services,7220.00,"Printing, Stationery & General Office Expenses",2324P01_CR00123,49454,
Sandwell Metropolitan Borough Council,http://www.sandwell.gov.uk/info/200202/performance_and_spending/1079/payments_over_500,01-Apr-2023,Childrens Services,LEARNING PLUS UK DATA LTD,Childrens Services,8928.62,ICT ,2324P01_CR00124,111234,
Sandwell Metropolitan Borough Council,http://www.sandwell.gov.uk/info/200202/performance_and_spending/1079/payments_over_500,01-Apr-2023,Childrens Services,ANGEL SOLUTIONS LTD,Childrens Services,9025.00,Subscriptions,2324P01_CR00125,103743,
Sandwell Metropolitan Borough Council,http://www.sandwell.gov.uk/info/200202/performance_and_spending/1079/payments_over_500,01-Apr-2023,Childrens Services,KASEARMA LTD,Childrens Services,9900.00,Externally Purchased Professional Services ,2324P01_CR00126,165398,
Sandwell Metropolitan Borough Council,http://www.sandwell.gov.uk/info/200202/performance_and_spending/1079/payments_over_500,03-Apr-2023,Childrens Services,SANDWELL CHILDREN'S TRUST,Childrens Services,10500.00,Externally Purchased Professional Services ,2324P01_CR00127,133302,
Sandwell Metropolitan Borough Council,http://www.sandwell.gov.uk/info/200202/performance_and_spending/1079/payments_over_500,01-Apr-2023,Childrens Services,TRIPLE P UK LTD,Childrens Services,12590.00,Externally Purchased Professional Services ,2324P01_CR00128,83730,
Sandwell Metropolitan Borough Council,http://www.sandwell.gov.uk/info/200202/performance_and_spending/1079/payments_over_500,01-Apr-2023,Childrens Services,PENNYHILL PRIMARY SCHOOL,Childrens Services,16148.09,Gas,2324P01_CR00129,73032,
Sandwell Metropolitan Borough Council,http://www.sandwell.gov.uk/info/200202/performance_and_spending/1079/payments_over_500,01-Apr-2023,Childrens Services,TELFORD & WREKIN COUNCIL,Childrens Services,21662.84,Business Rates,2324P01_CR00130,01586981,
Sandwell Metropolitan Borough Council,http://www.sandwell.gov.uk/info/200202/performance_and_spending/1079/payments_over_500,03-Apr-2023,Childrens Services,SANDWELL ACADEMY TRUST LTD,Childrens Services,21675.00,Public Transport,2324P01_CR00131,62330,
Sandwell Metropolitan Borough Council,http://www.sandwell.gov.uk/info/200202/performance_and_spending/1079/payments_over_500,03-Apr-2023,Childrens Services,SANDWELL ACADEMY TRUST LTD,Childrens Services,21845.00,Public Transport,2324P01_CR00132,62330,
Sandwell Metropolitan Borough Council,http://www.sandwell.gov.uk/info/200202/performance_and_spending/1079/payments_over_500,01-Apr-2023,Childrens Services,WOLVERHAMPTON CITY COUNCIL,Childrens Services,23687.00,SH Payments,2324P01_CR00133,01374555,
Sandwell Metropolitan Borough Council,http://www.sandwell.gov.uk/info/200202/performance_and_spending/1079/payments_over_500,01-Apr-2023,Childrens Services,ACTION FOR CHILDREN SERVICES LIMITED,Childrens Services,30465.48,Externally Purchased Professional Services ,2324P01_CR00134,111189,
Sandwell Metropolitan Borough Council,http://www.sandwell.gov.uk/info/200202/performance_and_spending/1079/payments_over_500,01-Apr-2023,Childrens Services,GL EDUCATION GROUP LIMITED,Childrens Services,86380.56,Externally Purchased Professional Services ,2324P01_CR00135,01447883,
Sandwell Metropolitan Borough Council,http://www.sandwell.gov.uk/info/200202/performance_and_spending/1079/payments_over_500,04-Apr-2023,Childrens Services,EGANS COACH TRAVEL LTD T/A KINGS NORTON COACHES,Childrens Services,187462.36,Public Transport,2324P01_CR00136,164676,
Sandwell Metropolitan Borough Council,http://www.sandwell.gov.uk/info/200202/performance_and_spending/1079/payments_over_500,13-Apr-2023,Childrens Services,BARNARDO SERVICES LIMITED,Childrens Services,887558.95,Contract Payments,2324P01_CR00137,9330,
Sandwell Metropolitan Borough Council,http://www.sandwell.gov.uk/info/200202/performance_and_spending/1079/payments_over_500,03-Apr-2023,Childrens Services,SANDWELL CHILDREN'S TRUST,Childrens Services,2735398.49,Other Establishments,2324P01_CR00138,133302,
Sandwell Metropolitan Borough Council,http://www.sandwell.gov.uk/info/200202/performance_and_spending/1079/payments_over_500,20-Apr-2023,Childrens Services,SANDWELL CHILDREN'S TRUST,Childrens Services,5705769.23,Other Establishments,2324P01_CR00139,133302,
Sandwell Metropolitan Borough Council,http://www.sandwell.gov.uk/info/200202/performance_and_spending/1079/payments_over_500,11-Apr-2023,Childrens Services,REDACTED PERSONAL DATA,Childrens Services,509.76,External Contract Hire,2324P01_CR00140,REDACTED PERSONAL DATA,
Sandwell Metropolitan Borough Council,http://www.sandwell.gov.uk/info/200202/performance_and_spending/1079/payments_over_500,11-Apr-2023,Childrens Services,REDACTED PERSONAL DATA,Childrens Services,545.45,External Contract Hire,2324P01_CR00141,REDACTED PERSONAL DATA,
Sandwell Metropolitan Borough Council,http://www.sandwell.gov.uk/info/200202/performance_and_spending/1079/payments_over_500,11-Apr-2023,Childrens Services,REDACTED PERSONAL DATA,Childrens Services,545.45,External Contract Hire,2324P01_CR00142,REDACTED PERSONAL DATA,
Sandwell Metropolitan Borough Council,http://www.sandwell.gov.uk/info/200202/performance_and_spending/1079/payments_over_500,11-Apr-2023,Childrens Services,REDACTED PERSONAL DATA,Childrens Services,545.45,External Contract Hire,2324P01_CR00143,REDACTED PERSONAL DATA,
Sandwell Metropolitan Borough Council,http://www.sandwell.gov.uk/info/200202/performance_and_spending/1079/payments_over_500,11-Apr-2023,Childrens Services,REDACTED PERSONAL DATA,Childrens Services,545.45,External Contract Hire,2324P01_CR00144,REDACTED PERSONAL DATA,
Sandwell Metropolitan Borough Council,http://www.sandwell.gov.uk/info/200202/performance_and_spending/1079/payments_over_500,11-Apr-2023,Childrens Services,REDACTED PERSONAL DATA,Childrens Services,545.45,External Contract Hire,2324P01_CR00145,REDACTED PERSONAL DATA,
Sandwell Metropolitan Borough Council,http://www.sandwell.gov.uk/info/200202/performance_and_spending/1079/payments_over_500,11-Apr-2023,Childrens Services,REDACTED PERSONAL DATA,Childrens Services,545.45,External Contract Hire,2324P01_CR00146,REDACTED PERSONAL DATA,
Sandwell Metropolitan Borough Council,http://www.sandwell.gov.uk/info/200202/performance_and_spending/1079/payments_over_500,11-Apr-2023,Childrens Services,REDACTED PERSONAL DATA,Childrens Services,545.45,External Contract Hire,2324P01_CR00147,REDACTED PERSONAL DATA,
Sandwell Metropolitan Borough Council,http://www.sandwell.gov.uk/info/200202/performance_and_spending/1079/payments_over_500,11-Apr-2023,Childrens Services,REDACTED PERSONAL DATA,Childrens Services,545.45,External Contract Hire,2324P01_CR00148,REDACTED PERSONAL DATA,
Sandwell Metropolitan Borough Council,http://www.sandwell.gov.uk/info/200202/performance_and_spending/1079/payments_over_500,11-Apr-2023,Childrens Services,REDACTED PERSONAL DATA,Childrens Services,545.45,External Contract Hire,2324P01_CR00149,REDACTED PERSONAL DATA,
Sandwell Metropolitan Borough Council,http://www.sandwell.gov.uk/info/200202/performance_and_spending/1079/payments_over_500,11-Apr-2023,Childrens Services,REDACTED PERSONAL DATA,Childrens Services,545.45,External Contract Hire,2324P01_CR00150,REDACTED PERSONAL DATA,
Sandwell Metropolitan Borough Council,http://www.sandwell.gov.uk/info/200202/performance_and_spending/1079/payments_over_500,11-Apr-2023,Childrens Services,REDACTED PERSONAL DATA,Childrens Services,545.45,External Contract Hire,2324P01_CR00151,REDACTED PERSONAL DATA,
Sandwell Metropolitan Borough Council,http://www.sandwell.gov.uk/info/200202/performance_and_spending/1079/payments_over_500,11-Apr-2023,Childrens Services,REDACTED PERSONAL DATA,Childrens Services,545.45,External Contract Hire,2324P01_CR00152,REDACTED PERSONAL DATA,
Sandwell Metropolitan Borough Council,http://www.sandwell.gov.uk/info/200202/performance_and_spending/1079/payments_over_500,11-Apr-2023,Childrens Services,REDACTED PERSONAL DATA,Childrens Services,545.45,External Contract Hire,2324P01_CR00153,REDACTED PERSONAL DATA,
Sandwell Metropolitan Borough Council,http://www.sandwell.gov.uk/info/200202/performance_and_spending/1079/payments_over_500,11-Apr-2023,Childrens Services,REDACTED PERSONAL DATA,Childrens Services,545.45,External Contract Hire,2324P01_CR00154,REDACTED PERSONAL DATA,
Sandwell Metropolitan Borough Council,http://www.sandwell.gov.uk/info/200202/performance_and_spending/1079/payments_over_500,11-Apr-2023,Childrens Services,REDACTED PERSONAL DATA,Childrens Services,545.45,External Contract Hire,2324P01_CR00155,REDACTED PERSONAL DATA,
Sandwell Metropolitan Borough Council,http://www.sandwell.gov.uk/info/200202/performance_and_spending/1079/payments_over_500,11-Apr-2023,Childrens Services,REDACTED PERSONAL DATA,Childrens Services,545.45,External Contract Hire,2324P01_CR00156,REDACTED PERSONAL DATA,
Sandwell Metropolitan Borough Council,http://www.sandwell.gov.uk/info/200202/performance_and_spending/1079/payments_over_500,11-Apr-2023,Childrens Services,REDACTED PERSONAL DATA,Childrens Services,545.45,External Contract Hire,2324P01_CR00157,REDACTED PERSONAL DATA,
Sandwell Metropolitan Borough Council,http://www.sandwell.gov.uk/info/200202/performance_and_spending/1079/payments_over_500,11-Apr-2023,Childrens Services,REDACTED PERSONAL DATA,Childrens Services,545.45,External Contract Hire,2324P01_CR00158,REDACTED PERSONAL DATA,
Sandwell Metropolitan Borough Council,http://www.sandwell.gov.uk/info/200202/performance_and_spending/1079/payments_over_500,11-Apr-2023,Childrens Services,REDACTED PERSONAL DATA,Childrens Services,545.45,External Contract Hire,2324P01_CR00159,REDACTED PERSONAL DATA,
Sandwell Metropolitan Borough Council,http://www.sandwell.gov.uk/info/200202/performance_and_spending/1079/payments_over_500,11-Apr-2023,Childrens Services,REDACTED PERSONAL DATA,Childrens Services,727.27,External Contract Hire,2324P01_CR00160,REDACTED PERSONAL DATA,
Sandwell Metropolitan Borough Council,http://www.sandwell.gov.uk/info/200202/performance_and_spending/1079/payments_over_500,11-Apr-2023,Childrens Services,REDACTED PERSONAL DATA,Childrens Services,727.27,External Contract Hire,2324P01_CR00161,REDACTED PERSONAL DATA,
Sandwell Metropolitan Borough Council,http://www.sandwell.gov.uk/info/200202/performance_and_spending/1079/payments_over_500,11-Apr-2023,Childrens Services,REDACTED PERSONAL DATA,Childrens Services,727.27,External Contract Hire,2324P01_CR00162,REDACTED PERSONAL DATA,
Sandwell Metropolitan Borough Council,http://www.sandwell.gov.uk/info/200202/performance_and_spending/1079/payments_over_500,11-Apr-2023,Childrens Services,REDACTED PERSONAL DATA,Childrens Services,727.27,External Contract Hire,2324P01_CR00163,REDACTED PERSONAL DATA,
Sandwell Metropolitan Borough Council,http://www.sandwell.gov.uk/info/200202/performance_and_spending/1079/payments_over_500,11-Apr-2023,Childrens Services,REDACTED PERSONAL DATA,Childrens Services,727.27,External Contract Hire,2324P01_CR00164,REDACTED PERSONAL DATA,
Sandwell Metropolitan Borough Council,http://www.sandwell.gov.uk/info/200202/performance_and_spending/1079/payments_over_500,11-Apr-2023,Childrens Services,REDACTED PERSONAL DATA,Childrens Services,727.27,External Contract Hire,2324P01_CR00165,REDACTED PERSONAL DATA,
Sandwell Metropolitan Borough Council,http://www.sandwell.gov.uk/info/200202/performance_and_spending/1079/payments_over_500,11-Apr-2023,Childrens Services,REDACTED PERSONAL DATA,Childrens Services,727.27,External Contract Hire,2324P01_CR00166,REDACTED PERSONAL DATA,
Sandwell Metropolitan Borough Council,http://www.sandwell.gov.uk/info/200202/performance_and_spending/1079/payments_over_500,11-Apr-2023,Childrens Services,REDACTED PERSONAL DATA,Childrens Services,727.27,External Contract Hire,2324P01_CR00167,REDACTED PERSONAL DATA,
Sandwell Metropolitan Borough Council,http://www.sandwell.gov.uk/info/200202/performance_and_spending/1079/payments_over_500,11-Apr-2023,Childrens Services,REDACTED PERSONAL DATA,Childrens Services,727.27,External Contract Hire,2324P01_CR00168,REDACTED PERSONAL DATA,
Sandwell Metropolitan Borough Council,http://www.sandwell.gov.uk/info/200202/performance_and_spending/1079/payments_over_500,11-Apr-2023,Childrens Services,REDACTED PERSONAL DATA,Childrens Services,727.28,External Contract Hire,2324P01_CR00169,REDACTED PERSONAL DATA,
Sandwell Metropolitan Borough Council,http://www.sandwell.gov.uk/info/200202/performance_and_spending/1079/payments_over_500,11-Apr-2023,Childrens Services,REDACTED PERSONAL DATA,Childrens Services,727.28,External Contract Hire,2324P01_CR00170,REDACTED PERSONAL DATA,
Sandwell Metropolitan Borough Council,http://www.sandwell.gov.uk/info/200202/performance_and_spending/1079/payments_over_500,11-Apr-2023,Childrens Services,REDACTED PERSONAL DATA,Childrens Services,800.00,External Contract Hire,2324P01_CR00171,REDACTED PERSONAL DATA,
Sandwell Metropolitan Borough Council,http://www.sandwell.gov.uk/info/200202/performance_and_spending/1079/payments_over_500,11-Apr-2023,Childrens Services,REDACTED PERSONAL DATA,Childrens Services,909.09,External Contract Hire,2324P01_CR00172,REDACTED PERSONAL DATA,
Sandwell Metropolitan Borough Council,http://www.sandwell.gov.uk/info/200202/performance_and_spending/1079/payments_over_500,11-Apr-2023,Childrens Services,REDACTED PERSONAL DATA,Childrens Services,1090.90,External Contract Hire,2324P01_CR00173,REDACTED PERSONAL DATA,
Sandwell Metropolitan Borough Council,http://www.sandwell.gov.uk/info/200202/performance_and_spending/1079/payments_over_500,06-Apr-2023,Childrens Services,THE BRANCH,Childrens Services,3886.00,Grant Payments,2324P01_CR00174,08588514,
Sandwell Metropolitan Borough Council,http://www.sandwell.gov.uk/info/200202/performance_and_spending/1079/payments_over_500,27-Apr-2023,Childrens Services,SADWICA DAY NURSERY,Childrens Services,7538.00,Grant Payments,2324P01_CR00175,01667892,
Sandwell Metropolitan Borough Council,http://www.sandwell.gov.uk/info/200202/performance_and_spending/1079/payments_over_500,27-Apr-2023,Childrens Services,IDEAL FOR ALL LIMITED,Childrens Services,14046.00,Grant Payments,2324P01_CR00176,01678484,
Sandwell Metropolitan Borough Council,http://www.sandwell.gov.uk/info/200202/performance_and_spending/1079/payments_over_500,27-Apr-2023,Childrens Services,LION FARM ACTION CENTRE (SANDWELL) LTD,Childrens Services,35700.50,Grant Payments,2324P01_CR00177,21023409,
Sandwell Metropolitan Borough Council,http://www.sandwell.gov.uk/info/200202/performance_and_spending/1079/payments_over_500,27-Apr-2023,Childrens Services,S.C.V.O.,Childrens Services,40858.50,Grant Payments,2324P01_CR00178,109813,
Sandwell Metropolitan Borough Council,http://www.sandwell.gov.uk/info/200202/performance_and_spending/1079/payments_over_500,06-Apr-2023,Childrens Services,MURRAY HALL COMMUNITY TRUST,Childrens Services,41415.00,Grant Payments,2324P01_CR00179,01627284,
Sandwell Metropolitan Borough Council,http://www.sandwell.gov.uk/info/200202/performance_and_spending/1079/payments_over_500,06-Apr-2023,Childrens Services,GROUNDWORK WEST MIDLANDS,Childrens Services,47913.00,Grant Payments,2324P01_CR00180,92743,
Sandwell Metropolitan Borough Council,http://www.sandwell.gov.uk/info/200202/performance_and_spending/1079/payments_over_500,06-Apr-2023,Childrens Services,SKILLS WORK AND ENTERPRISE DEVELOPMENT AGENCY LTD,Childrens Services,50633.50,Grant Payments,2324P01_CR00181,5092,
Sandwell Metropolitan Borough Council,http://www.sandwell.gov.uk/info/200202/performance_and_spending/1079/payments_over_500,06-Apr-2023,Childrens Services,POWERED BY CAN LTD,Childrens Services,62664.00,Grant Payments,2324P01_CR00182,116825,
Sandwell Metropolitan Borough Council,http://www.sandwell.gov.uk/info/200202/performance_and_spending/1079/payments_over_500,01-Apr-2023,Childrens Services Capital,SEDDON CONSTRUCTION LIMITED,Childrens Services Capital,22736.14,"CIP - New Construction,Conversion, Enhancement & Reno",2324P01_CR00183,132999,
Sandwell Metropolitan Borough Council,http://www.sandwell.gov.uk/info/200202/performance_and_spending/1079/payments_over_500,01-Apr-2023,Childrens Services Capital,SEDDON CONSTRUCTION LIMITED,Childrens Services Capital,23612.41,"CIP - New Construction,Conversion, Enhancement & Reno",2324P01_CR00184,132999,
Sandwell Metropolitan Borough Council,http://www.sandwell.gov.uk/info/200202/performance_and_spending/1079/payments_over_500,01-Apr-2023,Childrens Services Capital,COMPLETE CLOUD SERVICES LTD,Childrens Services Capital,32358.48,"CIP - New Construction,Conversion, Enhancement & Reno",2324P01_CR00185,165674,
Sandwell Metropolitan Borough Council,http://www.sandwell.gov.uk/info/200202/performance_and_spending/1079/payments_over_500,01-Apr-2023,Childrens Services Capital,SEDDON CONSTRUCTION LIMITED,Childrens Services Capital,235519.33,"CIP - New Construction,Conversion, Enhancement & Reno",2324P01_CR00186,132999,
Sandwell Metropolitan Borough Council,http://www.sandwell.gov.uk/info/200202/performance_and_spending/1079/payments_over_500,18-Apr-2023,Corporate Management,GRESHAM OFFICE FURNITURE LTD,Corporate Management,573.30,Equipment & Furniture ,2324P01_CR00187,93465,
Sandwell Metropolitan Borough Council,http://www.sandwell.gov.uk/info/200202/performance_and_spending/1079/payments_over_500,12-Apr-2023,Corporate Management,LOCAL GOVERNMENT ASSOCIATION,Corporate Management,1667.70,Hire of Facilities,2324P01_CR00188,01645246,
Sandwell Metropolitan Borough Council,http://www.sandwell.gov.uk/info/200202/performance_and_spending/1079/payments_over_500,24-Apr-2023,FINANCE (Inc SIU),SYMON HALL LAW LTD,Assistant Chief Executive (Excl SIU),500.00,Insurance,2324P01_CR00189,165861,
Sandwell Metropolitan Borough Council,http://www.sandwell.gov.uk/info/200202/performance_and_spending/1079/payments_over_500,17-Apr-2023,FINANCE (Inc SIU),BROWNE JACOBSON LLP,Assistant Chief Executive (Excl SIU),503.90,Externally Purchased Professional Services ,2324P01_CR00190,109574,
Sandwell Metropolitan Borough Council,http://www.sandwell.gov.uk/info/200202/performance_and_spending/1079/payments_over_500,12-Apr-2023,FINANCE (Inc SIU),BROWNE JACOBSON LLP,Assistant Chief Executive (Excl SIU),540.80,Externally Purchased Professional Services ,2324P01_CR00191,109574,
Sandwell Metropolitan Borough Council,http://www.sandwell.gov.uk/info/200202/performance_and_spending/1079/payments_over_500,12-Apr-2023,FINANCE (Inc SIU),BROWNE JACOBSON LLP,Assistant Chief Executive (Excl SIU),574.60,Externally Purchased Professional Services ,2324P01_CR00192,109574,
Sandwell Metropolitan Borough Council,http://www.sandwell.gov.uk/info/200202/performance_and_spending/1079/payments_over_500,11-Apr-2023,FINANCE (Inc SIU),BROWNE JACOBSON LLP,Assistant Chief Executive (Excl SIU),574.60,Externally Purchased Professional Services ,2324P01_CR00193,109574,
Sandwell Metropolitan Borough Council,http://www.sandwell.gov.uk/info/200202/performance_and_spending/1079/payments_over_500,01-Apr-2023,FINANCE (Inc SIU),BROWNE JACOBSON LLP,Assistant Chief Executive (Excl SIU),591.50,Externally Purchased Professional Services ,2324P01_CR00194,109574,
Sandwell Metropolitan Borough Council,http://www.sandwell.gov.uk/info/200202/performance_and_spending/1079/payments_over_500,01-Apr-2023,FINANCE (Inc SIU),BROWNE JACOBSON LLP,Assistant Chief Executive (Excl SIU),601.90,Externally Purchased Professional Services ,2324P01_CR00195,109574,
Sandwell Metropolitan Borough Council,http://www.sandwell.gov.uk/info/200202/performance_and_spending/1079/payments_over_500,21-Apr-2023,FINANCE (Inc SIU),BROWNE JACOBSON LLP,Assistant Chief Executive (Excl SIU),608.40,Externally Purchased Professional Services ,2324P01_CR00196,109574,
Sandwell Metropolitan Borough Council,http://www.sandwell.gov.uk/info/200202/performance_and_spending/1079/payments_over_500,14-Apr-2023,FINANCE (Inc SIU),BROWNE JACOBSON LLP,Assistant Chief Executive (Excl SIU),608.40,Externally Purchased Professional Services ,2324P01_CR00197,109574,
Sandwell Metropolitan Borough Council,http://www.sandwell.gov.uk/info/200202/performance_and_spending/1079/payments_over_500,28-Apr-2023,FINANCE (Inc SIU),BROWNE JACOBSON LLP,Assistant Chief Executive (Excl SIU),659.10,Externally Purchased Professional Services ,2324P01_CR00198,109574,
Sandwell Metropolitan Borough Council,http://www.sandwell.gov.uk/info/200202/performance_and_spending/1079/payments_over_500,27-Apr-2023,FINANCE (Inc SIU),BROWNE JACOBSON LLP,Assistant Chief Executive (Excl SIU),689.00,Externally Purchased Professional Services ,2324P01_CR00199,109574,
Sandwell Metropolitan Borough Council,http://www.sandwell.gov.uk/info/200202/performance_and_spending/1079/payments_over_500,01-Apr-2023,FINANCE (Inc SIU),BROWNE JACOBSON LLP,Assistant Chief Executive (Excl SIU),709.80,Externally Purchased Professional Services ,2324P01_CR00200,109574,
Sandwell Metropolitan Borough Council,http://www.sandwell.gov.uk/info/200202/performance_and_spending/1079/payments_over_500,21-Apr-2023,FINANCE (Inc SIU),DWP,Assistant Chief Executive (Excl SIU),725.00,Insurance,2324P01_CR00201,01753867,
Sandwell Metropolitan Borough Council,http://www.sandwell.gov.uk/info/200202/performance_and_spending/1079/payments_over_500,26-Apr-2023,FINANCE (Inc SIU),BROWNE JACOBSON LLP,Assistant Chief Executive (Excl SIU),742.80,Externally Purchased Professional Services ,2324P01_CR00202,109574,
Sandwell Metropolitan Borough Council,http://www.sandwell.gov.uk/info/200202/performance_and_spending/1079/payments_over_500,14-Apr-2023,FINANCE (Inc SIU),DWP,Assistant Chief Executive (Excl SIU),744.00,Insurance,2324P01_CR00203,01753867,
Sandwell Metropolitan Borough Council,http://www.sandwell.gov.uk/info/200202/performance_and_spending/1079/payments_over_500,25-Apr-2023,FINANCE (Inc SIU),BROWNE JACOBSON LLP,Assistant Chief Executive (Excl SIU),748.80,Externally Purchased Professional Services ,2324P01_CR00204,109574,
Sandwell Metropolitan Borough Council,http://www.sandwell.gov.uk/info/200202/performance_and_spending/1079/payments_over_500,12-Apr-2023,FINANCE (Inc SIU),BROWNE JACOBSON LLP,Assistant Chief Executive (Excl SIU),760.50,Externally Purchased Professional Services ,2324P01_CR00205,109574,
Sandwell Metropolitan Borough Council,http://www.sandwell.gov.uk/info/200202/performance_and_spending/1079/payments_over_500,11-Apr-2023,FINANCE (Inc SIU),BROWNE JACOBSON LLP,Assistant Chief Executive (Excl SIU),769.60,Externally Purchased Professional Services ,2324P01_CR00206,109574,
Sandwell Metropolitan Borough Council,http://www.sandwell.gov.uk/info/200202/performance_and_spending/1079/payments_over_500,11-Apr-2023,FINANCE (Inc SIU),BROWNE JACOBSON LLP,Assistant Chief Executive (Excl SIU),824.00,Externally Purchased Professional Services ,2324P01_CR00207,109574,
Sandwell Metropolitan Borough Council,http://www.sandwell.gov.uk/info/200202/performance_and_spending/1079/payments_over_500,24-Apr-2023,FINANCE (Inc SIU),ST MICHAELS CE HIGH SCHOOL,Assistant Chief Executive (Excl SIU),849.50,Insurance,2324P01_CR00208,60948,
Sandwell Metropolitan Borough Council,http://www.sandwell.gov.uk/info/200202/performance_and_spending/1079/payments_over_500,14-Apr-2023,FINANCE (Inc SIU),BROWNE JACOBSON LLP,Assistant Chief Executive (Excl SIU),888.00,Externally Purchased Professional Services ,2324P01_CR00209,109574,
Sandwell Metropolitan Borough Council,http://www.sandwell.gov.uk/info/200202/performance_and_spending/1079/payments_over_500,21-Apr-2023,FINANCE (Inc SIU),BROWNE JACOBSON LLP,Assistant Chief Executive (Excl SIU),924.60,Externally Purchased Professional Services ,2324P01_CR00210,109574,
Sandwell Metropolitan Borough Council,http://www.sandwell.gov.uk/info/200202/performance_and_spending/1079/payments_over_500,11-Apr-2023,FINANCE (Inc SIU),BROWNE JACOBSON LLP,Assistant Chief Executive (Excl SIU),929.50,Externally Purchased Professional Services ,2324P01_CR00211,109574,
Sandwell Metropolitan Borough Council,http://www.sandwell.gov.uk/info/200202/performance_and_spending/1079/payments_over_500,06-Apr-2023,FINANCE (Inc SIU),BROWNE JACOBSON LLP,Assistant Chief Executive (Excl SIU),934.10,Externally Purchased Professional Services ,2324P01_CR00212,109574,
Sandwell Metropolitan Borough Council,http://www.sandwell.gov.uk/info/200202/performance_and_spending/1079/payments_over_500,01-Apr-2023,FINANCE (Inc SIU),BROWNE JACOBSON LLP,Assistant Chief Executive (Excl SIU),963.30,Externally Purchased Professional Services ,2324P01_CR00213,109574,
Sandwell Metropolitan Borough Council,http://www.sandwell.gov.uk/info/200202/performance_and_spending/1079/payments_over_500,01-Apr-2023,FINANCE (Inc SIU),BROWNE JACOBSON LLP,Assistant Chief Executive (Excl SIU),970.90,Externally Purchased Professional Services ,2324P01_CR00214,109574,
Sandwell Metropolitan Borough Council,http://www.sandwell.gov.uk/info/200202/performance_and_spending/1079/payments_over_500,01-Apr-2023,FINANCE (Inc SIU),BROWNE JACOBSON LLP,Assistant Chief Executive (Excl SIU),980.20,Externally Purchased Professional Services ,2324P01_CR00215,109574,
Sandwell Metropolitan Borough Council,http://www.sandwell.gov.uk/info/200202/performance_and_spending/1079/payments_over_500,28-Apr-2023,FINANCE (Inc SIU),BROWNE JACOBSON LLP,Assistant Chief Executive (Excl SIU),997.10,Externally Purchased Professional Services ,2324P01_CR00216,109574,
Sandwell Metropolitan Borough Council,http://www.sandwell.gov.uk/info/200202/performance_and_spending/1079/payments_over_500,24-Apr-2023,FINANCE (Inc SIU),COBLEYS LLP,Assistant Chief Executive (Excl SIU),1000.00,Insurance,2324P01_CR00217,110381,
Sandwell Metropolitan Borough Council,http://www.sandwell.gov.uk/info/200202/performance_and_spending/1079/payments_over_500,06-Apr-2023,FINANCE (Inc SIU),SHAKESPEARE MARTINEAU,Assistant Chief Executive (Excl SIU),1012.20,Insurance,2324P01_CR00218,1506,
Sandwell Metropolitan Borough Council,http://www.sandwell.gov.uk/info/200202/performance_and_spending/1079/payments_over_500,27-Apr-2023,FINANCE (Inc SIU),BROWNE JACOBSON LLP,Assistant Chief Executive (Excl SIU),1052.10,Externally Purchased Professional Services ,2324P01_CR00219,109574,
Sandwell Metropolitan Borough Council,http://www.sandwell.gov.uk/info/200202/performance_and_spending/1079/payments_over_500,26-Apr-2023,FINANCE (Inc SIU),GOWING LAW SOLICITORS,Assistant Chief Executive (Excl SIU),1062.00,Insurance,2324P01_CR00220,163069,
Sandwell Metropolitan Borough Council,http://www.sandwell.gov.uk/info/200202/performance_and_spending/1079/payments_over_500,04-Apr-2023,FINANCE (Inc SIU),BROWNE JACOBSON LLP,Assistant Chief Executive (Excl SIU),1071.40,Externally Purchased Professional Services ,2324P01_CR00221,109574,
Sandwell Metropolitan Borough Council,http://www.sandwell.gov.uk/info/200202/performance_and_spending/1079/payments_over_500,19-Apr-2023,FINANCE (Inc SIU),BROWNE JACOBSON LLP,Assistant Chief Executive (Excl SIU),1132.30,Externally Purchased Professional Services ,2324P01_CR00222,109574,
Sandwell Metropolitan Borough Council,http://www.sandwell.gov.uk/info/200202/performance_and_spending/1079/payments_over_500,27-Apr-2023,FINANCE (Inc SIU),BROWNE JACOBSON LLP,Assistant Chief Executive (Excl SIU),1186.70,Externally Purchased Professional Services ,2324P01_CR00223,109574,
Sandwell Metropolitan Borough Council,http://www.sandwell.gov.uk/info/200202/performance_and_spending/1079/payments_over_500,28-Apr-2023,FINANCE (Inc SIU),BROWNE JACOBSON LLP,Assistant Chief Executive (Excl SIU),1190.60,Externally Purchased Professional Services ,2324P01_CR00224,109574,
Sandwell Metropolitan Borough Council,http://www.sandwell.gov.uk/info/200202/performance_and_spending/1079/payments_over_500,21-Apr-2023,FINANCE (Inc SIU),ROBERT BINGHAM LTD,Assistant Chief Executive (Excl SIU),1250.00,Insurance,2324P01_CR00225,164179,
Sandwell Metropolitan Borough Council,http://www.sandwell.gov.uk/info/200202/performance_and_spending/1079/payments_over_500,21-Apr-2023,FINANCE (Inc SIU),BROWNE JACOBSON LLP,Assistant Chief Executive (Excl SIU),1279.50,Externally Purchased Professional Services ,2324P01_CR00226,109574,
Sandwell Metropolitan Borough Council,http://www.sandwell.gov.uk/info/200202/performance_and_spending/1079/payments_over_500,01-Apr-2023,FINANCE (Inc SIU),BROWNE JACOBSON LLP,Assistant Chief Executive (Excl SIU),1301.30,Externally Purchased Professional Services ,2324P01_CR00227,109574,
Sandwell Metropolitan Borough Council,http://www.sandwell.gov.uk/info/200202/performance_and_spending/1079/payments_over_500,06-Apr-2023,FINANCE (Inc SIU),SATCHELL MORAN SOLICITORS,Assistant Chief Executive (Excl SIU),1350.00,Insurance,2324P01_CR00228,154265,
Sandwell Metropolitan Borough Council,http://www.sandwell.gov.uk/info/200202/performance_and_spending/1079/payments_over_500,01-Apr-2023,FINANCE (Inc SIU),BROWNE JACOBSON LLP,Assistant Chief Executive (Excl SIU),1411.50,Externally Purchased Professional Services ,2324P01_CR00229,109574,
Sandwell Metropolitan Borough Council,http://www.sandwell.gov.uk/info/200202/performance_and_spending/1079/payments_over_500,24-Apr-2023,FINANCE (Inc SIU),ST MICHAELS CE HIGH SCHOOL,Assistant Chief Executive (Excl SIU),1440.01,Insurance,2324P01_CR00230,60948,
Sandwell Metropolitan Borough Council,http://www.sandwell.gov.uk/info/200202/performance_and_spending/1079/payments_over_500,06-Apr-2023,FINANCE (Inc SIU),VIRGIN  MEDIA  LTD,Assistant Chief Executive (Excl SIU),1481.68,Insurance,2324P01_CR00231,129285,
Sandwell Metropolitan Borough Council,http://www.sandwell.gov.uk/info/200202/performance_and_spending/1079/payments_over_500,18-Apr-2023,FINANCE (Inc SIU),COBLEYS LLP,Assistant Chief Executive (Excl SIU),1500.00,Insurance,2324P01_CR00232,110381,
Sandwell Metropolitan Borough Council,http://www.sandwell.gov.uk/info/200202/performance_and_spending/1079/payments_over_500,04-Apr-2023,FINANCE (Inc SIU),MATRIX SOLICITORS,Assistant Chief Executive (Excl SIU),1500.00,Insurance,2324P01_CR00233,150465,
Sandwell Metropolitan Borough Council,http://www.sandwell.gov.uk/info/200202/performance_and_spending/1079/payments_over_500,28-Apr-2023,FINANCE (Inc SIU),BROWNE JACOBSON LLP,Assistant Chief Executive (Excl SIU),1519.50,Externally Purchased Professional Services ,2324P01_CR00234,109574,
Sandwell Metropolitan Borough Council,http://www.sandwell.gov.uk/info/200202/performance_and_spending/1079/payments_over_500,01-Apr-2023,FINANCE (Inc SIU),BROWNE JACOBSON LLP,Assistant Chief Executive (Excl SIU),1590.10,Externally Purchased Professional Services ,2324P01_CR00235,109574,
Sandwell Metropolitan Borough Council,http://www.sandwell.gov.uk/info/200202/performance_and_spending/1079/payments_over_500,01-Apr-2023,FINANCE (Inc SIU),BROWNE JACOBSON LLP,Assistant Chief Executive (Excl SIU),1706.90,Externally Purchased Professional Services ,2324P01_CR00236,109574,
Sandwell Metropolitan Borough Council,http://www.sandwell.gov.uk/info/200202/performance_and_spending/1079/payments_over_500,27-Apr-2023,FINANCE (Inc SIU),BROWNE JACOBSON LLP,Assistant Chief Executive (Excl SIU),1827.50,Externally Purchased Professional Services ,2324P01_CR00237,109574,
Sandwell Metropolitan Borough Council,http://www.sandwell.gov.uk/info/200202/performance_and_spending/1079/payments_over_500,26-Apr-2023,FINANCE (Inc SIU),BROWNE JACOBSON LLP,Assistant Chief Executive (Excl SIU),1860.50,Externally Purchased Professional Services ,2324P01_CR00238,109574,
Sandwell Metropolitan Borough Council,http://www.sandwell.gov.uk/info/200202/performance_and_spending/1079/payments_over_500,24-Apr-2023,FINANCE (Inc SIU),MATRIX SOLICITORS,Assistant Chief Executive (Excl SIU),2000.00,Insurance,2324P01_CR00239,150465,
Sandwell Metropolitan Borough Council,http://www.sandwell.gov.uk/info/200202/performance_and_spending/1079/payments_over_500,11-Apr-2023,FINANCE (Inc SIU),MATRIX SOLICITORS,Assistant Chief Executive (Excl SIU),2000.00,Insurance,2324P01_CR00240,150465,
Sandwell Metropolitan Borough Council,http://www.sandwell.gov.uk/info/200202/performance_and_spending/1079/payments_over_500,27-Apr-2023,FINANCE (Inc SIU),DRISCOLL KINGSTON SOLICITORS,Assistant Chief Executive (Excl SIU),2500.00,Insurance,2324P01_CR00241,140883,
Sandwell Metropolitan Borough Council,http://www.sandwell.gov.uk/info/200202/performance_and_spending/1079/payments_over_500,14-Apr-2023,FINANCE (Inc SIU),REDACTED PERSONAL DATA,Assistant Chief Executive (Excl SIU),2750.00,Insurance,2324P01_CR00242,REDACTED PERSONAL DATA,
Sandwell Metropolitan Borough Council,http://www.sandwell.gov.uk/info/200202/performance_and_spending/1079/payments_over_500,14-Apr-2023,FINANCE (Inc SIU),BROWNE JACOBSON LLP,Assistant Chief Executive (Excl SIU),2829.20,Externally Purchased Professional Services ,2324P01_CR00243,109574,
Sandwell Metropolitan Borough Council,http://www.sandwell.gov.uk/info/200202/performance_and_spending/1079/payments_over_500,01-Apr-2023,FINANCE (Inc SIU),TRAVELERS INSURANCE CO LTD,Assistant Chief Executive (Excl SIU),3764.75,Externally Purchased Professional Services ,2324P01_CR00244,78541,
Sandwell Metropolitan Borough Council,http://www.sandwell.gov.uk/info/200202/performance_and_spending/1079/payments_over_500,21-Apr-2023,FINANCE (Inc SIU),REDACTED PERSONAL DATA,Assistant Chief Executive (Excl SIU),3850.00,Insurance,2324P01_CR00245,REDACTED PERSONAL DATA,
Sandwell Metropolitan Borough Council,http://www.sandwell.gov.uk/info/200202/performance_and_spending/1079/payments_over_500,24-Apr-2023,FINANCE (Inc SIU),COBLEYS LLP,Assistant Chief Executive (Excl SIU),4500.00,Insurance,2324P01_CR00246,110381,
Sandwell Metropolitan Borough Council,http://www.sandwell.gov.uk/info/200202/performance_and_spending/1079/payments_over_500,21-Apr-2023,FINANCE (Inc SIU),ROBERT BINGHAM LTD,Assistant Chief Executive (Excl SIU),5000.00,Insurance,2324P01_CR00247,164179,
Sandwell Metropolitan Borough Council,http://www.sandwell.gov.uk/info/200202/performance_and_spending/1079/payments_over_500,24-Apr-2023,FINANCE (Inc SIU),GOWING LAW SOLICITORS,Assistant Chief Executive (Excl SIU),6000.00,Insurance,2324P01_CR00248,163069,
Sandwell Metropolitan Borough Council,http://www.sandwell.gov.uk/info/200202/performance_and_spending/1079/payments_over_500,04-Apr-2023,FINANCE (Inc SIU),MATRIX SOLICITORS,Assistant Chief Executive (Excl SIU),6000.00,Insurance,2324P01_CR00249,150465,
Sandwell Metropolitan Borough Council,http://www.sandwell.gov.uk/info/200202/performance_and_spending/1079/payments_over_500,11-Apr-2023,FINANCE (Inc SIU),MATRIX SOLICITORS,Assistant Chief Executive (Excl SIU),6250.00,Insurance,2324P01_CR00250,150465,
Sandwell Metropolitan Borough Council,http://www.sandwell.gov.uk/info/200202/performance_and_spending/1079/payments_over_500,12-Apr-2023,FINANCE (Inc SIU),COBLEYS LLP,Assistant Chief Executive (Excl SIU),6500.00,Insurance,2324P01_CR00251,110381,
Sandwell Metropolitan Borough Council,http://www.sandwell.gov.uk/info/200202/performance_and_spending/1079/payments_over_500,18-Apr-2023,FINANCE (Inc SIU),COBLEYS LLP,Assistant Chief Executive (Excl SIU),6500.00,Insurance,2324P01_CR00252,110381,
Sandwell Metropolitan Borough Council,http://www.sandwell.gov.uk/info/200202/performance_and_spending/1079/payments_over_500,04-Apr-2023,FINANCE (Inc SIU),AMIN HAQUE LTD CLIENT,Assistant Chief Executive (Excl SIU),7500.00,Insurance,2324P01_CR00253,164603,
Sandwell Metropolitan Borough Council,http://www.sandwell.gov.uk/info/200202/performance_and_spending/1079/payments_over_500,27-Apr-2023,FINANCE (Inc SIU),DRISCOLL KINGSTON SOLICITORS,Assistant Chief Executive (Excl SIU),7500.00,Insurance,2324P01_CR00254,140883,
Sandwell Metropolitan Borough Council,http://www.sandwell.gov.uk/info/200202/performance_and_spending/1079/payments_over_500,28-Apr-2023,FINANCE (Inc SIU),HIGH STREET SOLICITORS,Assistant Chief Executive (Excl SIU),11500.00,Insurance,2324P01_CR00255,137303,
Sandwell Metropolitan Borough Council,http://www.sandwell.gov.uk/info/200202/performance_and_spending/1079/payments_over_500,01-Apr-2023,FINANCE (Inc SIU),NEC SOFTWARE SOLUTIONS UK LTD,Assistant Chief Executive (Excl SIU),550.00,Private Contractors,2324P01_CR00256,56043,
Sandwell Metropolitan Borough Council,http://www.sandwell.gov.uk/info/200202/performance_and_spending/1079/payments_over_500,07-Apr-2023,FINANCE (Inc SIU),GREENHALGH KERR SOLICITORS LIMITED,Assistant Chief Executive (Excl SIU),577.50,Externally Purchased Professional Services ,2324P01_CR00257,127273,
Sandwell Metropolitan Borough Council,http://www.sandwell.gov.uk/info/200202/performance_and_spending/1079/payments_over_500,01-Apr-2023,FINANCE (Inc SIU),XEROX FINANCE LTD,Total Adult Social Care,619.25,"Printing, Stationery & General Office Expenses",2324P01_CR00258,2269,
Sandwell Metropolitan Borough Council,http://www.sandwell.gov.uk/info/200202/performance_and_spending/1079/payments_over_500,01-Apr-2023,FINANCE (Inc SIU),DSI BILLING SERVICES LIMITED,Assistant Chief Executive (Excl SIU),649.00,"Printing, Stationery & General Office Expenses",2324P01_CR00259,161962,
Sandwell Metropolitan Borough Council,http://www.sandwell.gov.uk/info/200202/performance_and_spending/1079/payments_over_500,06-Apr-2023,FINANCE (Inc SIU),ORACLE CORPORATION UK LTD,Assistant Chief Executive (Excl SIU),661.67,Externally Purchased Professional Services ,2324P01_CR00260,01539742,
Sandwell Metropolitan Borough Council,http://www.sandwell.gov.uk/info/200202/performance_and_spending/1079/payments_over_500,07-Apr-2023,FINANCE (Inc SIU),GREENHALGH KERR SOLICITORS LIMITED,Assistant Chief Executive (Excl SIU),668.00,Externally Purchased Professional Services ,2324P01_CR00261,127273,
Sandwell Metropolitan Borough Council,http://www.sandwell.gov.uk/info/200202/performance_and_spending/1079/payments_over_500,01-Apr-2023,FINANCE (Inc SIU),NEC SOFTWARE SOLUTIONS UK LTD,Assistant Chief Executive (Excl SIU),678.00,Private Contractors,2324P01_CR00262,56043,
Sandwell Metropolitan Borough Council,http://www.sandwell.gov.uk/info/200202/performance_and_spending/1079/payments_over_500,01-Apr-2023,FINANCE (Inc SIU),NEC SOFTWARE SOLUTIONS UK LTD,Assistant Chief Executive (Excl SIU),721.69,Private Contractors,2324P01_CR00263,56043,
Sandwell Metropolitan Borough Council,http://www.sandwell.gov.uk/info/200202/performance_and_spending/1079/payments_over_500,06-Apr-2023,FINANCE (Inc SIU),ORACLE CORPORATION UK LTD,Assistant Chief Executive (Excl SIU),760.38,Externally Purchased Professional Services ,2324P01_CR00264,01539742,
Sandwell Metropolitan Borough Council,http://www.sandwell.gov.uk/info/200202/performance_and_spending/1079/payments_over_500,07-Apr-2023,FINANCE (Inc SIU),GREENHALGH KERR SOLICITORS LIMITED,Assistant Chief Executive (Excl SIU),805.00,Externally Purchased Professional Services ,2324P01_CR00265,127273,
Sandwell Metropolitan Borough Council,http://www.sandwell.gov.uk/info/200202/performance_and_spending/1079/payments_over_500,07-Apr-2023,FINANCE (Inc SIU),NEC SOFTWARE SOLUTIONS UK LTD,Assistant Chief Executive (Excl SIU),809.87,Private Contractors,2324P01_CR00266,56043,
Sandwell Metropolitan Borough Council,http://www.sandwell.gov.uk/info/200202/performance_and_spending/1079/payments_over_500,01-Apr-2023,FINANCE (Inc SIU),GREENHALGH KERR SOLICITORS LIMITED,Assistant Chief Executive (Excl SIU),950.00,Externally Purchased Professional Services ,2324P01_CR00267,127273,
Sandwell Metropolitan Borough Council,http://www.sandwell.gov.uk/info/200202/performance_and_spending/1079/payments_over_500,01-Apr-2023,FINANCE (Inc SIU),UNILINK FINANCE LTD,Assistant Chief Executive (Excl SIU),990.00,Externally Purchased Professional Services ,2324P01_CR00268,95908,
Sandwell Metropolitan Borough Council,http://www.sandwell.gov.uk/info/200202/performance_and_spending/1079/payments_over_500,01-Apr-2023,FINANCE (Inc SIU),NEC SOFTWARE SOLUTIONS UK LTD,Assistant Chief Executive (Excl SIU),1440.00,Private Contractors,2324P01_CR00269,56043,
Sandwell Metropolitan Borough Council,http://www.sandwell.gov.uk/info/200202/performance_and_spending/1079/payments_over_500,12-Apr-2023,FINANCE (Inc SIU),JOHN MILLER ESTATE AGENT,Assistant Chief Executive (Excl SIU),1600.00,Tenants Expenses,2324P01_CR00270,147382,
Sandwell Metropolitan Borough Council,http://www.sandwell.gov.uk/info/200202/performance_and_spending/1079/payments_over_500,01-Apr-2023,FINANCE (Inc SIU),TAMESIDE MBC,Assistant Chief Executive (Excl SIU),1700.00,Subscriptions,2324P01_CR00271,01667393,
Sandwell Metropolitan Borough Council,http://www.sandwell.gov.uk/info/200202/performance_and_spending/1079/payments_over_500,01-Apr-2023,FINANCE (Inc SIU),POST OFFICE LTD,Assistant Chief Executive (Excl SIU),1793.39,Postages,2324P01_CR00272,01663387,
Sandwell Metropolitan Borough Council,http://www.sandwell.gov.uk/info/200202/performance_and_spending/1079/payments_over_500,01-Apr-2023,FINANCE (Inc SIU),NEC SOFTWARE SOLUTIONS UK LTD,Assistant Chief Executive (Excl SIU),1810.00,Private Contractors,2324P01_CR00273,56043,
Sandwell Metropolitan Borough Council,http://www.sandwell.gov.uk/info/200202/performance_and_spending/1079/payments_over_500,01-Apr-2023,FINANCE (Inc SIU),INFORM CPI LTD,Assistant Chief Executive (Excl SIU),2100.00,Consultancy,2324P01_CR00274,123986,
Sandwell Metropolitan Borough Council,http://www.sandwell.gov.uk/info/200202/performance_and_spending/1079/payments_over_500,12-Apr-2023,FINANCE (Inc SIU),PAYPOINT PLC,Assistant Chief Executive (Excl SIU),2275.00,Fuel ,2324P01_CR00275,112333,
Sandwell Metropolitan Borough Council,http://www.sandwell.gov.uk/info/200202/performance_and_spending/1079/payments_over_500,06-Apr-2023,FINANCE (Inc SIU),ORACLE CORPORATION UK LTD,Assistant Chief Executive (Excl SIU),2281.05,Externally Purchased Professional Services ,2324P01_CR00276,01539742,
Sandwell Metropolitan Borough Council,http://www.sandwell.gov.uk/info/200202/performance_and_spending/1079/payments_over_500,01-Apr-2023,FINANCE (Inc SIU),GREENHALGH KERR SOLICITORS LIMITED,Assistant Chief Executive (Excl SIU),2342.00,Externally Purchased Professional Services ,2324P01_CR00277,127273,
Sandwell Metropolitan Borough Council,http://www.sandwell.gov.uk/info/200202/performance_and_spending/1079/payments_over_500,13-Apr-2023,FINANCE (Inc SIU),PAYPOINT PLC,Assistant Chief Executive (Excl SIU),2354.00,Fuel ,2324P01_CR00278,112333,
Sandwell Metropolitan Borough Council,http://www.sandwell.gov.uk/info/200202/performance_and_spending/1079/payments_over_500,01-Apr-2023,FINANCE (Inc SIU),GREENHALGH KERR SOLICITORS LIMITED,Assistant Chief Executive (Excl SIU),2697.00,Externally Purchased Professional Services ,2324P01_CR00279,127273,
Sandwell Metropolitan Borough Council,http://www.sandwell.gov.uk/info/200202/performance_and_spending/1079/payments_over_500,12-Apr-2023,FINANCE (Inc SIU),DSI BILLING SERVICES LIMITED,Assistant Chief Executive (Excl SIU),2772.66,"Printing, Stationery & General Office Expenses",2324P01_CR00280,161962,
Sandwell Metropolitan Borough Council,http://www.sandwell.gov.uk/info/200202/performance_and_spending/1079/payments_over_500,25-Apr-2023,FINANCE (Inc SIU),PAYPOINT PLC,Assistant Chief Executive (Excl SIU),3200.00,Fuel ,2324P01_CR00281,112333,
Sandwell Metropolitan Borough Council,http://www.sandwell.gov.uk/info/200202/performance_and_spending/1079/payments_over_500,01-Apr-2023,FINANCE (Inc SIU),DSI BILLING SERVICES LIMITED,Assistant Chief Executive (Excl SIU),3402.00,"Printing, Stationery & General Office Expenses",2324P01_CR00282,161962,
Sandwell Metropolitan Borough Council,http://www.sandwell.gov.uk/info/200202/performance_and_spending/1079/payments_over_500,01-Apr-2023,FINANCE (Inc SIU),DSI BILLING SERVICES LIMITED,Assistant Chief Executive (Excl SIU),3402.00,"Printing, Stationery & General Office Expenses",2324P01_CR00283,161962,
Sandwell Metropolitan Borough Council,http://www.sandwell.gov.uk/info/200202/performance_and_spending/1079/payments_over_500,01-Apr-2023,FINANCE (Inc SIU),CABINET OFFICE,Assistant Chief Executive (Excl SIU),4120.00,Subscriptions,2324P01_CR00284,134874,
Sandwell Metropolitan Borough Council,http://www.sandwell.gov.uk/info/200202/performance_and_spending/1079/payments_over_500,06-Apr-2023,FINANCE (Inc SIU),PAYPOINT PLC,Assistant Chief Executive (Excl SIU),4175.00,Fuel ,2324P01_CR00285,112333,
Sandwell Metropolitan Borough Council,http://www.sandwell.gov.uk/info/200202/performance_and_spending/1079/payments_over_500,06-Apr-2023,FINANCE (Inc SIU),ORACLE CORPORATION UK LTD,Assistant Chief Executive (Excl SIU),4544.89,Externally Purchased Professional Services ,2324P01_CR00286,01539742,
Sandwell Metropolitan Borough Council,http://www.sandwell.gov.uk/info/200202/performance_and_spending/1079/payments_over_500,06-Apr-2023,FINANCE (Inc SIU),ORACLE CORPORATION UK LTD,Assistant Chief Executive (Excl SIU),6866.84,Externally Purchased Professional Services ,2324P01_CR00287,01539742,
Sandwell Metropolitan Borough Council,http://www.sandwell.gov.uk/info/200202/performance_and_spending/1079/payments_over_500,06-Apr-2023,FINANCE (Inc SIU),ORACLE CORPORATION UK LTD,Assistant Chief Executive (Excl SIU),7829.78,Externally Purchased Professional Services ,2324P01_CR00288,01539742,
Sandwell Metropolitan Borough Council,http://www.sandwell.gov.uk/info/200202/performance_and_spending/1079/payments_over_500,17-Apr-2023,FINANCE (Inc SIU),ORACLE CORPORATION UK LTD,Assistant Chief Executive (Excl SIU),8559.00,Externally Purchased Professional Services ,2324P01_CR00289,01539742,
Sandwell Metropolitan Borough Council,http://www.sandwell.gov.uk/info/200202/performance_and_spending/1079/payments_over_500,06-Apr-2023,FINANCE (Inc SIU),ORACLE CORPORATION UK LTD,Assistant Chief Executive (Excl SIU),8699.79,Externally Purchased Professional Services ,2324P01_CR00290,01539742,
Sandwell Metropolitan Borough Council,http://www.sandwell.gov.uk/info/200202/performance_and_spending/1079/payments_over_500,06-Apr-2023,FINANCE (Inc SIU),ORACLE CORPORATION UK LTD,Assistant Chief Executive (Excl SIU),8930.32,Externally Purchased Professional Services ,2324P01_CR00291,01539742,
Sandwell Metropolitan Borough Council,http://www.sandwell.gov.uk/info/200202/performance_and_spending/1079/payments_over_500,12-Apr-2023,FINANCE (Inc SIU),DSI BILLING SERVICES LIMITED,Assistant Chief Executive (Excl SIU),8943.00,"Printing, Stationery & General Office Expenses",2324P01_CR00292,161962,
Sandwell Metropolitan Borough Council,http://www.sandwell.gov.uk/info/200202/performance_and_spending/1079/payments_over_500,01-Apr-2023,FINANCE (Inc SIU),ASCENDANT SOLUTIONS LIMITED,Assistant Chief Executive (Excl SIU),9500.00,Grant Payments,2324P01_CR00293,150134,
Sandwell Metropolitan Borough Council,http://www.sandwell.gov.uk/info/200202/performance_and_spending/1079/payments_over_500,14-Apr-2023,FINANCE (Inc SIU),INFORM CPI LTD,Assistant Chief Executive (Excl SIU),10000.00,Subscriptions,2324P01_CR00294,123986,
Sandwell Metropolitan Borough Council,http://www.sandwell.gov.uk/info/200202/performance_and_spending/1079/payments_over_500,01-Apr-2023,FINANCE (Inc SIU),INTEC FOR BUSINESS LTD,Assistant Chief Executive (Excl SIU),10343.48,Licences,2324P01_CR00295,01635829,
Sandwell Metropolitan Borough Council,http://www.sandwell.gov.uk/info/200202/performance_and_spending/1079/payments_over_500,01-Apr-2023,FINANCE (Inc SIU),EXPERIAN LIMITED,Assistant Chief Executive (Excl SIU),14388.51,Consultancy,2324P01_CR00296,3655,
Sandwell Metropolitan Borough Council,http://www.sandwell.gov.uk/info/200202/performance_and_spending/1079/payments_over_500,01-Apr-2023,FINANCE (Inc SIU),ZURICH INSURANCE PLC,Assistant Chief Executive (Excl SIU),15000.00,Insurance,2324P01_CR00297,01749452,
Sandwell Metropolitan Borough Council,http://www.sandwell.gov.uk/info/200202/performance_and_spending/1079/payments_over_500,01-Apr-2023,FINANCE (Inc SIU),LOAVES N FISHES,Assistant Chief Executive (Excl SIU),21177.00,Equipment & Furniture ,2324P01_CR00298,71090,
Sandwell Metropolitan Borough Council,http://www.sandwell.gov.uk/info/200202/performance_and_spending/1079/payments_over_500,28-Apr-2023,FINANCE (Inc SIU),NATIONAL WESTMINSTER BANK PLC IRO ENGERY BILLS SUPPORT SCHEME,Assistant Chief Executive (Excl SIU),46800.00,Grant Payments,2324P01_CR00299,120965,
Sandwell Metropolitan Borough Council,http://www.sandwell.gov.uk/info/200202/performance_and_spending/1079/payments_over_500,12-Apr-2023,FINANCE (Inc SIU),DSI BILLING SERVICES LIMITED,Assistant Chief Executive (Excl SIU),82807.72,"Printing, Stationery & General Office Expenses",2324P01_CR00300,161962,
Sandwell Metropolitan Borough Council,http://www.sandwell.gov.uk/info/200202/performance_and_spending/1079/payments_over_500,01-Apr-2023,FINANCE (Inc SIU),INFOSYS LIMITED,Assistant Chief Executive (Excl SIU),289980.00,Consultancy,2324P01_CR00301,164052,
Sandwell Metropolitan Borough Council,http://www.sandwell.gov.uk/info/200202/performance_and_spending/1079/payments_over_500,01-Apr-2023,Housing & Assets Total,EUROPEAN'S WELFARE ASSOCIATION CIC,Housing & Assets Total,500.00,Externally Purchased Professional Services ,2324P01_CR00302,123703,
Sandwell Metropolitan Borough Council,http://www.sandwell.gov.uk/info/200202/performance_and_spending/1079/payments_over_500,01-Apr-2023,Housing & Assets Total,TOTALENERGIES GAS & POWER LTD,Corporate Management,510.65,Gas,2324P01_CR00303,107605,
Sandwell Metropolitan Borough Council,http://www.sandwell.gov.uk/info/200202/performance_and_spending/1079/payments_over_500,13-Apr-2023,Housing & Assets Total,HOPE INTO ACTION UK,Corporate Management,597.98,Rents,2324P01_CR00304,163340,
Sandwell Metropolitan Borough Council,http://www.sandwell.gov.uk/info/200202/performance_and_spending/1079/payments_over_500,01-Apr-2023,Housing & Assets Total,TOTALENERGIES GAS & POWER LTD,Corporate Management,636.00,Electricity,2324P01_CR00305,107605,
Sandwell Metropolitan Borough Council,http://www.sandwell.gov.uk/info/200202/performance_and_spending/1079/payments_over_500,01-Apr-2023,Housing & Assets Total,"HIGHFIELD HOUSE HOTEL,",Corporate Management,680.00,Rents,2324P01_CR00306,162756,
Sandwell Metropolitan Borough Council,http://www.sandwell.gov.uk/info/200202/performance_and_spending/1079/payments_over_500,06-Apr-2023,Housing & Assets Total,REDACTED PERSONAL DATA,Corporate Management,725.00,Tenants Expenses,2324P01_CR00307,REDACTED PERSONAL DATA,
Sandwell Metropolitan Borough Council,http://www.sandwell.gov.uk/info/200202/performance_and_spending/1079/payments_over_500,01-Apr-2023,Housing & Assets Total,MR N VERMA T/A COMPASS PROPERTIES,Corporate Management,800.00,Rents,2324P01_CR00308,143076,
Sandwell Metropolitan Borough Council,http://www.sandwell.gov.uk/info/200202/performance_and_spending/1079/payments_over_500,06-Apr-2023,Housing & Assets Total,URBAN CITY ESTATES,Corporate Management,900.00,Tenants Expenses,2324P01_CR00309,52666,
Sandwell Metropolitan Borough Council,http://www.sandwell.gov.uk/info/200202/performance_and_spending/1079/payments_over_500,01-Apr-2023,Housing & Assets Total,RIGHT TO CARE LTD.,Corporate Management,1053.57,Rents,2324P01_CR00310,133426,
Sandwell Metropolitan Borough Council,http://www.sandwell.gov.uk/info/200202/performance_and_spending/1079/payments_over_500,01-Apr-2023,Housing & Assets Total,RIGHT TO CARE LTD.,Corporate Management,1178.57,Rents,2324P01_CR00311,133426,
Sandwell Metropolitan Borough Council,http://www.sandwell.gov.uk/info/200202/performance_and_spending/1079/payments_over_500,04-Apr-2023,Housing & Assets Total,GILANI ENTERPRISES LIMITED,Corporate Management,1200.00,Rents,2324P01_CR00312,2696,
Sandwell Metropolitan Borough Council,http://www.sandwell.gov.uk/info/200202/performance_and_spending/1079/payments_over_500,04-Apr-2023,Housing & Assets Total,GILANI ENTERPRISES LIMITED,Corporate Management,1200.00,Rents,2324P01_CR00313,2696,
Sandwell Metropolitan Borough Council,http://www.sandwell.gov.uk/info/200202/performance_and_spending/1079/payments_over_500,01-Apr-2023,Housing & Assets Total,PEOPLE POTENTIAL POSSIBILITIES,Corporate Management,1260.00,Rents,2324P01_CR00314,76739,
Sandwell Metropolitan Borough Council,http://www.sandwell.gov.uk/info/200202/performance_and_spending/1079/payments_over_500,04-Apr-2023,Housing & Assets Total,GILANI ENTERPRISES LIMITED,Corporate Management,1375.00,Rents,2324P01_CR00315,2696,
Sandwell Metropolitan Borough Council,http://www.sandwell.gov.uk/info/200202/performance_and_spending/1079/payments_over_500,04-Apr-2023,Housing & Assets Total,GILANI ENTERPRISES LIMITED,Corporate Management,1375.00,Rents,2324P01_CR00316,2696,
Sandwell Metropolitan Borough Council,http://www.sandwell.gov.uk/info/200202/performance_and_spending/1079/payments_over_500,01-Apr-2023,Housing & Assets Total,RIGHT TO CARE LTD.,Corporate Management,1500.00,Rents,2324P01_CR00317,133426,
Sandwell Metropolitan Borough Council,http://www.sandwell.gov.uk/info/200202/performance_and_spending/1079/payments_over_500,17-Apr-2023,Housing & Assets Total,FURNITURE RESOURCE CENTRE LTD,Corporate Management,1537.58,Rents,2324P01_CR00318,01641204,
Sandwell Metropolitan Borough Council,http://www.sandwell.gov.uk/info/200202/performance_and_spending/1079/payments_over_500,13-Apr-2023,Housing & Assets Total,REDACTED PERSONAL DATA,Corporate Management,1550.77,Rents,2324P01_CR00319,REDACTED PERSONAL DATA,
Sandwell Metropolitan Borough Council,http://www.sandwell.gov.uk/info/200202/performance_and_spending/1079/payments_over_500,25-Apr-2023,Housing & Assets Total,WEST MIDLANDS PROPERTY MANAGEMENT & LETTINGS LTD,Corporate Management,1775.55,Rents,2324P01_CR00320,165891,
Sandwell Metropolitan Borough Council,http://www.sandwell.gov.uk/info/200202/performance_and_spending/1079/payments_over_500,24-Apr-2023,Housing & Assets Total,REDACTED PERSONAL DATA,Corporate Management,1785.00,Tenants Expenses,2324P01_CR00321,REDACTED PERSONAL DATA,
Sandwell Metropolitan Borough Council,http://www.sandwell.gov.uk/info/200202/performance_and_spending/1079/payments_over_500,01-Apr-2023,Housing & Assets Total,"HIGHFIELD HOUSE HOTEL,",Corporate Management,1875.00,Rents,2324P01_CR00322,162756,
Sandwell Metropolitan Borough Council,http://www.sandwell.gov.uk/info/200202/performance_and_spending/1079/payments_over_500,11-Apr-2023,Housing & Assets Total,CERTAS ENERGY LIMITED,Corporate Management,2005.87,Oil,2324P01_CR00323,80421,
Sandwell Metropolitan Borough Council,http://www.sandwell.gov.uk/info/200202/performance_and_spending/1079/payments_over_500,01-Apr-2023,Housing & Assets Total,REDACTED PERSONAL DATA,Corporate Management,2150.00,Tenants Expenses,2324P01_CR00324,REDACTED PERSONAL DATA,
Sandwell Metropolitan Borough Council,http://www.sandwell.gov.uk/info/200202/performance_and_spending/1079/payments_over_500,01-Apr-2023,Housing & Assets Total,GILANI ENTERPRISES LIMITED,Corporate Management,2200.00,Rents,2324P01_CR00325,2696,
Sandwell Metropolitan Borough Council,http://www.sandwell.gov.uk/info/200202/performance_and_spending/1079/payments_over_500,01-Apr-2023,Housing & Assets Total,GILANI ENTERPRISES LIMITED,Corporate Management,2200.00,Rents,2324P01_CR00326,2696,
Sandwell Metropolitan Borough Council,http://www.sandwell.gov.uk/info/200202/performance_and_spending/1079/payments_over_500,01-Apr-2023,Housing & Assets Total,GILANI ENTERPRISES LIMITED,Corporate Management,2200.00,Rents,2324P01_CR00327,2696,
Sandwell Metropolitan Borough Council,http://www.sandwell.gov.uk/info/200202/performance_and_spending/1079/payments_over_500,01-Apr-2023,Housing & Assets Total,GILANI ENTERPRISES LIMITED,Corporate Management,2200.00,Rents,2324P01_CR00328,2696,
Sandwell Metropolitan Borough Council,http://www.sandwell.gov.uk/info/200202/performance_and_spending/1079/payments_over_500,01-Apr-2023,Housing & Assets Total,"HIGHFIELD HOUSE HOTEL,",Corporate Management,2500.00,Rents,2324P01_CR00329,162756,
Sandwell Metropolitan Borough Council,http://www.sandwell.gov.uk/info/200202/performance_and_spending/1079/payments_over_500,01-Apr-2023,Housing & Assets Total,GILANI ENTERPRISES LIMITED,Corporate Management,2600.00,Rents,2324P01_CR00330,2696,
Sandwell Metropolitan Borough Council,http://www.sandwell.gov.uk/info/200202/performance_and_spending/1079/payments_over_500,04-Apr-2023,Housing & Assets Total,GILANI ENTERPRISES LIMITED,Corporate Management,2600.00,Rents,2324P01_CR00331,2696,
Sandwell Metropolitan Borough Council,http://www.sandwell.gov.uk/info/200202/performance_and_spending/1079/payments_over_500,04-Apr-2023,Housing & Assets Total,GILANI ENTERPRISES LIMITED,Corporate Management,2833.33,Rents,2324P01_CR00332,2696,
Sandwell Metropolitan Borough Council,http://www.sandwell.gov.uk/info/200202/performance_and_spending/1079/payments_over_500,12-Apr-2023,Housing & Assets Total,CKP LTD T/A HAGLEY HOTEL,Corporate Management,3080.00,Rents,2324P01_CR00333,143677,
Sandwell Metropolitan Borough Council,http://www.sandwell.gov.uk/info/200202/performance_and_spending/1079/payments_over_500,01-Apr-2023,Housing & Assets Total,RIGHT TO CARE LTD.,Corporate Management,3118.58,Rents,2324P01_CR00334,133426,
Sandwell Metropolitan Borough Council,http://www.sandwell.gov.uk/info/200202/performance_and_spending/1079/payments_over_500,01-Apr-2023,Housing & Assets Total,BRUSHSTROKES,Corporate Management,3120.00,Externally Purchased Professional Services ,2324P01_CR00335,21029374,
Sandwell Metropolitan Borough Council,http://www.sandwell.gov.uk/info/200202/performance_and_spending/1079/payments_over_500,01-Apr-2023,Housing & Assets Total,"HIGHFIELD HOUSE HOTEL,",Corporate Management,3180.00,Rents,2324P01_CR00336,162756,
Sandwell Metropolitan Borough Council,http://www.sandwell.gov.uk/info/200202/performance_and_spending/1079/payments_over_500,01-Apr-2023,Housing & Assets Total,GILANI ENTERPRISES LIMITED,Corporate Management,3300.00,Rents,2324P01_CR00337,2696,
Sandwell Metropolitan Borough Council,http://www.sandwell.gov.uk/info/200202/performance_and_spending/1079/payments_over_500,01-Apr-2023,Housing & Assets Total,GILANI ENTERPRISES LIMITED,Corporate Management,3300.00,Rents,2324P01_CR00338,2696,
Sandwell Metropolitan Borough Council,http://www.sandwell.gov.uk/info/200202/performance_and_spending/1079/payments_over_500,01-Apr-2023,Housing & Assets Total,GILANI ENTERPRISES LIMITED,Corporate Management,5500.00,Rents,2324P01_CR00339,2696,
Sandwell Metropolitan Borough Council,http://www.sandwell.gov.uk/info/200202/performance_and_spending/1079/payments_over_500,01-Apr-2023,Housing & Assets Total,BRUSHSTROKES,Corporate Management,5633.45,Externally Purchased Professional Services ,2324P01_CR00340,21029374,
Sandwell Metropolitan Borough Council,http://www.sandwell.gov.uk/info/200202/performance_and_spending/1079/payments_over_500,01-Apr-2023,Housing & Assets Total,"HIGHFIELD HOUSE HOTEL,",Corporate Management,5640.00,Rents,2324P01_CR00341,162756,
Sandwell Metropolitan Borough Council,http://www.sandwell.gov.uk/info/200202/performance_and_spending/1079/payments_over_500,01-Apr-2023,Housing & Assets Total,SANJIVE MAHANDRU,Corporate Management,6500.00,Rents,2324P01_CR00342,73002,
Sandwell Metropolitan Borough Council,http://www.sandwell.gov.uk/info/200202/performance_and_spending/1079/payments_over_500,01-Apr-2023,Housing & Assets Total,BRUSHSTROKES,Corporate Management,6600.00,Externally Purchased Professional Services ,2324P01_CR00343,21029374,
Sandwell Metropolitan Borough Council,http://www.sandwell.gov.uk/info/200202/performance_and_spending/1079/payments_over_500,13-Apr-2023,Housing & Assets Total,REISS HAIDER,Corporate Management,8000.00,Rents,2324P01_CR00344,154967,
Sandwell Metropolitan Borough Council,http://www.sandwell.gov.uk/info/200202/performance_and_spending/1079/payments_over_500,01-Apr-2023,Housing & Assets Total,BRUSHSTROKES,Corporate Management,9200.00,Externally Purchased Professional Services ,2324P01_CR00345,21029374,
Sandwell Metropolitan Borough Council,http://www.sandwell.gov.uk/info/200202/performance_and_spending/1079/payments_over_500,01-Apr-2023,Housing & Assets Total,BRUSHSTROKES,Corporate Management,10000.00,Externally Purchased Professional Services ,2324P01_CR00346,21029374,
Sandwell Metropolitan Borough Council,http://www.sandwell.gov.uk/info/200202/performance_and_spending/1079/payments_over_500,01-Apr-2023,Housing & Assets Total,BRUSHSTROKES,Corporate Management,11547.92,Externally Purchased Professional Services ,2324P01_CR00347,21029374,
Sandwell Metropolitan Borough Council,http://www.sandwell.gov.uk/info/200202/performance_and_spending/1079/payments_over_500,01-Apr-2023,Housing & Assets Total,BCH PROPERTY LIMITED,Corporate Management,13296.51,Rents,2324P01_CR00348,01011861,
Sandwell Metropolitan Borough Council,http://www.sandwell.gov.uk/info/200202/performance_and_spending/1079/payments_over_500,01-Apr-2023,Housing & Assets Total,"HIGHFIELD HOUSE HOTEL,",Corporate Management,14280.00,Rents,2324P01_CR00349,162756,
Sandwell Metropolitan Borough Council,http://www.sandwell.gov.uk/info/200202/performance_and_spending/1079/payments_over_500,01-Apr-2023,Housing & Assets Total,HARDYMAN & CO LIMITED,Total Adult Social Care,26173.28,Building Maintenance & Improvements,2324P01_CR00350,10788,
Sandwell Metropolitan Borough Council,http://www.sandwell.gov.uk/info/200202/performance_and_spending/1079/payments_over_500,01-Apr-2023,Housing & Assets Total,SAFFRON HOTEL,Corporate Management,102460.00,Rents,2324P01_CR00351,164316,
Sandwell Metropolitan Borough Council,http://www.sandwell.gov.uk/info/200202/performance_and_spending/1079/payments_over_500,25-Apr-2023,Housing & Assets Total,A PRASHER,Corporate Management,500.00,Rents,2324P01_CR00352,112229,
Sandwell Metropolitan Borough Council,http://www.sandwell.gov.uk/info/200202/performance_and_spending/1079/payments_over_500,25-Apr-2023,Housing & Assets Total,BALIJIT KAUR,Corporate Management,500.00,Rents,2324P01_CR00353,101860,
Sandwell Metropolitan Borough Council,http://www.sandwell.gov.uk/info/200202/performance_and_spending/1079/payments_over_500,25-Apr-2023,Housing & Assets Total,BALWANT SINGH,Corporate Management,500.00,Rents,2324P01_CR00354,84433,
Sandwell Metropolitan Borough Council,http://www.sandwell.gov.uk/info/200202/performance_and_spending/1079/payments_over_500,25-Apr-2023,Housing & Assets Total,CHRISTINE ANN CADDEN,Corporate Management,500.00,Rents,2324P01_CR00355,112728,
Sandwell Metropolitan Borough Council,http://www.sandwell.gov.uk/info/200202/performance_and_spending/1079/payments_over_500,25-Apr-2023,Housing & Assets Total,NARINDER SINGH,Corporate Management,500.00,Rents,2324P01_CR00356,114091,
Sandwell Metropolitan Borough Council,http://www.sandwell.gov.uk/info/200202/performance_and_spending/1079/payments_over_500,25-Apr-2023,Housing & Assets Total,ELEANOR MCGEE,Corporate Management,550.00,Rents,2324P01_CR00357,109162,
Sandwell Metropolitan Borough Council,http://www.sandwell.gov.uk/info/200202/performance_and_spending/1079/payments_over_500,06-Apr-2023,Housing & Assets Total,AGAPE MINISTRIES,Corporate Management,1333.50,Grant Payments,2324P01_CR00358,112863,
Sandwell Metropolitan Borough Council,http://www.sandwell.gov.uk/info/200202/performance_and_spending/1079/payments_over_500,06-Apr-2023,Housing & Assets Total,SANDWELL IRISH SOCIETY,Corporate Management,1707.00,Grant Payments,2324P01_CR00359,21029971,
Sandwell Metropolitan Borough Council,http://www.sandwell.gov.uk/info/200202/performance_and_spending/1079/payments_over_500,06-Apr-2023,Housing & Assets Total,GAYTON ROAD COMMUNITY CENTRE ASSOCIATION,Corporate Management,5386.50,Grant Payments,2324P01_CR00360,112420,
Sandwell Metropolitan Borough Council,http://www.sandwell.gov.uk/info/200202/performance_and_spending/1079/payments_over_500,06-Apr-2023,Housing & Assets Total,MURRAY HALL COMMUNITY TRUST,Corporate Management,5868.00,Grant Payments,2324P01_CR00361,01627284,
Sandwell Metropolitan Borough Council,http://www.sandwell.gov.uk/info/200202/performance_and_spending/1079/payments_over_500,06-Apr-2023,Housing & Assets Total,YEMENI COMMUNITY ASSOCIATION IN SANDWELL,Corporate Management,7307.50,Grant Payments,2324P01_CR00362,01711292,
Sandwell Metropolitan Borough Council,http://www.sandwell.gov.uk/info/200202/performance_and_spending/1079/payments_over_500,06-Apr-2023,Housing & Assets Total,YEW TREE & TAME BRIDGE COMMUNITY CENTRE,Corporate Management,8321.00,Grant Payments,2324P01_CR00363,108389,
Sandwell Metropolitan Borough Council,http://www.sandwell.gov.uk/info/200202/performance_and_spending/1079/payments_over_500,06-Apr-2023,Housing & Assets Total,SANDWELL IRISH COMMUNITY ASSOCIATION,Corporate Management,8325.00,Grant Payments,2324P01_CR00364,37424,
Sandwell Metropolitan Borough Council,http://www.sandwell.gov.uk/info/200202/performance_and_spending/1079/payments_over_500,06-Apr-2023,Housing & Assets Total,HILL TOP COMMUNITY DEVELOPMENT ASSOCIATION,Corporate Management,10546.00,Grant Payments,2324P01_CR00365,97197,
Sandwell Metropolitan Borough Council,http://www.sandwell.gov.uk/info/200202/performance_and_spending/1079/payments_over_500,06-Apr-2023,Housing & Assets Total,YEMENI COMMUNITY ASSOCIATION IN SANDWELL,Corporate Management,11472.50,Grant Payments,2324P01_CR00366,01711292,
Sandwell Metropolitan Borough Council,http://www.sandwell.gov.uk/info/200202/performance_and_spending/1079/payments_over_500,06-Apr-2023,Housing & Assets Total,FRIAR PARK MILLENNIUM CENTRE,Corporate Management,14503.50,Grant Payments,2324P01_CR00367,28476,
Sandwell Metropolitan Borough Council,http://www.sandwell.gov.uk/info/200202/performance_and_spending/1079/payments_over_500,06-Apr-2023,Housing & Assets Total,SMETHWICK PAKISTANI MUSLIM ASSOCIATION LTD,Corporate Management,15917.50,Grant Payments,2324P01_CR00368,01715191,
Sandwell Metropolitan Borough Council,http://www.sandwell.gov.uk/info/200202/performance_and_spending/1079/payments_over_500,27-Apr-2023,Housing & Assets Total,CITIZENS ADVICE SANDWELL & WALSALL,Corporate Management,17500.00,Grant Payments,2324P01_CR00369,01760899,
Sandwell Metropolitan Borough Council,http://www.sandwell.gov.uk/info/200202/performance_and_spending/1079/payments_over_500,24-Apr-2023,Housing & Assets Total,SHARP LTD,Corporate Management,18500.00,Grant Payments,2324P01_CR00370,01601345,
Sandwell Metropolitan Borough Council,http://www.sandwell.gov.uk/info/200202/performance_and_spending/1079/payments_over_500,06-Apr-2023,Housing & Assets Total,GREAT BRIDGE COMMUNITY FORUM,Corporate Management,18519.00,Grant Payments,2324P01_CR00371,21026008,
Sandwell Metropolitan Borough Council,http://www.sandwell.gov.uk/info/200202/performance_and_spending/1079/payments_over_500,06-Apr-2023,Housing & Assets Total,BANGLADESHI ISLAMIC CENTRE,Corporate Management,21628.00,Grant Payments,2324P01_CR00372,01722187,
Sandwell Metropolitan Borough Council,http://www.sandwell.gov.uk/info/200202/performance_and_spending/1079/payments_over_500,06-Apr-2023,Housing & Assets Total,NORTH SMETHWICK DEVELOPMENT TRUST,Corporate Management,22936.00,Grant Payments,2324P01_CR00373,01346623,
Sandwell Metropolitan Borough Council,http://www.sandwell.gov.uk/info/200202/performance_and_spending/1079/payments_over_500,06-Apr-2023,Housing & Assets Total,WEST SMETHWICK ENTERPRISE AND STEPPING STONES PRE-SCHOOL,Corporate Management,24623.00,Grant Payments,2324P01_CR00374,01722169,
Sandwell Metropolitan Borough Council,http://www.sandwell.gov.uk/info/200202/performance_and_spending/1079/payments_over_500,06-Apr-2023,Housing & Assets Total,BANGLADESHI WOMEN'S ASSOCIATION LIMITED,Corporate Management,35438.50,Grant Payments,2324P01_CR00375,69648,
Sandwell Metropolitan Borough Council,http://www.sandwell.gov.uk/info/200202/performance_and_spending/1079/payments_over_500,06-Apr-2023,Housing & Assets Total,ST ALBANS COMMUNITY ASSOCIATION,Corporate Management,50012.50,Grant Payments,2324P01_CR00376,08323189,
Sandwell Metropolitan Borough Council,http://www.sandwell.gov.uk/info/200202/performance_and_spending/1079/payments_over_500,01-Apr-2023,Housing & Communities,LISTER WILDER LTD,Housing & Communities,17100.00,"CIP - Vehicles, Plant & Machinery",2324P01_CR00377,145897,
Sandwell Metropolitan Borough Council,http://www.sandwell.gov.uk/info/200202/performance_and_spending/1079/payments_over_500,18-Apr-2023,Housing & Communities,OAKLEYS LTD,Housing & Communities,45850.00,"CIP - Vehicles, Plant & Machinery",2324P01_CR00378,01598115,
Sandwell Metropolitan Borough Council,http://www.sandwell.gov.uk/info/200202/performance_and_spending/1079/payments_over_500,01-Apr-2023,Housing & Communities,WATES CONSTRUCTION LTD  ,Housing & Communities,477612.32,"CIP - New Construction,Conversion, Enhancement & Reno",2324P01_CR00379,77000882,
Sandwell Metropolitan Borough Council,http://www.sandwell.gov.uk/info/200202/performance_and_spending/1079/payments_over_500,01-Apr-2023,Housing & Communities,WATES CONSTRUCTION LTD       ,Housing & Communities,699060.04,"CIP - New Construction,Conversion, Enhancement & Reno",2324P01_CR00380,77000882,
Sandwell Metropolitan Borough Council,http://www.sandwell.gov.uk/info/200202/performance_and_spending/1079/payments_over_500,01-Apr-2023,Housing Revenue Account Capital,SELECT WINDOWS (HOME IMPROVEMENTS) LIMITED,Housing Revenue Account Capital,517.62,Contract Payments,2324P01_CR00381,42616,
Sandwell Metropolitan Borough Council,http://www.sandwell.gov.uk/info/200202/performance_and_spending/1079/payments_over_500,01-Apr-2023,Housing Revenue Account Capital,SELECT WINDOWS (HOME IMPROVEMENTS) LIMITED,Housing Revenue Account Capital,558.29,Contract Payments,2324P01_CR00382,42616,
Sandwell Metropolitan Borough Council,http://www.sandwell.gov.uk/info/200202/performance_and_spending/1079/payments_over_500,01-Apr-2023,Housing Revenue Account Capital,SELECT WINDOWS (HOME IMPROVEMENTS) LIMITED,Housing Revenue Account Capital,811.12,Contract Payments,2324P01_CR00383,42616,
Sandwell Metropolitan Borough Council,http://www.sandwell.gov.uk/info/200202/performance_and_spending/1079/payments_over_500,01-Apr-2023,Housing Revenue Account Capital,SELECT WINDOWS (HOME IMPROVEMENTS) LIMITED,Housing Revenue Account Capital,815.93,Contract Payments,2324P01_CR00384,42616,
Sandwell Metropolitan Borough Council,http://www.sandwell.gov.uk/info/200202/performance_and_spending/1079/payments_over_500,01-Apr-2023,Housing Revenue Account Capital,SELECT WINDOWS (HOME IMPROVEMENTS) LIMITED,Housing Revenue Account Capital,826.44,Contract Payments,2324P01_CR00385,42616,
Sandwell Metropolitan Borough Council,http://www.sandwell.gov.uk/info/200202/performance_and_spending/1079/payments_over_500,01-Apr-2023,Housing Revenue Account Capital,RIDGE & PARTNERS LLP,Housing Revenue Account Capital,850.00,"CIP - New Construction,Conversion, Enhancement & Reno",2324P01_CR00386,134994,
Sandwell Metropolitan Borough Council,http://www.sandwell.gov.uk/info/200202/performance_and_spending/1079/payments_over_500,01-Apr-2023,Housing Revenue Account Capital,SELECT WINDOWS (HOME IMPROVEMENTS) LIMITED,Housing Revenue Account Capital,990.47,Contract Payments,2324P01_CR00387,42616,
Sandwell Metropolitan Borough Council,http://www.sandwell.gov.uk/info/200202/performance_and_spending/1079/payments_over_500,01-Apr-2023,Housing Revenue Account Capital,SELECT WINDOWS (HOME IMPROVEMENTS) LIMITED,Housing Revenue Account Capital,992.57,Contract Payments,2324P01_CR00388,42616,
Sandwell Metropolitan Borough Council,http://www.sandwell.gov.uk/info/200202/performance_and_spending/1079/payments_over_500,01-Apr-2023,Housing Revenue Account Capital,SELECT WINDOWS (HOME IMPROVEMENTS) LIMITED,Housing Revenue Account Capital,1009.38,Contract Payments,2324P01_CR00389,42616,
Sandwell Metropolitan Borough Council,http://www.sandwell.gov.uk/info/200202/performance_and_spending/1079/payments_over_500,01-Apr-2023,Housing Revenue Account Capital,SELECT WINDOWS (HOME IMPROVEMENTS) LIMITED,Housing Revenue Account Capital,1034.67,Contract Payments,2324P01_CR00390,42616,
Sandwell Metropolitan Borough Council,http://www.sandwell.gov.uk/info/200202/performance_and_spending/1079/payments_over_500,01-Apr-2023,Housing Revenue Account Capital,SELECT WINDOWS (HOME IMPROVEMENTS) LIMITED,Housing Revenue Account Capital,1185.44,Contract Payments,2324P01_CR00391,42616,
Sandwell Metropolitan Borough Council,http://www.sandwell.gov.uk/info/200202/performance_and_spending/1079/payments_over_500,01-Apr-2023,Housing Revenue Account Capital,LIFT & ENGINEERING SERVICES LTD,Housing Revenue Account Capital,1195.68,CIP - Fixtures & Fittings,2324P01_CR00392,77003962,
Sandwell Metropolitan Borough Council,http://www.sandwell.gov.uk/info/200202/performance_and_spending/1079/payments_over_500,01-Apr-2023,Housing Revenue Account Capital,STROMA SPECIALIST ACCESS LTD,Housing Revenue Account Capital,2032.00,"CIP - New Construction,Conversion, Enhancement & Reno",2324P01_CR00393,136243,
Sandwell Metropolitan Borough Council,http://www.sandwell.gov.uk/info/200202/performance_and_spending/1079/payments_over_500,06-Apr-2023,Housing Revenue Account Capital,CDC TECHNICAL SERVICES LTD,Housing Revenue Account Capital,2175.00,"CIP - New Construction,Conversion, Enhancement & Reno",2324P01_CR00394,101080,
Sandwell Metropolitan Borough Council,http://www.sandwell.gov.uk/info/200202/performance_and_spending/1079/payments_over_500,01-Apr-2023,Housing Revenue Account Capital,SELECT WINDOWS (HOME IMPROVEMENTS) LIMITED,Housing Revenue Account Capital,2184.92,Contract Payments,2324P01_CR00395,42616,
Sandwell Metropolitan Borough Council,http://www.sandwell.gov.uk/info/200202/performance_and_spending/1079/payments_over_500,01-Apr-2023,Housing Revenue Account Capital,PARCOR LTD,Housing Revenue Account Capital,2407.50,"CIP - New Construction,Conversion, Enhancement & Reno",2324P01_CR00396,163117,
Sandwell Metropolitan Borough Council,http://www.sandwell.gov.uk/info/200202/performance_and_spending/1079/payments_over_500,01-Apr-2023,Housing Revenue Account Capital,VINCI CONSTRUCTION LTD,Housing Revenue Account Capital,2652.90,Deferred Charges/Grant Payments,2324P01_CR00397,36361,
Sandwell Metropolitan Borough Council,http://www.sandwell.gov.uk/info/200202/performance_and_spending/1079/payments_over_500,01-Apr-2023,Housing Revenue Account Capital,PARCOR LTD,Housing Revenue Account Capital,3165.00,"CIP - New Construction,Conversion, Enhancement & Reno",2324P01_CR00398,163117,
Sandwell Metropolitan Borough Council,http://www.sandwell.gov.uk/info/200202/performance_and_spending/1079/payments_over_500,01-Apr-2023,Housing Revenue Account Capital,AXIS EUROPE PLC   ,Housing Revenue Account Capital,3460.92,Deferred Charges/Grant Payments,2324P01_CR00399,64946,
Sandwell Metropolitan Borough Council,http://www.sandwell.gov.uk/info/200202/performance_and_spending/1079/payments_over_500,01-Apr-2023,Housing Revenue Account Capital,VINCI CONSTRUCTION LTD,Housing Revenue Account Capital,5734.82,Deferred Charges/Grant Payments,2324P01_CR00400,36361,
Sandwell Metropolitan Borough Council,http://www.sandwell.gov.uk/info/200202/performance_and_spending/1079/payments_over_500,01-Apr-2023,Housing Revenue Account Capital,AXIS EUROPE PLC   ,Housing Revenue Account Capital,5800.95,Deferred Charges/Grant Payments,2324P01_CR00401,64946,
Sandwell Metropolitan Borough Council,http://www.sandwell.gov.uk/info/200202/performance_and_spending/1079/payments_over_500,20-Apr-2023,Housing Revenue Account Capital,VINCI CONSTRUCTION LTD,Housing Revenue Account Capital,5808.32,Deferred Charges/Grant Payments,2324P01_CR00402,36361,
Sandwell Metropolitan Borough Council,http://www.sandwell.gov.uk/info/200202/performance_and_spending/1079/payments_over_500,01-Apr-2023,Housing Revenue Account Capital,VINCI CONSTRUCTION LTD,Housing Revenue Account Capital,5831.24,Deferred Charges/Grant Payments,2324P01_CR00403,36361,
Sandwell Metropolitan Borough Council,http://www.sandwell.gov.uk/info/200202/performance_and_spending/1079/payments_over_500,01-Apr-2023,Housing Revenue Account Capital,VINCI CONSTRUCTION LTD,Housing Revenue Account Capital,6091.03,"CIP - New Construction,Conversion, Enhancement & Reno",2324P01_CR00404,36361,
Sandwell Metropolitan Borough Council,http://www.sandwell.gov.uk/info/200202/performance_and_spending/1079/payments_over_500,01-Apr-2023,Housing Revenue Account Capital,PHOENIX GAS SERVICES LIMITED,Housing Revenue Account Capital,6884.47,Contract Payments,2324P01_CR00405,126729,
Sandwell Metropolitan Borough Council,http://www.sandwell.gov.uk/info/200202/performance_and_spending/1079/payments_over_500,01-Apr-2023,Housing Revenue Account Capital,PHOENIX GAS SERVICES LIMITED,Housing Revenue Account Capital,7155.82,Contract Payments,2324P01_CR00406,126729,
Sandwell Metropolitan Borough Council,http://www.sandwell.gov.uk/info/200202/performance_and_spending/1079/payments_over_500,01-Apr-2023,Housing Revenue Account Capital,AXIS EUROPE PLC   ,Housing Revenue Account Capital,7251.14,Deferred Charges/Grant Payments,2324P01_CR00407,64946,
Sandwell Metropolitan Borough Council,http://www.sandwell.gov.uk/info/200202/performance_and_spending/1079/payments_over_500,01-Apr-2023,Housing Revenue Account Capital,AXIS EUROPE PLC   ,Housing Revenue Account Capital,7453.87,Deferred Charges/Grant Payments,2324P01_CR00408,64946,
Sandwell Metropolitan Borough Council,http://www.sandwell.gov.uk/info/200202/performance_and_spending/1079/payments_over_500,01-Apr-2023,Housing Revenue Account Capital,AXIS EUROPE PLC   ,Housing Revenue Account Capital,7724.07,Deferred Charges/Grant Payments,2324P01_CR00409,64946,
Sandwell Metropolitan Borough Council,http://www.sandwell.gov.uk/info/200202/performance_and_spending/1079/payments_over_500,13-Apr-2023,Housing Revenue Account Capital,REDACTED PERSONAL DATA,Housing Revenue Account Capital,7800.00,Tenants Expenses,2324P01_CR00410,REDACTED PERSONAL DATA,
Sandwell Metropolitan Borough Council,http://www.sandwell.gov.uk/info/200202/performance_and_spending/1079/payments_over_500,18-Apr-2023,Housing Revenue Account Capital,REDACTED PERSONAL DATA,Housing Revenue Account Capital,7800.00,Deferred Charges/Grant Payments,2324P01_CR00411,REDACTED PERSONAL DATA,
Sandwell Metropolitan Borough Council,http://www.sandwell.gov.uk/info/200202/performance_and_spending/1079/payments_over_500,13-Apr-2023,Housing Revenue Account Capital,REDACTED PERSONAL DATA,Housing Revenue Account Capital,7870.00,Deferred Charges/Grant Payments,2324P01_CR00412,REDACTED PERSONAL DATA,
Sandwell Metropolitan Borough Council,http://www.sandwell.gov.uk/info/200202/performance_and_spending/1079/payments_over_500,01-Apr-2023,Housing Revenue Account Capital,AXIS EUROPE PLC   ,Housing Revenue Account Capital,7902.50,Deferred Charges/Grant Payments,2324P01_CR00413,64946,
Sandwell Metropolitan Borough Council,http://www.sandwell.gov.uk/info/200202/performance_and_spending/1079/payments_over_500,01-Apr-2023,Housing Revenue Account Capital,AXIS EUROPE PLC   ,Housing Revenue Account Capital,8177.70,Deferred Charges/Grant Payments,2324P01_CR00414,64946,
Sandwell Metropolitan Borough Council,http://www.sandwell.gov.uk/info/200202/performance_and_spending/1079/payments_over_500,01-Apr-2023,Housing Revenue Account Capital,REDACTED PERSONAL DATA,Housing Revenue Account Capital,8250.00,Deferred Charges/Grant Payments,2324P01_CR00415,REDACTED PERSONAL DATA,
Sandwell Metropolitan Borough Council,http://www.sandwell.gov.uk/info/200202/performance_and_spending/1079/payments_over_500,01-Apr-2023,Housing Revenue Account Capital,AXIS EUROPE PLC   ,Housing Revenue Account Capital,8447.86,Deferred Charges/Grant Payments,2324P01_CR00416,64946,
Sandwell Metropolitan Borough Council,http://www.sandwell.gov.uk/info/200202/performance_and_spending/1079/payments_over_500,01-Apr-2023,Housing Revenue Account Capital,AXIS EUROPE PLC   ,Housing Revenue Account Capital,8661.53,Deferred Charges/Grant Payments,2324P01_CR00417,64946,
Sandwell Metropolitan Borough Council,http://www.sandwell.gov.uk/info/200202/performance_and_spending/1079/payments_over_500,01-Apr-2023,Housing Revenue Account Capital,DOLPHIN LIFTS MIDLANDS LTD,Housing Revenue Account Capital,10254.60,Deferred Charges/Grant Payments,2324P01_CR00418,123852,
Sandwell Metropolitan Borough Council,http://www.sandwell.gov.uk/info/200202/performance_and_spending/1079/payments_over_500,01-Apr-2023,Housing Revenue Account Capital,AXIS EUROPE PLC   ,Housing Revenue Account Capital,10884.96,Deferred Charges/Grant Payments,2324P01_CR00419,64946,
Sandwell Metropolitan Borough Council,http://www.sandwell.gov.uk/info/200202/performance_and_spending/1079/payments_over_500,06-Apr-2023,Housing Revenue Account Capital,LOVELL PARTNERSHIPS  LTD,Housing Revenue Account Capital,11549.07,"CIP - New Construction,Conversion, Enhancement & Reno",2324P01_CR00420,77007398,
Sandwell Metropolitan Borough Council,http://www.sandwell.gov.uk/info/200202/performance_and_spending/1079/payments_over_500,01-Apr-2023,Housing Revenue Account Capital,LOVELL PARTNERSHIPS  LTD,Housing Revenue Account Capital,12729.13,"CIP - New Construction,Conversion, Enhancement & Reno",2324P01_CR00421,77007398,
Sandwell Metropolitan Borough Council,http://www.sandwell.gov.uk/info/200202/performance_and_spending/1079/payments_over_500,01-Apr-2023,Housing Revenue Account Capital,AXIS EUROPE PLC   ,Housing Revenue Account Capital,12960.79,Deferred Charges/Grant Payments,2324P01_CR00422,64946,
Sandwell Metropolitan Borough Council,http://www.sandwell.gov.uk/info/200202/performance_and_spending/1079/payments_over_500,01-Apr-2023,Housing Revenue Account Capital,AXIS EUROPE PLC   ,Housing Revenue Account Capital,13086.82,Deferred Charges/Grant Payments,2324P01_CR00423,64946,
Sandwell Metropolitan Borough Council,http://www.sandwell.gov.uk/info/200202/performance_and_spending/1079/payments_over_500,01-Apr-2023,Housing Revenue Account Capital,AXIS EUROPE PLC   ,Housing Revenue Account Capital,13308.08,Deferred Charges/Grant Payments,2324P01_CR00424,64946,
Sandwell Metropolitan Borough Council,http://www.sandwell.gov.uk/info/200202/performance_and_spending/1079/payments_over_500,01-Apr-2023,Housing Revenue Account Capital,AXIS EUROPE PLC   ,Housing Revenue Account Capital,14093.74,Deferred Charges/Grant Payments,2324P01_CR00425,64946,
Sandwell Metropolitan Borough Council,http://www.sandwell.gov.uk/info/200202/performance_and_spending/1079/payments_over_500,01-Apr-2023,Housing Revenue Account Capital,AXIS EUROPE PLC   ,Housing Revenue Account Capital,14210.93,Deferred Charges/Grant Payments,2324P01_CR00426,64946,
Sandwell Metropolitan Borough Council,http://www.sandwell.gov.uk/info/200202/performance_and_spending/1079/payments_over_500,01-Apr-2023,Housing Revenue Account Capital,AXIS EUROPE PLC   ,Housing Revenue Account Capital,16692.08,Deferred Charges/Grant Payments,2324P01_CR00427,64946,
Sandwell Metropolitan Borough Council,http://www.sandwell.gov.uk/info/200202/performance_and_spending/1079/payments_over_500,01-Apr-2023,Housing Revenue Account Capital,AXIS EUROPE PLC   ,Housing Revenue Account Capital,34581.62,Deferred Charges/Grant Payments,2324P01_CR00428,64946,
Sandwell Metropolitan Borough Council,http://www.sandwell.gov.uk/info/200202/performance_and_spending/1079/payments_over_500,01-Apr-2023,Housing Revenue Account Capital,AXIS EUROPE PLC   ,Housing Revenue Account Capital,35959.30,Deferred Charges/Grant Payments,2324P01_CR00429,64946,
Sandwell Metropolitan Borough Council,http://www.sandwell.gov.uk/info/200202/performance_and_spending/1079/payments_over_500,01-Apr-2023,Housing Revenue Account Capital,AXIS EUROPE PLC   ,Housing Revenue Account Capital,47472.97,Deferred Charges/Grant Payments,2324P01_CR00430,64946,
Sandwell Metropolitan Borough Council,http://www.sandwell.gov.uk/info/200202/performance_and_spending/1079/payments_over_500,01-Apr-2023,Housing Revenue Account Capital,LOVELL PARTNERSHIPS  LTD,Housing Revenue Account Capital,53746.00,"CIP - New Construction,Conversion, Enhancement & Reno",2324P01_CR00431,77007398,
Sandwell Metropolitan Borough Council,http://www.sandwell.gov.uk/info/200202/performance_and_spending/1079/payments_over_500,06-Apr-2023,Housing Revenue Account Capital,LOVELL PARTNERSHIPS  LTD,Housing Revenue Account Capital,84553.17,"CIP - New Construction,Conversion, Enhancement & Reno",2324P01_CR00432,77007398,
Sandwell Metropolitan Borough Council,http://www.sandwell.gov.uk/info/200202/performance_and_spending/1079/payments_over_500,01-Apr-2023,Housing Revenue Account Capital,LOVELL PARTNERSHIPS  LTD,Housing Revenue Account Capital,93082.57,"CIP - New Construction,Conversion, Enhancement & Reno",2324P01_CR00433,77007398,
Sandwell Metropolitan Borough Council,http://www.sandwell.gov.uk/info/200202/performance_and_spending/1079/payments_over_500,06-Apr-2023,Housing Revenue Account Capital,LOVELL PARTNERSHIPS  LTD,Housing Revenue Account Capital,102388.90,"CIP - New Construction,Conversion, Enhancement & Reno",2324P01_CR00434,77007398,
Sandwell Metropolitan Borough Council,http://www.sandwell.gov.uk/info/200202/performance_and_spending/1079/payments_over_500,20-Apr-2023,Housing Revenue Account Capital,NATIONWIDE WINDOWS LIMITED,Housing Revenue Account Capital,177739.34,"CIP - New Construction,Conversion, Enhancement & Reno",2324P01_CR00435,108316,
Sandwell Metropolitan Borough Council,http://www.sandwell.gov.uk/info/200202/performance_and_spending/1079/payments_over_500,03-Apr-2023,Housing Revenue Account Capital,SEDDON CONSTRUCTION LIMITED,Housing Revenue Account Capital,219154.80,"CIP - New Construction,Conversion, Enhancement & Reno",2324P01_CR00436,132999,
Sandwell Metropolitan Borough Council,http://www.sandwell.gov.uk/info/200202/performance_and_spending/1079/payments_over_500,04-Apr-2023,Housing Revenue Account Capital,SPELLER METCALFE MALVERN LIMITED,Housing Revenue Account Capital,258750.00,"CIP - New Construction,Conversion, Enhancement & Reno",2324P01_CR00437,92473,
Sandwell Metropolitan Borough Council,http://www.sandwell.gov.uk/info/200202/performance_and_spending/1079/payments_over_500,01-Apr-2023,Housing Revenue Account Capital,SYCAMORE WINDOWS & CONSERVATORIES LIMITED,Housing Revenue Account Capital,317352.36,"CIP - New Construction,Conversion, Enhancement & Reno",2324P01_CR00438,145272,
Sandwell Metropolitan Borough Council,http://www.sandwell.gov.uk/info/200202/performance_and_spending/1079/payments_over_500,03-Apr-2023,Housing Revenue Account Capital,SURE MAINTENANCE LIMITED,Housing Revenue Account Capital,385185.93,"CIP - New Construction,Conversion, Enhancement & Reno",2324P01_CR00439,93926,
Sandwell Metropolitan Borough Council,http://www.sandwell.gov.uk/info/200202/performance_and_spending/1079/payments_over_500,01-Apr-2023,Housing Revenue Account Capital,LOVELL PARTNERSHIPS  LTD,Housing Revenue Account Capital,538730.17,"CIP - New Construction,Conversion, Enhancement & Reno",2324P01_CR00440,77007398,
Sandwell Metropolitan Borough Council,http://www.sandwell.gov.uk/info/200202/performance_and_spending/1079/payments_over_500,21-Apr-2023,Housing Revenue Account Capital,SEDDON CONSTRUCTION LIMITED,Housing Revenue Account Capital,561183.06,"CIP - New Construction,Conversion, Enhancement & Reno",2324P01_CR00441,132999,
Sandwell Metropolitan Borough Council,http://www.sandwell.gov.uk/info/200202/performance_and_spending/1079/payments_over_500,21-Apr-2023,Individual School Budgets With Inclusion,NATALIE WESTON,Individual School Budgets With Inclusion,511.92,Grant Payments,2324P01_CR00442,152056,
Sandwell Metropolitan Borough Council,http://www.sandwell.gov.uk/info/200202/performance_and_spending/1079/payments_over_500,21-Apr-2023,Individual School Budgets With Inclusion,AMY LEES T/A HONEYBEES HOME NURSERY,Individual School Budgets With Inclusion,639.90,Grant Payments,2324P01_CR00443,165822,
Sandwell Metropolitan Borough Council,http://www.sandwell.gov.uk/info/200202/performance_and_spending/1079/payments_over_500,21-Apr-2023,Individual School Budgets With Inclusion,BABY STEPS DAY CARE,Individual School Budgets With Inclusion,639.90,Grant Payments,2324P01_CR00444,165672,
Sandwell Metropolitan Borough Council,http://www.sandwell.gov.uk/info/200202/performance_and_spending/1079/payments_over_500,21-Apr-2023,Individual School Budgets With Inclusion,BEEHIVE WB LTD,Individual School Budgets With Inclusion,639.90,Grant Payments,2324P01_CR00445,164780,
Sandwell Metropolitan Borough Council,http://www.sandwell.gov.uk/info/200202/performance_and_spending/1079/payments_over_500,21-Apr-2023,Individual School Budgets With Inclusion,CAROLINE HENDERSON,Individual School Budgets With Inclusion,639.90,Grant Payments,2324P01_CR00446,129980,
Sandwell Metropolitan Borough Council,http://www.sandwell.gov.uk/info/200202/performance_and_spending/1079/payments_over_500,21-Apr-2023,Individual School Budgets With Inclusion,DONNA CLEARY,Individual School Budgets With Inclusion,639.90,Grant Payments,2324P01_CR00447,118531,
Sandwell Metropolitan Borough Council,http://www.sandwell.gov.uk/info/200202/performance_and_spending/1079/payments_over_500,21-Apr-2023,Individual School Budgets With Inclusion,THERESA DEAKIN,Individual School Budgets With Inclusion,639.90,Grant Payments,2324P01_CR00448,39468,
Sandwell Metropolitan Borough Council,http://www.sandwell.gov.uk/info/200202/performance_and_spending/1079/payments_over_500,21-Apr-2023,Individual School Budgets With Inclusion,LISA HINTON,Individual School Budgets With Inclusion,653.40,Grant Payments,2324P01_CR00449,92923,
Sandwell Metropolitan Borough Council,http://www.sandwell.gov.uk/info/200202/performance_and_spending/1079/payments_over_500,21-Apr-2023,Individual School Budgets With Inclusion,CAROLINE TAVARES,Individual School Budgets With Inclusion,673.65,Grant Payments,2324P01_CR00450,112188,
Sandwell Metropolitan Borough Council,http://www.sandwell.gov.uk/info/200202/performance_and_spending/1079/payments_over_500,21-Apr-2023,Individual School Budgets With Inclusion,ANNE MARIE JACKSON-HEPBURN,Individual School Budgets With Inclusion,696.96,Grant Payments,2324P01_CR00451,162845,
Sandwell Metropolitan Borough Council,http://www.sandwell.gov.uk/info/200202/performance_and_spending/1079/payments_over_500,21-Apr-2023,Individual School Budgets With Inclusion,BANANA MOON DAY NURSERY,Individual School Budgets With Inclusion,833.40,Grant Payments,2324P01_CR00452,124220,
Sandwell Metropolitan Borough Council,http://www.sandwell.gov.uk/info/200202/performance_and_spending/1079/payments_over_500,21-Apr-2023,Individual School Budgets With Inclusion,SARAH HOWEY,Individual School Budgets With Inclusion,853.20,Grant Payments,2324P01_CR00453,140888,
Sandwell Metropolitan Borough Council,http://www.sandwell.gov.uk/info/200202/performance_and_spending/1079/payments_over_500,21-Apr-2023,Individual School Budgets With Inclusion,STACEY PARTRIDGE (STEP UP CHILDCARE),Individual School Budgets With Inclusion,853.20,Grant Payments,2324P01_CR00454,151395,
Sandwell Metropolitan Borough Council,http://www.sandwell.gov.uk/info/200202/performance_and_spending/1079/payments_over_500,21-Apr-2023,Individual School Budgets With Inclusion,ROWINA WINDSOR,Individual School Budgets With Inclusion,862.20,Grant Payments,2324P01_CR00455,138305,
Sandwell Metropolitan Borough Council,http://www.sandwell.gov.uk/info/200202/performance_and_spending/1079/payments_over_500,21-Apr-2023,Individual School Budgets With Inclusion,JENNIE THOMAS,Individual School Budgets With Inclusion,871.20,Grant Payments,2324P01_CR00456,134322,
Sandwell Metropolitan Borough Council,http://www.sandwell.gov.uk/info/200202/performance_and_spending/1079/payments_over_500,21-Apr-2023,Individual School Budgets With Inclusion,LEEANNE ADAMS,Individual School Budgets With Inclusion,871.20,Grant Payments,2324P01_CR00457,134517,
Sandwell Metropolitan Borough Council,http://www.sandwell.gov.uk/info/200202/performance_and_spending/1079/payments_over_500,21-Apr-2023,Individual School Budgets With Inclusion,CLARE O'DRISCOLL,Individual School Budgets With Inclusion,883.76,Grant Payments,2324P01_CR00458,129659,
Sandwell Metropolitan Borough Council,http://www.sandwell.gov.uk/info/200202/performance_and_spending/1079/payments_over_500,21-Apr-2023,Individual School Budgets With Inclusion,MICHAELA MOSELEY,Individual School Budgets With Inclusion,898.20,Grant Payments,2324P01_CR00459,121672,
Sandwell Metropolitan Borough Council,http://www.sandwell.gov.uk/info/200202/performance_and_spending/1079/payments_over_500,21-Apr-2023,Individual School Budgets With Inclusion,REKA ONWUMELU,Individual School Budgets With Inclusion,995.40,Grant Payments,2324P01_CR00460,123887,
Sandwell Metropolitan Borough Council,http://www.sandwell.gov.uk/info/200202/performance_and_spending/1079/payments_over_500,03-Apr-2023,Individual School Budgets With Inclusion,DEVONSHIRE INFANTS ACADEMY,Individual School Budgets With Inclusion,1000.00,Grant Payments,2324P01_CR00461,118366,
Sandwell Metropolitan Borough Council,http://www.sandwell.gov.uk/info/200202/performance_and_spending/1079/payments_over_500,03-Apr-2023,Individual School Budgets With Inclusion,GNG NURSERY,Individual School Budgets With Inclusion,1000.00,Grant Payments,2324P01_CR00462,114805,
Sandwell Metropolitan Borough Council,http://www.sandwell.gov.uk/info/200202/performance_and_spending/1079/payments_over_500,03-Apr-2023,Individual School Budgets With Inclusion,SILVERTREES ACADEMY TRUST,Individual School Budgets With Inclusion,1000.00,Grant Payments,2324P01_CR00463,113719,
Sandwell Metropolitan Borough Council,http://www.sandwell.gov.uk/info/200202/performance_and_spending/1079/payments_over_500,03-Apr-2023,Individual School Budgets With Inclusion,ST JAMES C OF E PRIMARY SCHOOL,Individual School Budgets With Inclusion,1000.00,Grant Payments,2324P01_CR00464,61054,
Sandwell Metropolitan Borough Council,http://www.sandwell.gov.uk/info/200202/performance_and_spending/1079/payments_over_500,03-Apr-2023,Individual School Budgets With Inclusion,ST MARTINS CE PRIMARY SCHOOL,Individual School Budgets With Inclusion,1000.00,Grant Payments,2324P01_CR00465,61058,
Sandwell Metropolitan Borough Council,http://www.sandwell.gov.uk/info/200202/performance_and_spending/1079/payments_over_500,21-Apr-2023,Individual School Budgets With Inclusion,CARA PRATT,Individual School Budgets With Inclusion,1066.50,Grant Payments,2324P01_CR00466,140537,
Sandwell Metropolitan Borough Council,http://www.sandwell.gov.uk/info/200202/performance_and_spending/1079/payments_over_500,21-Apr-2023,Individual School Budgets With Inclusion,RUPINDER KAUR.,Individual School Budgets With Inclusion,1066.50,Grant Payments,2324P01_CR00467,143707,
Sandwell Metropolitan Borough Council,http://www.sandwell.gov.uk/info/200202/performance_and_spending/1079/payments_over_500,21-Apr-2023,Individual School Budgets With Inclusion,LEKA HOWE,Individual School Budgets With Inclusion,1089.00,Grant Payments,2324P01_CR00468,119503,
Sandwell Metropolitan Borough Council,http://www.sandwell.gov.uk/info/200202/performance_and_spending/1079/payments_over_500,21-Apr-2023,Individual School Budgets With Inclusion,CLAIRE PARTRIDGE,Individual School Budgets With Inclusion,1293.30,Grant Payments,2324P01_CR00469,123143,
Sandwell Metropolitan Borough Council,http://www.sandwell.gov.uk/info/200202/performance_and_spending/1079/payments_over_500,21-Apr-2023,Individual School Budgets With Inclusion,MONIQUE BROWN.,Individual School Budgets With Inclusion,1347.30,Grant Payments,2324P01_CR00470,127112,
Sandwell Metropolitan Borough Council,http://www.sandwell.gov.uk/info/200202/performance_and_spending/1079/payments_over_500,21-Apr-2023,Individual School Budgets With Inclusion,TENDER TROOPS DAY NURSERY AND CHILDREN HUB,Individual School Budgets With Inclusion,1347.30,Grant Payments,2324P01_CR00471,164824,
Sandwell Metropolitan Borough Council,http://www.sandwell.gov.uk/info/200202/performance_and_spending/1079/payments_over_500,24-Apr-2023,Individual School Budgets With Inclusion,ABIGAIL CRUMPTON,Individual School Budgets With Inclusion,1571.85,Grant Payments,2324P01_CR00472,130863,
Sandwell Metropolitan Borough Council,http://www.sandwell.gov.uk/info/200202/performance_and_spending/1079/payments_over_500,21-Apr-2023,Individual School Budgets With Inclusion,VANESSA BILLINGSLEY,Individual School Budgets With Inclusion,1706.40,Grant Payments,2324P01_CR00473,125216,
Sandwell Metropolitan Borough Council,http://www.sandwell.gov.uk/info/200202/performance_and_spending/1079/payments_over_500,21-Apr-2023,Individual School Budgets With Inclusion,SATVINDER KAUR,Individual School Budgets With Inclusion,1919.70,Grant Payments,2324P01_CR00474,131042,
Sandwell Metropolitan Borough Council,http://www.sandwell.gov.uk/info/200202/performance_and_spending/1079/payments_over_500,03-Apr-2023,Individual School Budgets With Inclusion,BRANDHALL PRIMARY SCHOOL              ,Individual School Budgets With Inclusion,2000.00,Grant Payments,2324P01_CR00475,60971,
Sandwell Metropolitan Borough Council,http://www.sandwell.gov.uk/info/200202/performance_and_spending/1079/payments_over_500,03-Apr-2023,Individual School Budgets With Inclusion,JUNIPER'S PRESCHOOL,Individual School Budgets With Inclusion,2000.00,Grant Payments,2324P01_CR00476,154579,
Sandwell Metropolitan Borough Council,http://www.sandwell.gov.uk/info/200202/performance_and_spending/1079/payments_over_500,21-Apr-2023,Individual School Budgets With Inclusion,HAYLEY TURNER,Individual School Budgets With Inclusion,2133.00,Grant Payments,2324P01_CR00477,162824,
Sandwell Metropolitan Borough Council,http://www.sandwell.gov.uk/info/200202/performance_and_spending/1079/payments_over_500,21-Apr-2023,Individual School Budgets With Inclusion,JACQUELINE HEHIR,Individual School Budgets With Inclusion,2155.50,Grant Payments,2324P01_CR00478,75203,
Sandwell Metropolitan Borough Council,http://www.sandwell.gov.uk/info/200202/performance_and_spending/1079/payments_over_500,21-Apr-2023,Individual School Budgets With Inclusion,ST MICHAELS DAY NURSERY,Individual School Budgets With Inclusion,2223.00,Grant Payments,2324P01_CR00479,01698538,
Sandwell Metropolitan Borough Council,http://www.sandwell.gov.uk/info/200202/performance_and_spending/1079/payments_over_500,21-Apr-2023,Individual School Budgets With Inclusion,CONFEDERATION OF BANGLADESHI ORGANISATIONS (CBO) LIMITED,Individual School Budgets With Inclusion,2445.30,Grant Payments,2324P01_CR00480,10034,
Sandwell Metropolitan Borough Council,http://www.sandwell.gov.uk/info/200202/performance_and_spending/1079/payments_over_500,21-Apr-2023,Individual School Budgets With Inclusion,JENNIFER LOUISE LEATHERLAND,Individual School Budgets With Inclusion,2889.90,Grant Payments,2324P01_CR00481,131850,
Sandwell Metropolitan Borough Council,http://www.sandwell.gov.uk/info/200202/performance_and_spending/1079/payments_over_500,03-Apr-2023,Individual School Budgets With Inclusion,FERNDALE PRIMARY SCHOOL  ,Individual School Budgets With Inclusion,3000.00,Grant Payments,2324P01_CR00482,11562,
Sandwell Metropolitan Borough Council,http://www.sandwell.gov.uk/info/200202/performance_and_spending/1079/payments_over_500,21-Apr-2023,Individual School Budgets With Inclusion,AL KAHIR SCHOOL,Individual School Budgets With Inclusion,3017.70,Grant Payments,2324P01_CR00483,128728,
Sandwell Metropolitan Borough Council,http://www.sandwell.gov.uk/info/200202/performance_and_spending/1079/payments_over_500,21-Apr-2023,Individual School Budgets With Inclusion,TINY STEPS,Individual School Budgets With Inclusion,3049.20,Grant Payments,2324P01_CR00484,125778,
Sandwell Metropolitan Borough Council,http://www.sandwell.gov.uk/info/200202/performance_and_spending/1079/payments_over_500,21-Apr-2023,Individual School Budgets With Inclusion,LITTLE VALERS PRE SCHOOL,Individual School Budgets With Inclusion,3384.36,Grant Payments,2324P01_CR00485,99107,
Sandwell Metropolitan Borough Council,http://www.sandwell.gov.uk/info/200202/performance_and_spending/1079/payments_over_500,21-Apr-2023,Individual School Budgets With Inclusion,PLAYHOUSE DAY NURSERY,Individual School Budgets With Inclusion,3702.60,Grant Payments,2324P01_CR00486,01586669,
Sandwell Metropolitan Borough Council,http://www.sandwell.gov.uk/info/200202/performance_and_spending/1079/payments_over_500,21-Apr-2023,Individual School Budgets With Inclusion,TWO STEPS PRE-SCHOOL,Individual School Budgets With Inclusion,3817.35,Grant Payments,2324P01_CR00487,109186,
Sandwell Metropolitan Borough Council,http://www.sandwell.gov.uk/info/200202/performance_and_spending/1079/payments_over_500,21-Apr-2023,Individual School Budgets With Inclusion,LITTLE ACADEMY NURSERY,Individual School Budgets With Inclusion,3879.90,Grant Payments,2324P01_CR00488,81904,
Sandwell Metropolitan Borough Council,http://www.sandwell.gov.uk/info/200202/performance_and_spending/1079/payments_over_500,21-Apr-2023,Individual School Budgets With Inclusion,WENDY MAXWELL,Individual School Budgets With Inclusion,4095.45,Grant Payments,2324P01_CR00489,37344,
Sandwell Metropolitan Borough Council,http://www.sandwell.gov.uk/info/200202/performance_and_spending/1079/payments_over_500,21-Apr-2023,Individual School Budgets With Inclusion,ROOTS & SHOOTS PLAYGROUP,Individual School Budgets With Inclusion,4290.30,Grant Payments,2324P01_CR00490,75502,
Sandwell Metropolitan Borough Council,http://www.sandwell.gov.uk/info/200202/performance_and_spending/1079/payments_over_500,21-Apr-2023,Individual School Budgets With Inclusion,TULIP DAY NURSERY LTD,Individual School Budgets With Inclusion,4446.00,Grant Payments,2324P01_CR00491,152250,
Sandwell Metropolitan Borough Council,http://www.sandwell.gov.uk/info/200202/performance_and_spending/1079/payments_over_500,21-Apr-2023,Individual School Budgets With Inclusion,CATHERINE HOUSE DAY NURSERY,Individual School Budgets With Inclusion,4727.73,Grant Payments,2324P01_CR00492,08587767,
Sandwell Metropolitan Borough Council,http://www.sandwell.gov.uk/info/200202/performance_and_spending/1079/payments_over_500,21-Apr-2023,Individual School Budgets With Inclusion,WHITECREST PRIMARY SCHOOL  ,Individual School Budgets With Inclusion,4995.00,Grant Payments,2324P01_CR00493,38087,
Sandwell Metropolitan Borough Council,http://www.sandwell.gov.uk/info/200202/performance_and_spending/1079/payments_over_500,21-Apr-2023,Individual School Budgets With Inclusion,CAP DAY NURSERY,Individual School Budgets With Inclusion,5112.90,Grant Payments,2324P01_CR00494,51154,
Sandwell Metropolitan Borough Council,http://www.sandwell.gov.uk/info/200202/performance_and_spending/1079/payments_over_500,21-Apr-2023,Individual School Budgets With Inclusion,LITTLE LEGEND NURSERIES LTD,Individual School Budgets With Inclusion,5220.00,Grant Payments,2324P01_CR00495,117890,
Sandwell Metropolitan Borough Council,http://www.sandwell.gov.uk/info/200202/performance_and_spending/1079/payments_over_500,21-Apr-2023,Individual School Budgets With Inclusion,KANGAROO POUCH CHARLEMONT,Individual School Budgets With Inclusion,5335.20,Grant Payments,2324P01_CR00496,117283,
Sandwell Metropolitan Borough Council,http://www.sandwell.gov.uk/info/200202/performance_and_spending/1079/payments_over_500,21-Apr-2023,Individual School Budgets With Inclusion,STEPPING STONES NURSERY,Individual School Budgets With Inclusion,5604.30,Grant Payments,2324P01_CR00497,50029,
Sandwell Metropolitan Borough Council,http://www.sandwell.gov.uk/info/200202/performance_and_spending/1079/payments_over_500,21-Apr-2023,Individual School Budgets With Inclusion,FATIMA DAY NURSERY,Individual School Budgets With Inclusion,5662.80,Grant Payments,2324P01_CR00498,131343,
Sandwell Metropolitan Borough Council,http://www.sandwell.gov.uk/info/200202/performance_and_spending/1079/payments_over_500,21-Apr-2023,Individual School Budgets With Inclusion,PITTA PATTA DAYCARE,Individual School Budgets With Inclusion,5662.80,Grant Payments,2324P01_CR00499,114742,
Sandwell Metropolitan Borough Council,http://www.sandwell.gov.uk/info/200202/performance_and_spending/1079/payments_over_500,03-Apr-2023,Individual School Budgets With Inclusion,GLEBEFIELDS PRIMARY SCHOOL  ,Individual School Budgets With Inclusion,6000.00,Grant Payments,2324P01_CR00500,60989,
Sandwell Metropolitan Borough Council,http://www.sandwell.gov.uk/info/200202/performance_and_spending/1079/payments_over_500,21-Apr-2023,Individual School Budgets With Inclusion,LITTLE STEPPERS,Individual School Budgets With Inclusion,6098.40,Grant Payments,2324P01_CR00501,120240,
Sandwell Metropolitan Borough Council,http://www.sandwell.gov.uk/info/200202/performance_and_spending/1079/payments_over_500,21-Apr-2023,Individual School Budgets With Inclusion,SADWICA DAY NURSERY,Individual School Budgets With Inclusion,6171.00,Grant Payments,2324P01_CR00502,01667892,
Sandwell Metropolitan Borough Council,http://www.sandwell.gov.uk/info/200202/performance_and_spending/1079/payments_over_500,21-Apr-2023,Individual School Budgets With Inclusion,LITTLE ANGELS DAY NURSERY LIMITED,Individual School Budgets With Inclusion,6316.20,Grant Payments,2324P01_CR00503,10207,
Sandwell Metropolitan Borough Council,http://www.sandwell.gov.uk/info/200202/performance_and_spending/1079/payments_over_500,21-Apr-2023,Individual School Budgets With Inclusion,CONIFERS DAY NURSERY LTD,Individual School Budgets With Inclusion,6534.00,Grant Payments,2324P01_CR00504,131957,
Sandwell Metropolitan Borough Council,http://www.sandwell.gov.uk/info/200202/performance_and_spending/1079/payments_over_500,21-Apr-2023,Individual School Budgets With Inclusion,MOORLANDS LITTLE LEARNERS PLAYGROUP,Individual School Budgets With Inclusion,6751.80,Grant Payments,2324P01_CR00505,46390,
Sandwell Metropolitan Borough Council,http://www.sandwell.gov.uk/info/200202/performance_and_spending/1079/payments_over_500,21-Apr-2023,Individual School Budgets With Inclusion,BLOXCIDGE HOUSE DAY NURSERY,Individual School Budgets With Inclusion,7187.40,Grant Payments,2324P01_CR00506,82862,
Sandwell Metropolitan Borough Council,http://www.sandwell.gov.uk/info/200202/performance_and_spending/1079/payments_over_500,21-Apr-2023,Individual School Budgets With Inclusion,MINNS LIMITED,Individual School Budgets With Inclusion,7187.40,Grant Payments,2324P01_CR00507,120067,
Sandwell Metropolitan Borough Council,http://www.sandwell.gov.uk/info/200202/performance_and_spending/1079/payments_over_500,21-Apr-2023,Individual School Budgets With Inclusion,5 STAR DAY NURSERY LIMITED,Individual School Budgets With Inclusion,7252.20,Grant Payments,2324P01_CR00508,105382,
Sandwell Metropolitan Borough Council,http://www.sandwell.gov.uk/info/200202/performance_and_spending/1079/payments_over_500,21-Apr-2023,Individual School Budgets With Inclusion,DAFFODILS NURSERY LTD,Individual School Budgets With Inclusion,7335.90,Grant Payments,2324P01_CR00509,120066,
Sandwell Metropolitan Borough Council,http://www.sandwell.gov.uk/info/200202/performance_and_spending/1079/payments_over_500,21-Apr-2023,Individual School Budgets With Inclusion,FIRST STEPS OLDBURY,Individual School Budgets With Inclusion,7405.20,Grant Payments,2324P01_CR00510,118886,
Sandwell Metropolitan Borough Council,http://www.sandwell.gov.uk/info/200202/performance_and_spending/1079/payments_over_500,21-Apr-2023,Individual School Budgets With Inclusion,SMARTY PANTS @ LIGHTWOODS HOUSE LTD,Individual School Budgets With Inclusion,7465.50,Grant Payments,2324P01_CR00511,130645,
Sandwell Metropolitan Borough Council,http://www.sandwell.gov.uk/info/200202/performance_and_spending/1079/payments_over_500,21-Apr-2023,Individual School Budgets With Inclusion,KANGAROO POUCH AT TIVIDALE,Individual School Budgets With Inclusion,7678.80,Grant Payments,2324P01_CR00512,113715,
Sandwell Metropolitan Borough Council,http://www.sandwell.gov.uk/info/200202/performance_and_spending/1079/payments_over_500,21-Apr-2023,Individual School Budgets With Inclusion,HAPPY DAYS NURSERY (GREETS GREEN),Individual School Budgets With Inclusion,8225.10,Grant Payments,2324P01_CR00513,125840,
Sandwell Metropolitan Borough Council,http://www.sandwell.gov.uk/info/200202/performance_and_spending/1079/payments_over_500,21-Apr-2023,Individual School Budgets With Inclusion,ADVENTURE QUEST (GREAT BRIDGE) LTD,Individual School Budgets With Inclusion,8276.40,Grant Payments,2324P01_CR00514,153563,
Sandwell Metropolitan Borough Council,http://www.sandwell.gov.uk/info/200202/performance_and_spending/1079/payments_over_500,21-Apr-2023,Individual School Budgets With Inclusion,KANGAROO POUCH AT GREAT BRIDGE,Individual School Budgets With Inclusion,8276.40,Grant Payments,2324P01_CR00515,129771,
Sandwell Metropolitan Borough Council,http://www.sandwell.gov.uk/info/200202/performance_and_spending/1079/payments_over_500,21-Apr-2023,Individual School Budgets With Inclusion,KANGAROO POUCH LIMITED,Individual School Budgets With Inclusion,8276.40,Grant Payments,2324P01_CR00516,106981,
Sandwell Metropolitan Borough Council,http://www.sandwell.gov.uk/info/200202/performance_and_spending/1079/payments_over_500,21-Apr-2023,Individual School Budgets With Inclusion,BOOKWORMS DAYCARE LIMITED,Individual School Budgets With Inclusion,8406.45,Grant Payments,2324P01_CR00517,114741,
Sandwell Metropolitan Borough Council,http://www.sandwell.gov.uk/info/200202/performance_and_spending/1079/payments_over_500,21-Apr-2023,Individual School Budgets With Inclusion,JUNIPER'S PRESCHOOL,Individual School Budgets With Inclusion,8406.45,Grant Payments,2324P01_CR00518,154579,
Sandwell Metropolitan Borough Council,http://www.sandwell.gov.uk/info/200202/performance_and_spending/1079/payments_over_500,21-Apr-2023,Individual School Budgets With Inclusion,N & K VARMA LIMITED T/A (KIDDIES PLAYHOUSE TIPTON),Individual School Budgets With Inclusion,8494.20,Grant Payments,2324P01_CR00519,26124,
Sandwell Metropolitan Borough Council,http://www.sandwell.gov.uk/info/200202/performance_and_spending/1079/payments_over_500,21-Apr-2023,Individual School Budgets With Inclusion,SPON LANE DAY NURSERY LIMITED,Individual School Budgets With Inclusion,8669.70,Grant Payments,2324P01_CR00520,127024,
Sandwell Metropolitan Borough Council,http://www.sandwell.gov.uk/info/200202/performance_and_spending/1079/payments_over_500,21-Apr-2023,Individual School Budgets With Inclusion,5 STAR DAY NURSERY - OLDBURY,Individual School Budgets With Inclusion,8712.00,Grant Payments,2324P01_CR00521,120730,
Sandwell Metropolitan Borough Council,http://www.sandwell.gov.uk/info/200202/performance_and_spending/1079/payments_over_500,21-Apr-2023,Individual School Budgets With Inclusion,GNG NURSERY,Individual School Budgets With Inclusion,8712.00,Grant Payments,2324P01_CR00522,114805,
Sandwell Metropolitan Borough Council,http://www.sandwell.gov.uk/info/200202/performance_and_spending/1079/payments_over_500,21-Apr-2023,Individual School Budgets With Inclusion,TIP TOP DAY NURSERY WEDNESBURY,Individual School Budgets With Inclusion,8712.00,Grant Payments,2324P01_CR00523,147082,
Sandwell Metropolitan Borough Council,http://www.sandwell.gov.uk/info/200202/performance_and_spending/1079/payments_over_500,21-Apr-2023,Individual School Budgets With Inclusion,LITTLE LEARNERS LTD,Individual School Budgets With Inclusion,8757.45,Grant Payments,2324P01_CR00524,01424133,
Sandwell Metropolitan Borough Council,http://www.sandwell.gov.uk/info/200202/performance_and_spending/1079/payments_over_500,21-Apr-2023,Individual School Budgets With Inclusion,BUSY BEE NURSERY,Individual School Budgets With Inclusion,8981.25,Grant Payments,2324P01_CR00525,01222577,
Sandwell Metropolitan Borough Council,http://www.sandwell.gov.uk/info/200202/performance_and_spending/1079/payments_over_500,21-Apr-2023,Individual School Budgets With Inclusion,KAI DRUMS,Individual School Budgets With Inclusion,9053.10,Grant Payments,2324P01_CR00526,120729,
Sandwell Metropolitan Borough Council,http://www.sandwell.gov.uk/info/200202/performance_and_spending/1079/payments_over_500,21-Apr-2023,Individual School Budgets With Inclusion,LITTLE SAPLINGS CHILDCARE CENTRES,Individual School Budgets With Inclusion,9268.65,Grant Payments,2324P01_CR00527,131043,
Sandwell Metropolitan Borough Council,http://www.sandwell.gov.uk/info/200202/performance_and_spending/1079/payments_over_500,21-Apr-2023,Individual School Budgets With Inclusion,TIPTON NURSERY,Individual School Budgets With Inclusion,9336.60,Grant Payments,2324P01_CR00528,89881,
Sandwell Metropolitan Borough Council,http://www.sandwell.gov.uk/info/200202/performance_and_spending/1079/payments_over_500,21-Apr-2023,Individual School Budgets With Inclusion,THE TODDLER HOUSE LIMITED,Individual School Budgets With Inclusion,9365.40,Grant Payments,2324P01_CR00529,122166,
Sandwell Metropolitan Borough Council,http://www.sandwell.gov.uk/info/200202/performance_and_spending/1079/payments_over_500,21-Apr-2023,Individual School Budgets With Inclusion,PERRYFIELDS PRE SCHOOL,Individual School Budgets With Inclusion,9750.05,Grant Payments,2324P01_CR00530,18879,
Sandwell Metropolitan Borough Council,http://www.sandwell.gov.uk/info/200202/performance_and_spending/1079/payments_over_500,21-Apr-2023,Individual School Budgets With Inclusion,THE WONDER YEARS DAY NURSERY LIMITED,Individual School Budgets With Inclusion,9801.00,Grant Payments,2324P01_CR00531,01647249,
Sandwell Metropolitan Borough Council,http://www.sandwell.gov.uk/info/200202/performance_and_spending/1079/payments_over_500,21-Apr-2023,Individual School Budgets With Inclusion,TINY TOEZ LIMITED,Individual School Budgets With Inclusion,10025.10,Grant Payments,2324P01_CR00532,23618,
Sandwell Metropolitan Borough Council,http://www.sandwell.gov.uk/info/200202/performance_and_spending/1079/payments_over_500,21-Apr-2023,Individual School Budgets With Inclusion,OUR LADY AND ST HUBERTS CATHOLIC PRIMARY SCHOOL                                      02,Individual School Budgets With Inclusion,10105.92,Grant Payments,2324P01_CR00533,61053,
Sandwell Metropolitan Borough Council,http://www.sandwell.gov.uk/info/200202/performance_and_spending/1079/payments_over_500,21-Apr-2023,Individual School Budgets With Inclusion,LILLIPUT LODGE CHILDRENS DAY NURSERY,Individual School Budgets With Inclusion,10130.85,Grant Payments,2324P01_CR00534,2980,
Sandwell Metropolitan Borough Council,http://www.sandwell.gov.uk/info/200202/performance_and_spending/1079/payments_over_500,21-Apr-2023,Individual School Budgets With Inclusion,FIREFLIES NURSERY LIMITED,Individual School Budgets With Inclusion,10236.60,Grant Payments,2324P01_CR00535,124120,
Sandwell Metropolitan Borough Council,http://www.sandwell.gov.uk/info/200202/performance_and_spending/1079/payments_over_500,21-Apr-2023,Individual School Budgets With Inclusion,HUMPTY DUMPTYS DAY NURSERY,Individual School Budgets With Inclusion,10236.60,Grant Payments,2324P01_CR00536,08510771,
Sandwell Metropolitan Borough Council,http://www.sandwell.gov.uk/info/200202/performance_and_spending/1079/payments_over_500,21-Apr-2023,Individual School Budgets With Inclusion,MINI MONKEYS LTD,Individual School Budgets With Inclusion,10236.60,Grant Payments,2324P01_CR00537,114818,
Sandwell Metropolitan Borough Council,http://www.sandwell.gov.uk/info/200202/performance_and_spending/1079/payments_over_500,21-Apr-2023,Individual School Budgets With Inclusion,UNITED KIDS LIMITED,Individual School Budgets With Inclusion,10236.60,Grant Payments,2324P01_CR00538,136360,
Sandwell Metropolitan Borough Council,http://www.sandwell.gov.uk/info/200202/performance_and_spending/1079/payments_over_500,21-Apr-2023,Individual School Budgets With Inclusion,THE FAMILY NURSERY COMPANY LTD,Individual School Budgets With Inclusion,10454.40,Grant Payments,2324P01_CR00539,89879,
Sandwell Metropolitan Borough Council,http://www.sandwell.gov.uk/info/200202/performance_and_spending/1079/payments_over_500,21-Apr-2023,Individual School Budgets With Inclusion,FIRST STEPS DAY NURSERY,Individual School Budgets With Inclusion,10890.00,Grant Payments,2324P01_CR00540,51155,
Sandwell Metropolitan Borough Council,http://www.sandwell.gov.uk/info/200202/performance_and_spending/1079/payments_over_500,21-Apr-2023,Individual School Budgets With Inclusion,LOLA BELLES PRIVATE DAY NURSERY,Individual School Budgets With Inclusion,11208.60,Grant Payments,2324P01_CR00541,89271,
Sandwell Metropolitan Borough Council,http://www.sandwell.gov.uk/info/200202/performance_and_spending/1079/payments_over_500,21-Apr-2023,Individual School Budgets With Inclusion,BANANA MOON DAY NURSERY,Individual School Budgets With Inclusion,11325.60,Grant Payments,2324P01_CR00542,124220,
Sandwell Metropolitan Borough Council,http://www.sandwell.gov.uk/info/200202/performance_and_spending/1079/payments_over_500,21-Apr-2023,Individual School Budgets With Inclusion,ROWLEY VILLAGE DAY NURSERY,Individual School Budgets With Inclusion,11325.60,Grant Payments,2324P01_CR00543,24228,
Sandwell Metropolitan Borough Council,http://www.sandwell.gov.uk/info/200202/performance_and_spending/1079/payments_over_500,21-Apr-2023,Individual School Budgets With Inclusion,ABC DAY NURSERY & PRE SCHOOL LTD,Individual School Budgets With Inclusion,11424.15,Grant Payments,2324P01_CR00544,01472823,
Sandwell Metropolitan Borough Council,http://www.sandwell.gov.uk/info/200202/performance_and_spending/1079/payments_over_500,21-Apr-2023,Individual School Budgets With Inclusion,TIMBERTREE NEIGHBOURHOOD NURSERY,Individual School Budgets With Inclusion,11855.25,Grant Payments,2324P01_CR00545,135664,
Sandwell Metropolitan Borough Council,http://www.sandwell.gov.uk/info/200202/performance_and_spending/1079/payments_over_500,21-Apr-2023,Individual School Budgets With Inclusion,BRIGHT LIGHTS DAY NURSERY,Individual School Budgets With Inclusion,12004.20,Grant Payments,2324P01_CR00546,89877,
Sandwell Metropolitan Borough Council,http://www.sandwell.gov.uk/info/200202/performance_and_spending/1079/payments_over_500,21-Apr-2023,Individual School Budgets With Inclusion,RAK DAY CARE LTD T/A HAPPY VALLEY PRE SCHOOL LTD,Individual School Budgets With Inclusion,12414.60,Grant Payments,2324P01_CR00547,01572212,
Sandwell Metropolitan Borough Council,http://www.sandwell.gov.uk/info/200202/performance_and_spending/1079/payments_over_500,21-Apr-2023,Individual School Budgets With Inclusion,SANTOS DAY NURSERIES,Individual School Budgets With Inclusion,13011.30,Grant Payments,2324P01_CR00548,129262,
Sandwell Metropolitan Borough Council,http://www.sandwell.gov.uk/info/200202/performance_and_spending/1079/payments_over_500,21-Apr-2023,Individual School Budgets With Inclusion,GENIUS GEMS,Individual School Budgets With Inclusion,13024.44,Grant Payments,2324P01_CR00549,160606,
Sandwell Metropolitan Borough Council,http://www.sandwell.gov.uk/info/200202/performance_and_spending/1079/payments_over_500,21-Apr-2023,Individual School Budgets With Inclusion,UNITED KIDS CHILDCARE,Individual School Budgets With Inclusion,13148.55,Grant Payments,2324P01_CR00550,134806,
Sandwell Metropolitan Borough Council,http://www.sandwell.gov.uk/info/200202/performance_and_spending/1079/payments_over_500,21-Apr-2023,Individual School Budgets With Inclusion,WEST BROMWICH & DISTRICT Y.M.C.A. COMMUNITY ENTERPRISES,Individual School Budgets With Inclusion,13364.64,Grant Payments,2324P01_CR00551,01088376,
Sandwell Metropolitan Borough Council,http://www.sandwell.gov.uk/info/200202/performance_and_spending/1079/payments_over_500,21-Apr-2023,Individual School Budgets With Inclusion,SMARTY PANTS PRIVATE DAY NURSERY LTD,Individual School Budgets With Inclusion,13503.60,Grant Payments,2324P01_CR00552,74037,
Sandwell Metropolitan Borough Council,http://www.sandwell.gov.uk/info/200202/performance_and_spending/1079/payments_over_500,21-Apr-2023,Individual School Budgets With Inclusion,FAIRYTALES NURSERY LTD,Individual School Budgets With Inclusion,13579.65,Grant Payments,2324P01_CR00553,106247,
Sandwell Metropolitan Borough Council,http://www.sandwell.gov.uk/info/200202/performance_and_spending/1079/payments_over_500,21-Apr-2023,Individual School Budgets With Inclusion,TIDDLYWINKS KIDDYS NURSERY LIMITED,Individual School Budgets With Inclusion,14157.00,Grant Payments,2324P01_CR00554,110667,
Sandwell Metropolitan Borough Council,http://www.sandwell.gov.uk/info/200202/performance_and_spending/1079/payments_over_500,21-Apr-2023,Individual School Budgets With Inclusion,TIPTON TODDLERS DAY NURSERY,Individual School Budgets With Inclusion,15196.28,Grant Payments,2324P01_CR00555,4397,
Sandwell Metropolitan Borough Council,http://www.sandwell.gov.uk/info/200202/performance_and_spending/1079/payments_over_500,21-Apr-2023,Individual School Budgets With Inclusion,RARE WOOD LIMITED,Individual School Budgets With Inclusion,15338.70,Grant Payments,2324P01_CR00556,20167,
Sandwell Metropolitan Borough Council,http://www.sandwell.gov.uk/info/200202/performance_and_spending/1079/payments_over_500,21-Apr-2023,Individual School Budgets With Inclusion,SANDWELL NHS TRUST DAY NURSERY,Individual School Budgets With Inclusion,16335.00,Grant Payments,2324P01_CR00557,40788,
Sandwell Metropolitan Borough Council,http://www.sandwell.gov.uk/info/200202/performance_and_spending/1079/payments_over_500,21-Apr-2023,Individual School Budgets With Inclusion,LITTLE EXPLORERS (WEST MIDLANDS) LTD,Individual School Budgets With Inclusion,17641.80,Grant Payments,2324P01_CR00558,114804,
Sandwell Metropolitan Borough Council,http://www.sandwell.gov.uk/info/200202/performance_and_spending/1079/payments_over_500,21-Apr-2023,Individual School Budgets With Inclusion,TINY WOODS PRE SCHOOL,Individual School Budgets With Inclusion,17703.90,Grant Payments,2324P01_CR00559,91788,
Sandwell Metropolitan Borough Council,http://www.sandwell.gov.uk/info/200202/performance_and_spending/1079/payments_over_500,21-Apr-2023,Individual School Budgets With Inclusion,ST HUBERTS PRE-SCHOOL PLAYGROUP 2,Individual School Budgets With Inclusion,19097.73,Grant Payments,2324P01_CR00560,123074,
Sandwell Metropolitan Borough Council,http://www.sandwell.gov.uk/info/200202/performance_and_spending/1079/payments_over_500,21-Apr-2023,Individual School Budgets With Inclusion,LITTLE WENDY HOUSE DAY NURSERY,Individual School Budgets With Inclusion,19602.00,Grant Payments,2324P01_CR00561,91544,
Sandwell Metropolitan Borough Council,http://www.sandwell.gov.uk/info/200202/performance_and_spending/1079/payments_over_500,21-Apr-2023,Individual School Budgets With Inclusion,WIGGLES & GIGGLES LTD,Individual School Budgets With Inclusion,20304.81,Grant Payments,2324P01_CR00562,01674799,
Sandwell Metropolitan Borough Council,http://www.sandwell.gov.uk/info/200202/performance_and_spending/1079/payments_over_500,21-Apr-2023,Individual School Budgets With Inclusion,TICK TOCK DAY NURSERY LTD,Individual School Budgets With Inclusion,20691.00,Grant Payments,2324P01_CR00563,9391,
Sandwell Metropolitan Borough Council,http://www.sandwell.gov.uk/info/200202/performance_and_spending/1079/payments_over_500,21-Apr-2023,Individual School Budgets With Inclusion,THE RIVERS MULTI ACADEMY TRUST,Individual School Budgets With Inclusion,24829.20,Grant Payments,2324P01_CR00564,61014,
Sandwell Metropolitan Borough Council,http://www.sandwell.gov.uk/info/200202/performance_and_spending/1079/payments_over_500,21-Apr-2023,Individual School Budgets With Inclusion,WONDERLAND CHILDRENS DAY NURSERY (UK) LTD,Individual School Budgets With Inclusion,24829.20,Grant Payments,2324P01_CR00565,50852,
Sandwell Metropolitan Borough Council,http://www.sandwell.gov.uk/info/200202/performance_and_spending/1079/payments_over_500,21-Apr-2023,Individual School Budgets With Inclusion,UNICORN DAY NURSERY,Individual School Budgets With Inclusion,29474.82,Grant Payments,2324P01_CR00566,91543,
Sandwell Metropolitan Borough Council,http://www.sandwell.gov.uk/info/200202/performance_and_spending/1079/payments_over_500,21-Apr-2023,Individual School Budgets With Inclusion,LAVENDER FARM DAY NURSERY,Individual School Budgets With Inclusion,30927.60,Grant Payments,2324P01_CR00567,65596,
Sandwell Metropolitan Borough Council,http://www.sandwell.gov.uk/info/200202/performance_and_spending/1079/payments_over_500,03-Apr-2023,Individual School Budgets With Inclusion,SANDWELL VALLEY SCHOOL,Individual School Budgets With Inclusion,-1190.00,Learning Resources,2324P01_CR00568,128222,
Sandwell Metropolitan Borough Council,http://www.sandwell.gov.uk/info/200202/performance_and_spending/1079/payments_over_500,03-Apr-2023,Individual School Budgets With Inclusion,SANDWELL VALLEY SCHOOL,Individual School Budgets With Inclusion,-1050.00,Learning Resources,2324P01_CR00569,128222,
Sandwell Metropolitan Borough Council,http://www.sandwell.gov.uk/info/200202/performance_and_spending/1079/payments_over_500,01-Apr-2023,Individual School Budgets With Inclusion,ENVIRONMENTS FOR LEARNING SANDWELL PFI ONE LIMITED,Individual School Budgets With Inclusion,-681.35,PFI & PPP Schemes,2324P01_CR00570,98332,
Sandwell Metropolitan Borough Council,http://www.sandwell.gov.uk/info/200202/performance_and_spending/1079/payments_over_500,18-Apr-2023,Individual School Budgets With Inclusion,SONOVA UK,Individual School Budgets With Inclusion,-538.13,Equipment & Furniture ,2324P01_CR00571,01576192,
Sandwell Metropolitan Borough Council,http://www.sandwell.gov.uk/info/200202/performance_and_spending/1079/payments_over_500,18-Apr-2023,Individual School Budgets With Inclusion,SONOVA UK,Individual School Budgets With Inclusion,538.13,Equipment & Furniture ,2324P01_CR00572,01576192,
Sandwell Metropolitan Borough Council,http://www.sandwell.gov.uk/info/200202/performance_and_spending/1079/payments_over_500,03-Apr-2023,Individual School Budgets With Inclusion,SANDWELL LEISURE TRUST,Individual School Budgets With Inclusion,541.50,Learning Resources,2324P01_CR00573,23305,
Sandwell Metropolitan Borough Council,http://www.sandwell.gov.uk/info/200202/performance_and_spending/1079/payments_over_500,01-Apr-2023,Individual School Budgets With Inclusion,KIDS PHYSIOTHERAPY LTD,Individual School Budgets With Inclusion,572.00,Other Local Authorities,2324P01_CR00574,146801,
Sandwell Metropolitan Borough Council,http://www.sandwell.gov.uk/info/200202/performance_and_spending/1079/payments_over_500,01-Apr-2023,Individual School Budgets With Inclusion,SANDWELL FUTURES LTD,Individual School Budgets With Inclusion,576.23,Private Contractors,2324P01_CR00575,88151,
Sandwell Metropolitan Borough Council,http://www.sandwell.gov.uk/info/200202/performance_and_spending/1079/payments_over_500,01-Apr-2023,Individual School Budgets With Inclusion,SANDWELL FUTURES LTD,Individual School Budgets With Inclusion,587.25,Private Contractors,2324P01_CR00576,88151,
Sandwell Metropolitan Borough Council,http://www.sandwell.gov.uk/info/200202/performance_and_spending/1079/payments_over_500,01-Apr-2023,Individual School Budgets With Inclusion,SANDWELL FUTURES LTD,Individual School Budgets With Inclusion,607.54,Private Contractors,2324P01_CR00577,88151,
Sandwell Metropolitan Borough Council,http://www.sandwell.gov.uk/info/200202/performance_and_spending/1079/payments_over_500,01-Apr-2023,Individual School Budgets With Inclusion,DUNEDIN COMPLEX CARE LIMITED,Individual School Budgets With Inclusion,616.00,Other Local Authorities,2324P01_CR00578,164634,
Sandwell Metropolitan Borough Council,http://www.sandwell.gov.uk/info/200202/performance_and_spending/1079/payments_over_500,01-Apr-2023,Individual School Budgets With Inclusion,DUNEDIN COMPLEX CARE LIMITED,Individual School Budgets With Inclusion,616.00,Other Local Authorities,2324P01_CR00579,164634,
Sandwell Metropolitan Borough Council,http://www.sandwell.gov.uk/info/200202/performance_and_spending/1079/payments_over_500,01-Apr-2023,Individual School Budgets With Inclusion,SANDWELL FUTURES LTD,Individual School Budgets With Inclusion,625.70,Private Contractors,2324P01_CR00580,88151,
Sandwell Metropolitan Borough Council,http://www.sandwell.gov.uk/info/200202/performance_and_spending/1079/payments_over_500,01-Apr-2023,Individual School Budgets With Inclusion,ENVIRONMENTS FOR LEARNING SANDWELL PFI ONE LIMITED,Individual School Budgets With Inclusion,678.96,PFI & PPP Schemes,2324P01_CR00581,98332,
Sandwell Metropolitan Borough Council,http://www.sandwell.gov.uk/info/200202/performance_and_spending/1079/payments_over_500,03-Apr-2023,Individual School Budgets With Inclusion,TEACHERACTIVE LIMITED,Individual School Budgets With Inclusion,692.50,Agency Staff,2324P01_CR00582,83931,
Sandwell Metropolitan Borough Council,http://www.sandwell.gov.uk/info/200202/performance_and_spending/1079/payments_over_500,01-Apr-2023,Individual School Budgets With Inclusion,SANDWELL FUTURES LTD,Individual School Budgets With Inclusion,692.52,Private Contractors,2324P01_CR00583,88151,
Sandwell Metropolitan Borough Council,http://www.sandwell.gov.uk/info/200202/performance_and_spending/1079/payments_over_500,01-Apr-2023,Individual School Budgets With Inclusion,SANDWELL FUTURES LTD,Individual School Budgets With Inclusion,755.43,Private Contractors,2324P01_CR00584,88151,
Sandwell Metropolitan Borough Council,http://www.sandwell.gov.uk/info/200202/performance_and_spending/1079/payments_over_500,01-Apr-2023,Individual School Budgets With Inclusion,DUNEDIN COMPLEX CARE LIMITED,Individual School Budgets With Inclusion,770.00,Other Local Authorities,2324P01_CR00585,164634,
Sandwell Metropolitan Borough Council,http://www.sandwell.gov.uk/info/200202/performance_and_spending/1079/payments_over_500,03-Apr-2023,Individual School Budgets With Inclusion,TEACHERACTIVE LIMITED,Individual School Budgets With Inclusion,817.50,Agency Staff,2324P01_CR00586,83931,
Sandwell Metropolitan Borough Council,http://www.sandwell.gov.uk/info/200202/performance_and_spending/1079/payments_over_500,03-Apr-2023,Individual School Budgets With Inclusion,TEACHERACTIVE LIMITED,Individual School Budgets With Inclusion,817.50,Agency Staff,2324P01_CR00587,83931,
Sandwell Metropolitan Borough Council,http://www.sandwell.gov.uk/info/200202/performance_and_spending/1079/payments_over_500,03-Apr-2023,Individual School Budgets With Inclusion,TEACHERACTIVE LIMITED,Individual School Budgets With Inclusion,817.50,Agency Staff,2324P01_CR00588,83931,
Sandwell Metropolitan Borough Council,http://www.sandwell.gov.uk/info/200202/performance_and_spending/1079/payments_over_500,03-Apr-2023,Individual School Budgets With Inclusion,MAJINDER BHOGAL,Individual School Budgets With Inclusion,900.00,Externally Purchased Professional Services ,2324P01_CR00589,36053,
Sandwell Metropolitan Borough Council,http://www.sandwell.gov.uk/info/200202/performance_and_spending/1079/payments_over_500,01-Apr-2023,Individual School Budgets With Inclusion,WONDERLAND CHILDRENS DAY NURSERY (UK) LTD,Individual School Budgets With Inclusion,900.00,Externally Purchased Professional Services ,2324P01_CR00590,50852,
Sandwell Metropolitan Borough Council,http://www.sandwell.gov.uk/info/200202/performance_and_spending/1079/payments_over_500,01-Apr-2023,Individual School Budgets With Inclusion,SANDWELL FUTURES LTD,Individual School Budgets With Inclusion,956.84,Private Contractors,2324P01_CR00591,88151,
Sandwell Metropolitan Borough Council,http://www.sandwell.gov.uk/info/200202/performance_and_spending/1079/payments_over_500,01-Apr-2023,Individual School Budgets With Inclusion,THE LITTLE WENDY HOUSE LIMITED,Individual School Budgets With Inclusion,990.00,Externally Purchased Professional Services ,2324P01_CR00592,01572123,
Sandwell Metropolitan Borough Council,http://www.sandwell.gov.uk/info/200202/performance_and_spending/1079/payments_over_500,01-Apr-2023,Individual School Budgets With Inclusion,SANDWELL FUTURES LTD,Individual School Budgets With Inclusion,1044.39,Private Contractors,2324P01_CR00593,88151,
Sandwell Metropolitan Borough Council,http://www.sandwell.gov.uk/info/200202/performance_and_spending/1079/payments_over_500,01-Apr-2023,Individual School Budgets With Inclusion,SANDWELL & WEST BIRMINGHAM HOSPITALS NHS TRUST,Individual School Budgets With Inclusion,1064.46,Health Authorities,2324P01_CR00594,1385,
Sandwell Metropolitan Borough Council,http://www.sandwell.gov.uk/info/200202/performance_and_spending/1079/payments_over_500,01-Apr-2023,Individual School Budgets With Inclusion,SANDWELL & WEST BIRMINGHAM HOSPITALS NHS TRUST,Individual School Budgets With Inclusion,1066.50,Externally Purchased Professional Services ,2324P01_CR00595,1385,
Sandwell Metropolitan Borough Council,http://www.sandwell.gov.uk/info/200202/performance_and_spending/1079/payments_over_500,01-Apr-2023,Individual School Budgets With Inclusion,OTICON LTD,Individual School Budgets With Inclusion,1087.00,Equipment & Furniture ,2324P01_CR00596,01735851,
Sandwell Metropolitan Borough Council,http://www.sandwell.gov.uk/info/200202/performance_and_spending/1079/payments_over_500,01-Apr-2023,Individual School Budgets With Inclusion,EG (TRAINING) LTD,Individual School Budgets With Inclusion,1087.58,Other Local Authorities,2324P01_CR00597,146780,
Sandwell Metropolitan Borough Council,http://www.sandwell.gov.uk/info/200202/performance_and_spending/1079/payments_over_500,01-Apr-2023,Individual School Budgets With Inclusion,SANDWELL FUTURES LTD,Individual School Budgets With Inclusion,1087.79,Private Contractors,2324P01_CR00598,88151,
Sandwell Metropolitan Borough Council,http://www.sandwell.gov.uk/info/200202/performance_and_spending/1079/payments_over_500,01-Apr-2023,Individual School Budgets With Inclusion,BUFFET EXPRESS,Individual School Budgets With Inclusion,1165.00,Catering Provisions,2324P01_CR00599,01730518,
Sandwell Metropolitan Borough Council,http://www.sandwell.gov.uk/info/200202/performance_and_spending/1079/payments_over_500,21-Apr-2023,Individual School Budgets With Inclusion,121 CARZ,Individual School Budgets With Inclusion,1200.00,Public Transport,2324P01_CR00600,116848,
Sandwell Metropolitan Borough Council,http://www.sandwell.gov.uk/info/200202/performance_and_spending/1079/payments_over_500,03-Apr-2023,Individual School Budgets With Inclusion,TEACHERACTIVE LIMITED,Individual School Budgets With Inclusion,1210.00,Agency Staff,2324P01_CR00601,83931,
Sandwell Metropolitan Borough Council,http://www.sandwell.gov.uk/info/200202/performance_and_spending/1079/payments_over_500,03-Apr-2023,Individual School Budgets With Inclusion,TEACHERACTIVE LIMITED,Individual School Budgets With Inclusion,1210.00,Agency Staff,2324P01_CR00602,83931,
Sandwell Metropolitan Borough Council,http://www.sandwell.gov.uk/info/200202/performance_and_spending/1079/payments_over_500,03-Apr-2023,Individual School Budgets With Inclusion,COLMORE EDUCATION RECRUITMENT,Individual School Budgets With Inclusion,1215.00,Agency Staff,2324P01_CR00603,148720,
Sandwell Metropolitan Borough Council,http://www.sandwell.gov.uk/info/200202/performance_and_spending/1079/payments_over_500,03-Apr-2023,Individual School Budgets With Inclusion,TEACHERACTIVE LIMITED,Individual School Budgets With Inclusion,1262.50,Agency Staff,2324P01_CR00604,83931,
Sandwell Metropolitan Borough Council,http://www.sandwell.gov.uk/info/200202/performance_and_spending/1079/payments_over_500,03-Apr-2023,Individual School Budgets With Inclusion,TEACHERACTIVE LIMITED,Individual School Budgets With Inclusion,1262.50,Agency Staff,2324P01_CR00605,83931,
Sandwell Metropolitan Borough Council,http://www.sandwell.gov.uk/info/200202/performance_and_spending/1079/payments_over_500,03-Apr-2023,Individual School Budgets With Inclusion,TEACHERACTIVE LIMITED,Individual School Budgets With Inclusion,1262.50,Agency Staff,2324P01_CR00606,83931,
Sandwell Metropolitan Borough Council,http://www.sandwell.gov.uk/info/200202/performance_and_spending/1079/payments_over_500,01-Apr-2023,Individual School Budgets With Inclusion,SANDWELL FUTURES LTD,Individual School Budgets With Inclusion,1264.64,Private Contractors,2324P01_CR00607,88151,
Sandwell Metropolitan Borough Council,http://www.sandwell.gov.uk/info/200202/performance_and_spending/1079/payments_over_500,01-Apr-2023,Individual School Budgets With Inclusion,SANDWELL FUTURES LTD,Individual School Budgets With Inclusion,1302.69,Private Contractors,2324P01_CR00608,88151,
Sandwell Metropolitan Borough Council,http://www.sandwell.gov.uk/info/200202/performance_and_spending/1079/payments_over_500,01-Apr-2023,Individual School Budgets With Inclusion,FAIRYTALES NURSERY LTD,Individual School Budgets With Inclusion,1414.80,Externally Purchased Professional Services ,2324P01_CR00609,106247,
Sandwell Metropolitan Borough Council,http://www.sandwell.gov.uk/info/200202/performance_and_spending/1079/payments_over_500,03-Apr-2023,Individual School Budgets With Inclusion,REFLECTIONS OFFICE SOLUTIONS LTD,Individual School Budgets With Inclusion,1499.27,Equipment & Furniture ,2324P01_CR00610,135744,
Sandwell Metropolitan Borough Council,http://www.sandwell.gov.uk/info/200202/performance_and_spending/1079/payments_over_500,01-Apr-2023,Individual School Budgets With Inclusion,WEST SMETHWICK ENTERPRISE FAMILY CENTRE,Individual School Budgets With Inclusion,1579.56,Externally Purchased Professional Services ,2324P01_CR00611,137713,
Sandwell Metropolitan Borough Council,http://www.sandwell.gov.uk/info/200202/performance_and_spending/1079/payments_over_500,01-Apr-2023,Individual School Budgets With Inclusion,THE LITTLE WENDY HOUSE LIMITED,Individual School Budgets With Inclusion,1584.00,Externally Purchased Professional Services ,2324P01_CR00612,01572123,
Sandwell Metropolitan Borough Council,http://www.sandwell.gov.uk/info/200202/performance_and_spending/1079/payments_over_500,01-Apr-2023,Individual School Budgets With Inclusion,BOOKWORMS DAYCARE LIMITED,Individual School Budgets With Inclusion,1603.80,Externally Purchased Professional Services ,2324P01_CR00613,114741,
Sandwell Metropolitan Borough Council,http://www.sandwell.gov.uk/info/200202/performance_and_spending/1079/payments_over_500,01-Apr-2023,Individual School Budgets With Inclusion,BOOKWORMS DAYCARE LIMITED,Individual School Budgets With Inclusion,1603.80,Externally Purchased Professional Services ,2324P01_CR00614,114741,
Sandwell Metropolitan Borough Council,http://www.sandwell.gov.uk/info/200202/performance_and_spending/1079/payments_over_500,01-Apr-2023,Individual School Budgets With Inclusion,LAVENDER FARM DAY NURSERY,Individual School Budgets With Inclusion,1620.00,Externally Purchased Professional Services ,2324P01_CR00615,65596,
Sandwell Metropolitan Borough Council,http://www.sandwell.gov.uk/info/200202/performance_and_spending/1079/payments_over_500,01-Apr-2023,Individual School Budgets With Inclusion,TIMBERTREE NEIGHBOURHOOD NURSERY,Individual School Budgets With Inclusion,1755.00,Externally Purchased Professional Services ,2324P01_CR00616,135664,
Sandwell Metropolitan Borough Council,http://www.sandwell.gov.uk/info/200202/performance_and_spending/1079/payments_over_500,01-Apr-2023,Individual School Budgets With Inclusion,TIMBERTREE NEIGHBOURHOOD NURSERY,Individual School Budgets With Inclusion,1755.00,Externally Purchased Professional Services ,2324P01_CR00617,135664,
Sandwell Metropolitan Borough Council,http://www.sandwell.gov.uk/info/200202/performance_and_spending/1079/payments_over_500,01-Apr-2023,Individual School Budgets With Inclusion,MERCIAN TRUST,Individual School Budgets With Inclusion,1785.60,Other Local Authorities,2324P01_CR00618,146398,
Sandwell Metropolitan Borough Council,http://www.sandwell.gov.uk/info/200202/performance_and_spending/1079/payments_over_500,03-Apr-2023,Individual School Budgets With Inclusion,COLMORE EDUCATION RECRUITMENT,Individual School Budgets With Inclusion,1800.00,Agency Staff,2324P01_CR00619,148720,
Sandwell Metropolitan Borough Council,http://www.sandwell.gov.uk/info/200202/performance_and_spending/1079/payments_over_500,01-Apr-2023,Individual School Budgets With Inclusion,KANGAROO POUCH LIMITED,Individual School Budgets With Inclusion,1800.00,Externally Purchased Professional Services ,2324P01_CR00620,106981,
Sandwell Metropolitan Borough Council,http://www.sandwell.gov.uk/info/200202/performance_and_spending/1079/payments_over_500,01-Apr-2023,Individual School Budgets With Inclusion,YMCA WOLVERHAMPTON,Individual School Budgets With Inclusion,1800.00,Externally Purchased Professional Services ,2324P01_CR00621,138063,
Sandwell Metropolitan Borough Council,http://www.sandwell.gov.uk/info/200202/performance_and_spending/1079/payments_over_500,01-Apr-2023,Individual School Budgets With Inclusion,BOOKWORMS DAYCARE LIMITED,Individual School Budgets With Inclusion,1848.00,Externally Purchased Professional Services ,2324P01_CR00622,114741,
Sandwell Metropolitan Borough Council,http://www.sandwell.gov.uk/info/200202/performance_and_spending/1079/payments_over_500,01-Apr-2023,Individual School Budgets With Inclusion,ST HUBERTS PRE-SCHOOL PLAYGROUP LIMITED,Individual School Budgets With Inclusion,1884.60,Externally Purchased Professional Services ,2324P01_CR00623,01615026,
Sandwell Metropolitan Borough Council,http://www.sandwell.gov.uk/info/200202/performance_and_spending/1079/payments_over_500,21-Apr-2023,Individual School Budgets With Inclusion,KAI DRUMS,Individual School Budgets With Inclusion,1890.00,Externally Purchased Professional Services ,2324P01_CR00624,120729,
Sandwell Metropolitan Borough Council,http://www.sandwell.gov.uk/info/200202/performance_and_spending/1079/payments_over_500,01-Apr-2023,Individual School Budgets With Inclusion,CARE FIRST MANAGEMENT,Individual School Budgets With Inclusion,1933.75,Other Establishments,2324P01_CR00625,136901,
Sandwell Metropolitan Borough Council,http://www.sandwell.gov.uk/info/200202/performance_and_spending/1079/payments_over_500,01-Apr-2023,Individual School Budgets With Inclusion,CARE FIRST MANAGEMENT,Individual School Budgets With Inclusion,1933.75,Other Establishments,2324P01_CR00626,136901,
Sandwell Metropolitan Borough Council,http://www.sandwell.gov.uk/info/200202/performance_and_spending/1079/payments_over_500,01-Apr-2023,Individual School Budgets With Inclusion,CARE FIRST MANAGEMENT,Individual School Budgets With Inclusion,1933.75,Other Establishments,2324P01_CR00627,136901,
Sandwell Metropolitan Borough Council,http://www.sandwell.gov.uk/info/200202/performance_and_spending/1079/payments_over_500,01-Apr-2023,Individual School Budgets With Inclusion,CARE FIRST MANAGEMENT,Individual School Budgets With Inclusion,1933.75,Other Establishments,2324P01_CR00628,136901,
Sandwell Metropolitan Borough Council,http://www.sandwell.gov.uk/info/200202/performance_and_spending/1079/payments_over_500,01-Apr-2023,Individual School Budgets With Inclusion,CARE FIRST MANAGEMENT,Individual School Budgets With Inclusion,1933.75,Other Establishments,2324P01_CR00629,136901,
Sandwell Metropolitan Borough Council,http://www.sandwell.gov.uk/info/200202/performance_and_spending/1079/payments_over_500,01-Apr-2023,Individual School Budgets With Inclusion,CARE FIRST MANAGEMENT,Individual School Budgets With Inclusion,1933.75,Other Establishments,2324P01_CR00630,136901,
Sandwell Metropolitan Borough Council,http://www.sandwell.gov.uk/info/200202/performance_and_spending/1079/payments_over_500,01-Apr-2023,Individual School Budgets With Inclusion,CARE FIRST MANAGEMENT,Individual School Budgets With Inclusion,1933.75,Other Establishments,2324P01_CR00631,136901,
Sandwell Metropolitan Borough Council,http://www.sandwell.gov.uk/info/200202/performance_and_spending/1079/payments_over_500,01-Apr-2023,Individual School Budgets With Inclusion,CARE FIRST MANAGEMENT,Individual School Budgets With Inclusion,1933.75,Other Establishments,2324P01_CR00632,136901,
Sandwell Metropolitan Borough Council,http://www.sandwell.gov.uk/info/200202/performance_and_spending/1079/payments_over_500,01-Apr-2023,Individual School Budgets With Inclusion,SANDWELL FUTURES LTD,Individual School Budgets With Inclusion,1941.85,Private Contractors,2324P01_CR00633,88151,
Sandwell Metropolitan Borough Council,http://www.sandwell.gov.uk/info/200202/performance_and_spending/1079/payments_over_500,03-Apr-2023,Individual School Budgets With Inclusion,SANDWELL VALLEY SCHOOL,Individual School Budgets With Inclusion,2100.00,Learning Resources,2324P01_CR00634,128222,
Sandwell Metropolitan Borough Council,http://www.sandwell.gov.uk/info/200202/performance_and_spending/1079/payments_over_500,01-Apr-2023,Individual School Budgets With Inclusion,SANDWELL FUTURES LTD,Individual School Budgets With Inclusion,2134.69,Private Contractors,2324P01_CR00635,88151,
Sandwell Metropolitan Borough Council,http://www.sandwell.gov.uk/info/200202/performance_and_spending/1079/payments_over_500,01-Apr-2023,Individual School Budgets With Inclusion,RAK DAY CARE LTD T/A HAPPY VALLEY PRE SCHOOL LTD,Individual School Budgets With Inclusion,2160.00,Externally Purchased Professional Services ,2324P01_CR00636,01572212,
Sandwell Metropolitan Borough Council,http://www.sandwell.gov.uk/info/200202/performance_and_spending/1079/payments_over_500,01-Apr-2023,Individual School Budgets With Inclusion,RAK DAY CARE LTD T/A HAPPY VALLEY PRE SCHOOL LTD,Individual School Budgets With Inclusion,2160.00,Externally Purchased Professional Services ,2324P01_CR00637,01572212,
Sandwell Metropolitan Borough Council,http://www.sandwell.gov.uk/info/200202/performance_and_spending/1079/payments_over_500,01-Apr-2023,Individual School Budgets With Inclusion,SANDWELL FUTURES LTD,Individual School Budgets With Inclusion,2179.69,Private Contractors,2324P01_CR00638,88151,
Sandwell Metropolitan Borough Council,http://www.sandwell.gov.uk/info/200202/performance_and_spending/1079/payments_over_500,01-Apr-2023,Individual School Budgets With Inclusion,ENVIRONMENTS FOR LEARNING SANDWELL PFI ONE LIMITED,Individual School Budgets With Inclusion,2234.36,Grant Payments,2324P01_CR00639,98332,
Sandwell Metropolitan Borough Council,http://www.sandwell.gov.uk/info/200202/performance_and_spending/1079/payments_over_500,01-Apr-2023,Individual School Budgets With Inclusion,SADWICA DAY NURSERY,Individual School Budgets With Inclusion,2250.00,Externally Purchased Professional Services ,2324P01_CR00640,01667892,
Sandwell Metropolitan Borough Council,http://www.sandwell.gov.uk/info/200202/performance_and_spending/1079/payments_over_500,01-Apr-2023,Individual School Budgets With Inclusion,NATIONAL INSTITUTE OF CONDUCTIVE EDUCATION,Individual School Budgets With Inclusion,2275.00,Other Local Authorities,2324P01_CR00641,120320,
Sandwell Metropolitan Borough Council,http://www.sandwell.gov.uk/info/200202/performance_and_spending/1079/payments_over_500,03-Apr-2023,Individual School Budgets With Inclusion,COLMORE EDUCATION RECRUITMENT,Individual School Budgets With Inclusion,2295.00,Agency Staff,2324P01_CR00642,148720,
Sandwell Metropolitan Borough Council,http://www.sandwell.gov.uk/info/200202/performance_and_spending/1079/payments_over_500,01-Apr-2023,Individual School Budgets With Inclusion,LAVENDER FARM DAY NURSERY,Individual School Budgets With Inclusion,2430.00,Externally Purchased Professional Services ,2324P01_CR00643,65596,
Sandwell Metropolitan Borough Council,http://www.sandwell.gov.uk/info/200202/performance_and_spending/1079/payments_over_500,01-Apr-2023,Individual School Budgets With Inclusion,ST HUBERTS PRE-SCHOOL PLAYGROUP LIMITED,Individual School Budgets With Inclusion,2443.00,Externally Purchased Professional Services ,2324P01_CR00644,01615026,
Sandwell Metropolitan Borough Council,http://www.sandwell.gov.uk/info/200202/performance_and_spending/1079/payments_over_500,01-Apr-2023,Individual School Budgets With Inclusion,SUMMERHILL LITTLE TREASURES,Individual School Budgets With Inclusion,2527.20,Externally Purchased Professional Services ,2324P01_CR00645,89880,
Sandwell Metropolitan Borough Council,http://www.sandwell.gov.uk/info/200202/performance_and_spending/1079/payments_over_500,03-Apr-2023,Individual School Budgets With Inclusion,SANDWELL VALLEY SCHOOL,Individual School Budgets With Inclusion,2590.00,Learning Resources,2324P01_CR00646,128222,
Sandwell Metropolitan Borough Council,http://www.sandwell.gov.uk/info/200202/performance_and_spending/1079/payments_over_500,01-Apr-2023,Individual School Budgets With Inclusion,SANDWELL FUTURES LTD,Individual School Budgets With Inclusion,2611.92,Private Contractors,2324P01_CR00647,88151,
Sandwell Metropolitan Borough Council,http://www.sandwell.gov.uk/info/200202/performance_and_spending/1079/payments_over_500,01-Apr-2023,Individual School Budgets With Inclusion,ENVIRONMENTS FOR LEARNING SANDWELL PFI ONE LIMITED,Individual School Budgets With Inclusion,2641.03,PFI & PPP Schemes,2324P01_CR00648,98332,
Sandwell Metropolitan Borough Council,http://www.sandwell.gov.uk/info/200202/performance_and_spending/1079/payments_over_500,01-Apr-2023,Individual School Budgets With Inclusion,LAVENDER FARM DAY NURSERY,Individual School Budgets With Inclusion,2700.00,Externally Purchased Professional Services ,2324P01_CR00649,65596,
Sandwell Metropolitan Borough Council,http://www.sandwell.gov.uk/info/200202/performance_and_spending/1079/payments_over_500,01-Apr-2023,Individual School Budgets With Inclusion,LAVENDER FARM DAY NURSERY,Individual School Budgets With Inclusion,2700.00,Externally Purchased Professional Services ,2324P01_CR00650,65596,
Sandwell Metropolitan Borough Council,http://www.sandwell.gov.uk/info/200202/performance_and_spending/1079/payments_over_500,01-Apr-2023,Individual School Budgets With Inclusion,TIPTON EXPLORERS NURSERY,Individual School Budgets With Inclusion,2813.40,Externally Purchased Professional Services ,2324P01_CR00651,132351,
Sandwell Metropolitan Borough Council,http://www.sandwell.gov.uk/info/200202/performance_and_spending/1079/payments_over_500,01-Apr-2023,Individual School Budgets With Inclusion,FAIRYTALES NURSERY LTD,Individual School Budgets With Inclusion,2829.60,Externally Purchased Professional Services ,2324P01_CR00652,106247,
Sandwell Metropolitan Borough Council,http://www.sandwell.gov.uk/info/200202/performance_and_spending/1079/payments_over_500,15-Apr-2023,Individual School Budgets With Inclusion,COMMUNITY SKILLS AND KNOWLEDGE NETWORK CIC,Individual School Budgets With Inclusion,2967.00,Externally Purchased Professional Services ,2324P01_CR00653,133735,
Sandwell Metropolitan Borough Council,http://www.sandwell.gov.uk/info/200202/performance_and_spending/1079/payments_over_500,01-Apr-2023,Individual School Budgets With Inclusion,ST ALBANS COMMUNITY ASSOCIATION,Individual School Budgets With Inclusion,3051.00,Externally Purchased Professional Services ,2324P01_CR00654,08323189,
Sandwell Metropolitan Borough Council,http://www.sandwell.gov.uk/info/200202/performance_and_spending/1079/payments_over_500,01-Apr-2023,Individual School Budgets With Inclusion,ST ALBANS COMMUNITY ASSOCIATION,Individual School Budgets With Inclusion,3051.00,Externally Purchased Professional Services ,2324P01_CR00655,08323189,
Sandwell Metropolitan Borough Council,http://www.sandwell.gov.uk/info/200202/performance_and_spending/1079/payments_over_500,01-Apr-2023,Individual School Budgets With Inclusion,WEST SMETHWICK ENTERPRISE FAMILY CENTRE,Individual School Budgets With Inclusion,3060.00,Externally Purchased Professional Services ,2324P01_CR00656,137713,
Sandwell Metropolitan Borough Council,http://www.sandwell.gov.uk/info/200202/performance_and_spending/1079/payments_over_500,01-Apr-2023,Individual School Budgets With Inclusion,WEST SMETHWICK ENTERPRISE FAMILY CENTRE,Individual School Budgets With Inclusion,3159.00,Externally Purchased Professional Services ,2324P01_CR00657,137713,
Sandwell Metropolitan Borough Council,http://www.sandwell.gov.uk/info/200202/performance_and_spending/1079/payments_over_500,03-Apr-2023,Individual School Budgets With Inclusion,COLMORE EDUCATION RECRUITMENT,Individual School Budgets With Inclusion,3160.00,Agency Staff,2324P01_CR00658,148720,
Sandwell Metropolitan Borough Council,http://www.sandwell.gov.uk/info/200202/performance_and_spending/1079/payments_over_500,01-Apr-2023,Individual School Budgets With Inclusion,VICTORIA HOUSE NURSERY,Individual School Budgets With Inclusion,3231.00,Externally Purchased Professional Services ,2324P01_CR00659,104097,
Sandwell Metropolitan Borough Council,http://www.sandwell.gov.uk/info/200202/performance_and_spending/1079/payments_over_500,01-Apr-2023,Individual School Budgets With Inclusion,DAFFODILS DAY NURSERY,Individual School Budgets With Inclusion,3238.20,Externally Purchased Professional Services ,2324P01_CR00660,122616,
Sandwell Metropolitan Borough Council,http://www.sandwell.gov.uk/info/200202/performance_and_spending/1079/payments_over_500,01-Apr-2023,Individual School Budgets With Inclusion,JUNIPER TRAINING LTD,Individual School Budgets With Inclusion,3296.00,Externally Purchased Professional Services ,2324P01_CR00661,84880,
Sandwell Metropolitan Borough Council,http://www.sandwell.gov.uk/info/200202/performance_and_spending/1079/payments_over_500,03-Apr-2023,Individual School Budgets With Inclusion,COLMORE EDUCATION RECRUITMENT,Individual School Budgets With Inclusion,3310.00,Agency Staff,2324P01_CR00662,148720,
Sandwell Metropolitan Borough Council,http://www.sandwell.gov.uk/info/200202/performance_and_spending/1079/payments_over_500,03-Apr-2023,Individual School Budgets With Inclusion,COLMORE EDUCATION RECRUITMENT,Individual School Budgets With Inclusion,3450.40,Agency Staff,2324P01_CR00663,148720,
Sandwell Metropolitan Borough Council,http://www.sandwell.gov.uk/info/200202/performance_and_spending/1079/payments_over_500,01-Apr-2023,Individual School Budgets With Inclusion,ENVIRONMENTS FOR LEARNING SANDWELL PFI ONE LIMITED,Individual School Budgets With Inclusion,3522.52,PFI & PPP Schemes,2324P01_CR00664,98332,
Sandwell Metropolitan Borough Council,http://www.sandwell.gov.uk/info/200202/performance_and_spending/1079/payments_over_500,03-Apr-2023,Individual School Budgets With Inclusion,COLMORE EDUCATION RECRUITMENT,Individual School Budgets With Inclusion,3530.00,Agency Staff,2324P01_CR00665,148720,
Sandwell Metropolitan Borough Council,http://www.sandwell.gov.uk/info/200202/performance_and_spending/1079/payments_over_500,01-Apr-2023,Individual School Budgets With Inclusion,SANDWELL FUTURES LTD,Individual School Budgets With Inclusion,3662.50,Private Contractors,2324P01_CR00666,88151,
Sandwell Metropolitan Borough Council,http://www.sandwell.gov.uk/info/200202/performance_and_spending/1079/payments_over_500,01-Apr-2023,Individual School Budgets With Inclusion,SANDWELL FUTURES LTD,Individual School Budgets With Inclusion,3676.52,Private Contractors,2324P01_CR00667,88151,
Sandwell Metropolitan Borough Council,http://www.sandwell.gov.uk/info/200202/performance_and_spending/1079/payments_over_500,01-Apr-2023,Individual School Budgets With Inclusion,SANDWELL FUTURES LTD,Individual School Budgets With Inclusion,3734.90,Private Contractors,2324P01_CR00668,88151,
Sandwell Metropolitan Borough Council,http://www.sandwell.gov.uk/info/200202/performance_and_spending/1079/payments_over_500,03-Apr-2023,Individual School Budgets With Inclusion,COLMORE EDUCATION RECRUITMENT,Individual School Budgets With Inclusion,3780.00,Agency Staff,2324P01_CR00669,148720,
Sandwell Metropolitan Borough Council,http://www.sandwell.gov.uk/info/200202/performance_and_spending/1079/payments_over_500,01-Apr-2023,Individual School Budgets With Inclusion,MERCIAN TRUST,Individual School Budgets With Inclusion,3950.10,Other Local Authorities,2324P01_CR00670,146398,
Sandwell Metropolitan Borough Council,http://www.sandwell.gov.uk/info/200202/performance_and_spending/1079/payments_over_500,01-Apr-2023,Individual School Budgets With Inclusion,ENVIRONMENTS FOR LEARNING SANDWELL PFI ONE LIMITED,Individual School Budgets With Inclusion,3994.05,PFI & PPP Schemes,2324P01_CR00671,98332,
Sandwell Metropolitan Borough Council,http://www.sandwell.gov.uk/info/200202/performance_and_spending/1079/payments_over_500,01-Apr-2023,Individual School Budgets With Inclusion,LAVENDER FARM DAY NURSERY,Individual School Budgets With Inclusion,4050.00,Externally Purchased Professional Services ,2324P01_CR00672,65596,
Sandwell Metropolitan Borough Council,http://www.sandwell.gov.uk/info/200202/performance_and_spending/1079/payments_over_500,01-Apr-2023,Individual School Budgets With Inclusion,LAVENDER FARM DAY NURSERY,Individual School Budgets With Inclusion,4050.00,Externally Purchased Professional Services ,2324P01_CR00673,65596,
Sandwell Metropolitan Borough Council,http://www.sandwell.gov.uk/info/200202/performance_and_spending/1079/payments_over_500,01-Apr-2023,Individual School Budgets With Inclusion,LAVENDER FARM DAY NURSERY,Individual School Budgets With Inclusion,4050.00,Externally Purchased Professional Services ,2324P01_CR00674,65596,
Sandwell Metropolitan Borough Council,http://www.sandwell.gov.uk/info/200202/performance_and_spending/1079/payments_over_500,01-Apr-2023,Individual School Budgets With Inclusion,LAVENDER FARM DAY NURSERY,Individual School Budgets With Inclusion,4050.00,Externally Purchased Professional Services ,2324P01_CR00675,65596,
Sandwell Metropolitan Borough Council,http://www.sandwell.gov.uk/info/200202/performance_and_spending/1079/payments_over_500,01-Apr-2023,Individual School Budgets With Inclusion,LAVENDER FARM DAY NURSERY,Individual School Budgets With Inclusion,4050.00,Externally Purchased Professional Services ,2324P01_CR00676,65596,
Sandwell Metropolitan Borough Council,http://www.sandwell.gov.uk/info/200202/performance_and_spending/1079/payments_over_500,01-Apr-2023,Individual School Budgets With Inclusion,LAVENDER FARM DAY NURSERY,Individual School Budgets With Inclusion,4050.00,Externally Purchased Professional Services ,2324P01_CR00677,65596,
Sandwell Metropolitan Borough Council,http://www.sandwell.gov.uk/info/200202/performance_and_spending/1079/payments_over_500,01-Apr-2023,Individual School Budgets With Inclusion,ENVIRONMENTS FOR LEARNING SANDWELL PFI ONE LIMITED,Individual School Budgets With Inclusion,4253.84,PFI & PPP Schemes,2324P01_CR00678,98332,
Sandwell Metropolitan Borough Council,http://www.sandwell.gov.uk/info/200202/performance_and_spending/1079/payments_over_500,01-Apr-2023,Individual School Budgets With Inclusion,SANDWELL FUTURES LTD,Individual School Budgets With Inclusion,4264.10,Private Contractors,2324P01_CR00679,88151,
Sandwell Metropolitan Borough Council,http://www.sandwell.gov.uk/info/200202/performance_and_spending/1079/payments_over_500,03-Apr-2023,Individual School Budgets With Inclusion,COMMUNITY SKILLS AND KNOWLEDGE NETWORK CIC,Individual School Budgets With Inclusion,4412.00,Externally Purchased Professional Services ,2324P01_CR00680,133735,
Sandwell Metropolitan Borough Council,http://www.sandwell.gov.uk/info/200202/performance_and_spending/1079/payments_over_500,03-Apr-2023,Individual School Budgets With Inclusion,COLMORE EDUCATION RECRUITMENT,Individual School Budgets With Inclusion,4445.00,Agency Staff,2324P01_CR00681,148720,
Sandwell Metropolitan Borough Council,http://www.sandwell.gov.uk/info/200202/performance_and_spending/1079/payments_over_500,03-Apr-2023,Individual School Budgets With Inclusion,COLMORE EDUCATION RECRUITMENT,Individual School Budgets With Inclusion,4580.00,Agency Staff,2324P01_CR00682,148720,
Sandwell Metropolitan Borough Council,http://www.sandwell.gov.uk/info/200202/performance_and_spending/1079/payments_over_500,01-Apr-2023,Individual School Budgets With Inclusion,TARGETED PROVISION LTD,Individual School Budgets With Inclusion,5040.00,Externally Purchased Professional Services ,2324P01_CR00683,153248,
Sandwell Metropolitan Borough Council,http://www.sandwell.gov.uk/info/200202/performance_and_spending/1079/payments_over_500,03-Apr-2023,Individual School Budgets With Inclusion,COLMORE EDUCATION RECRUITMENT,Individual School Budgets With Inclusion,5949.70,Agency Staff,2324P01_CR00684,148720,
Sandwell Metropolitan Borough Council,http://www.sandwell.gov.uk/info/200202/performance_and_spending/1079/payments_over_500,01-Apr-2023,Individual School Budgets With Inclusion,ST JAMES CE PRIMARY,Individual School Budgets With Inclusion,6000.00,Other Local Authorities,2324P01_CR00685,105629,
Sandwell Metropolitan Borough Council,http://www.sandwell.gov.uk/info/200202/performance_and_spending/1079/payments_over_500,01-Apr-2023,Individual School Budgets With Inclusion,SKYBOUND THERAPIES LTD,Individual School Budgets With Inclusion,6021.25,Other Local Authorities,2324P01_CR00686,144066,
Sandwell Metropolitan Borough Council,http://www.sandwell.gov.uk/info/200202/performance_and_spending/1079/payments_over_500,01-Apr-2023,Individual School Budgets With Inclusion,BOW STREET SCHOOL LTD,Individual School Budgets With Inclusion,7150.00,Other Establishments,2324P01_CR00687,115236,
Sandwell Metropolitan Borough Council,http://www.sandwell.gov.uk/info/200202/performance_and_spending/1079/payments_over_500,01-Apr-2023,Individual School Budgets With Inclusion,ACORN CARE AND EDUCATION LIMITED,Individual School Budgets With Inclusion,7321.10,Other Establishments,2324P01_CR00688,115235,
Sandwell Metropolitan Borough Council,http://www.sandwell.gov.uk/info/200202/performance_and_spending/1079/payments_over_500,01-Apr-2023,Individual School Budgets With Inclusion,NEC SOFTWARE SOLUTIONS UK LTD,Individual School Budgets With Inclusion,7654.50,ICT ,2324P01_CR00689,56043,
Sandwell Metropolitan Borough Council,http://www.sandwell.gov.uk/info/200202/performance_and_spending/1079/payments_over_500,01-Apr-2023,Individual School Budgets With Inclusion,CAMBIAN WHINEFELL SCHOOL LTD,Individual School Budgets With Inclusion,7966.67,Other Establishments,2324P01_CR00690,164894,
Sandwell Metropolitan Borough Council,http://www.sandwell.gov.uk/info/200202/performance_and_spending/1079/payments_over_500,01-Apr-2023,Individual School Budgets With Inclusion,VALUES ACADEMY,Individual School Budgets With Inclusion,8535.00,Other Establishments,2324P01_CR00691,128203,
Sandwell Metropolitan Borough Council,http://www.sandwell.gov.uk/info/200202/performance_and_spending/1079/payments_over_500,01-Apr-2023,Individual School Budgets With Inclusion,GRENKE LEASING LTD,Individual School Budgets With Inclusion,9028.95,Equipment & Furniture ,2324P01_CR00692,68802,
Sandwell Metropolitan Borough Council,http://www.sandwell.gov.uk/info/200202/performance_and_spending/1079/payments_over_500,01-Apr-2023,Individual School Budgets With Inclusion,VALUES ACADEMY,Individual School Budgets With Inclusion,9135.00,Other Establishments,2324P01_CR00693,128203,
Sandwell Metropolitan Borough Council,http://www.sandwell.gov.uk/info/200202/performance_and_spending/1079/payments_over_500,01-Apr-2023,Individual School Budgets With Inclusion,FOXYARDS ACADEMY,Individual School Budgets With Inclusion,10000.00,Other Local Authorities,2324P01_CR00694,77716,
Sandwell Metropolitan Borough Council,http://www.sandwell.gov.uk/info/200202/performance_and_spending/1079/payments_over_500,01-Apr-2023,Individual School Budgets With Inclusion,ETHICAL INFLUENCE LTD,Individual School Budgets With Inclusion,10666.00,Other Establishments,2324P01_CR00695,69425,
Sandwell Metropolitan Borough Council,http://www.sandwell.gov.uk/info/200202/performance_and_spending/1079/payments_over_500,01-Apr-2023,Individual School Budgets With Inclusion,THE HAVEN SCHOOL,Individual School Budgets With Inclusion,10733.33,Other Establishments,2324P01_CR00696,148511,
Sandwell Metropolitan Borough Council,http://www.sandwell.gov.uk/info/200202/performance_and_spending/1079/payments_over_500,01-Apr-2023,Individual School Budgets With Inclusion,STAFFORDSHIRE COUNTY COUNCIL,Individual School Budgets With Inclusion,11554.00,Other Establishments,2324P01_CR00697,01124861,
Sandwell Metropolitan Borough Council,http://www.sandwell.gov.uk/info/200202/performance_and_spending/1079/payments_over_500,01-Apr-2023,Individual School Budgets With Inclusion,DAVID LEWIS CENTRE,Individual School Budgets With Inclusion,13471.25,Externally Purchased Professional Services ,2324P01_CR00698,2444,
Sandwell Metropolitan Borough Council,http://www.sandwell.gov.uk/info/200202/performance_and_spending/1079/payments_over_500,14-Apr-2023,Individual School Budgets With Inclusion,WV2 EDUCATION LTD,Individual School Budgets With Inclusion,13666.67,Other Establishments,2324P01_CR00699,152252,
Sandwell Metropolitan Borough Council,http://www.sandwell.gov.uk/info/200202/performance_and_spending/1079/payments_over_500,01-Apr-2023,Individual School Budgets With Inclusion,BOW STREET SCHOOL LTD,Individual School Budgets With Inclusion,13819.00,Other Establishments,2324P01_CR00700,115236,
Sandwell Metropolitan Borough Council,http://www.sandwell.gov.uk/info/200202/performance_and_spending/1079/payments_over_500,01-Apr-2023,Individual School Budgets With Inclusion,THE ROWAN SCHOOL,Individual School Budgets With Inclusion,14384.70,Other Establishments,2324P01_CR00701,139765,
Sandwell Metropolitan Borough Council,http://www.sandwell.gov.uk/info/200202/performance_and_spending/1079/payments_over_500,01-Apr-2023,Individual School Budgets With Inclusion,THE ROWAN SCHOOL,Individual School Budgets With Inclusion,14384.70,Other Establishments,2324P01_CR00702,139765,
Sandwell Metropolitan Borough Council,http://www.sandwell.gov.uk/info/200202/performance_and_spending/1079/payments_over_500,01-Apr-2023,Individual School Budgets With Inclusion,NEC SOFTWARE SOLUTIONS UK LTD,Individual School Budgets With Inclusion,15300.00,ICT ,2324P01_CR00703,56043,
Sandwell Metropolitan Borough Council,http://www.sandwell.gov.uk/info/200202/performance_and_spending/1079/payments_over_500,01-Apr-2023,Individual School Budgets With Inclusion,ACORN CARE AND EDUCATION LIMITED,Individual School Budgets With Inclusion,15554.33,Other Establishments,2324P01_CR00704,115235,
Sandwell Metropolitan Borough Council,http://www.sandwell.gov.uk/info/200202/performance_and_spending/1079/payments_over_500,01-Apr-2023,Individual School Budgets With Inclusion,ACORN CARE AND EDUCATION LIMITED,Individual School Budgets With Inclusion,15554.33,Other Establishments,2324P01_CR00705,115235,
Sandwell Metropolitan Borough Council,http://www.sandwell.gov.uk/info/200202/performance_and_spending/1079/payments_over_500,01-Apr-2023,Individual School Budgets With Inclusion,ACORN CARE AND EDUCATION LIMITED,Individual School Budgets With Inclusion,15554.33,Other Establishments,2324P01_CR00706,115235,
Sandwell Metropolitan Borough Council,http://www.sandwell.gov.uk/info/200202/performance_and_spending/1079/payments_over_500,01-Apr-2023,Individual School Budgets With Inclusion,SMALL STEPS ABA,Individual School Budgets With Inclusion,15567.00,Other Local Authorities,2324P01_CR00707,150276,
Sandwell Metropolitan Borough Council,http://www.sandwell.gov.uk/info/200202/performance_and_spending/1079/payments_over_500,01-Apr-2023,Individual School Budgets With Inclusion,ACORN CARE AND EDUCATION LIMITED,Individual School Budgets With Inclusion,16006.67,Other Establishments,2324P01_CR00708,115235,
Sandwell Metropolitan Borough Council,http://www.sandwell.gov.uk/info/200202/performance_and_spending/1079/payments_over_500,01-Apr-2023,Individual School Budgets With Inclusion,NEWBURY SCHOOL LTD,Individual School Budgets With Inclusion,16300.67,Other Establishments,2324P01_CR00709,153981,
Sandwell Metropolitan Borough Council,http://www.sandwell.gov.uk/info/200202/performance_and_spending/1079/payments_over_500,01-Apr-2023,Individual School Budgets With Inclusion,NEWBURY SCHOOL LTD,Individual School Budgets With Inclusion,16300.67,Other Establishments,2324P01_CR00710,153981,
